{"text_format":"1","workbook":"xlsx","n_sheets":13,"sheets":["About","Main","Pump","Tower","Span","Sprinkler","Field Evaluation","Catchcan","Output","Report","SprinklerDB","Development notes","Sprinkler naming convention"],"not_rendered":{"charts":2,"images":17,"macros":1,"external_links":0,"defined_names":38,"comments":7,"pivot_tables":0},"unopened":[],"bounds":{"document_bytes":16777216,"sheet_cells":100000,"rows_first":2000,"rows_last":500,"rows_between":2000,"halvings":0,"cell_chars":16384,"cell_head_chars":4096},"cells_cut":0,"cells_raw":0,"read":"whole","date_system":"1900"}

{"sheet":"About","index":0,"n_rows":27,"n_cols":3,"rows_kept":27,"cut":false,"hidden":false,"merged":[]}
[null,null,"Last Updated"]
[null,null,{"$f":"MAX('Development notes'!A10:A1245)","v":"2018-10-04"}]
[]
[]
[]
[]
[]
[]
[]
[]
[]
[]
[]
[]
[]
[]
[]
[]
[]
[]
[]
[null,"CPED (Center Pivot Evaluation and Design) was devloped by Dale Heermann with the USDA-ARS.  The original program was written in Fortran IV in the early 1970's. "]
[null,"It was translated into Wang Basic by Bob Beccard who also added the hydraulics so CPED could simulate a hilly field rather than just flat ground."]
[null,"Kristine (Kris) Stahl then began working with the program under Dale Heermann and added an improved user interface and pump curve calculations.  When they switched to IBM PC's Krist wrote a QuickBasic 4.0 and then a QB 4.5 version.  "]
[null,"As technology evolved again, Kris converted it to Quick Pro Basic 7, added a better interface, and wrote a version that simulated tower moves and depths in the direction of travel as well as along the pivot line."]
[null,"In about 1995 Dale  Heermann hired a freshman undergraduate student, Chris Carlson who convert it to Visual Basic 4, and then 5 & 6.  He graduated in 2002, with the program not quite finished.  Kris Stahl again took it over and fixed all of the glitches so it could be released.  Kris also wrote the CPED Lite version.  When Dale retired in 2005, ARS lost the funding to maintain CPED or Kris Stahl salary.  However, Kris continued to work on CPED in her free time, and continued to be a collaborator on this even after she retired because of health issues in 2009."]
[null,"In 2011 Visual Basic 6 was no longer supported.  Clarence Prestwich with the USDA-NRCS handed the code off to Troy Peters from Washington State University, who converted the code to work from within Microsoft Excel and updated sections of the code to make it run more smoothly.  Troy and Clarence also revised the users interface."]

{"sheet":"Main","index":1,"n_rows":25,"n_cols":30,"rows_kept":25,"cut":false,"hidden":false,"merged":[[1,2,1,15],[24,14,24,15],[4,1,4,2]]}
[null,null,null,null,null,null,null,null,null,null,null,null,null,null,null,null,null,null,null,null,null,null,null,null,null,null,null,null,null,1]
[null,null,"Center Pivot Design and Evaluation"]
[]
[]
[null,"Select type of system"]
[]
[]
[null,"Simulation Parameters"]
[null,"Hours/Revolution"]
[null,"Sprinkler Number","all"]
[null,"Start Distance (ft)"]
[null,"Stop Distance (ft)"]
[null,"Distance Increment (ft)"]
[null,"Minimum Depth (in) (Optional)"]
[]
[]
[]
[null,"System Parameters"]
[null,"Type of Pressure Control: ","None"]
[null,"Booster pump pressure increase (psi)",null,null,"Put cursor over cells with a red triangle in the upper right-hand corner for"]
[null,"Number of sprinklers beyond booster pump",null,null,"additional information. Input data in the Pump, Tower, Span, and Sprinkler"]
[null,null,null,null,"sheets.  Results are in the Output and Report sheets.",null,null,null,null,null,null,null,"Sprinkler DB updated from .xml file 10/4/2018"]
[]
[]
[null,null,null,null,null,null,null,null,null,null,null,null,null,null,"Version date",null,{"$f":"MAX('Development notes'!A11:A446)","v":"2018-10-04"}]

{"sheet":"Pump","index":2,"n_rows":33,"n_cols":54,"rows_kept":33,"cut":false,"hidden":false,"merged":[[1,1,1,9]]}
[null,null,null,null,null,null,null,null,null,null,null,null,null,null,null,null,null,null,null,null,null,null,null,null,null,null,null,null,null,null,null,null,null,null,null,null,null,null,null,null,null,null,null,null,null,null,null,null,null,null,null,null,"Q","H"]
[null,"Pivot Point and Pump information",null,null,null,null,null,null,null,null,null,null,null,null,null,null,null,null,null,null,null,null,null,null,null,null,null,null,null,null,null,null,null,null,null,null,null,null,null,null,null,null,null,null,null,null,null,null,null,null,null,null,100,200]
[null,null,null,null,null,null,null,null,null,null,null,null,null,null,null,null,null,null,null,null,null,null,null,null,null,null,null,null,null,null,null,null,null,null,null,null,null,null,null,null,null,null,null,null,null,null,null,null,null,null,null,null,300,185]
[null,null,null,null,null,null,null,null,null,null,null,null,null,null,null,null,null,null,null,null,null,null,null,null,null,null,null,"Pump Curve",null,null,null,null,null,null,null,null,null,null,null,null,null,null,null,null,null,null,null,null,null,null,null,null,600,148]
[null,null,null,null,null,null,null,null,null,null,null,null,null,null,null,null,null,null,null,null,null,null,null,null,null,null,null,"H","Q",null,null,null,"Quadratc Coefficients",null,null,null,null,null,null,null,null,null,null,null,null,null,null,null,null,null,null,null,800,108]
[null,null,null,null,null,null,null,null,null,null,null,null,null,null,null,null,null,null,null,null,null,null,null,null,null,null,null,null,null,{"$f":"$AG$8+AB6*$AG$7+AB6^2*$AG$6","v":{"$error":"#VALUE!"}},null,"X^2",{"$f":"INDEX(LINEST(PxA,PyA^{1,2}),1,1)","v":{"$error":"#VALUE!"}},null,null,null,null,null,null,null,null,null,null,null,null,null,null,null,null,null,null,null,1200,10]
[null,null,null,null,null,null,null,null,null,null,null,null,null,null,null,null,null,null,null,null,null,null,null,null,null,null,null,null,null,{"$f":"$AG$8+AB7*$AG$7+AB7^2*$AG$6","v":{"$error":"#VALUE!"}},null,"X ",{"$f":"INDEX(LINEST(PxA,PyA^{1,2}),1,2)","v":{"$error":"#VALUE!"}}]
[null,null,null,null,null,null,null,null,null,null,null,null,null,null,null,null,null,null,null,null,null,null,null,null,null,null,null,null,null,{"$error":"#VALUE!"},null,"C",{"$f":"INDEX(LINEST(PxA,PyA^{1,2}),1,3)","v":{"$error":"#VALUE!"}}]
[null,"Description",null,null,null,null,null,null,null,null,null,null,null,null,null,null,null,null,null,null,null,null,null,null,null,null,null,null,null,{"$error":"#VALUE!"}]
[null,"Pump Name (optional)",null,null,null,null,null,null,null,null,null,null,null,null,null,null,null,null,null,null,null,null,null,null,null,null,null,null,null,{"$error":"#VALUE!"}]
[null,"Number of pump stages",null,null,null,null,null,null,null,null,null,null,null,null,null,null,null,null,null,null,null,null,null,null,null,null,null,null,null,{"$error":"#VALUE!"}]
[null,"Pump Intercept - GPM",null,null,null,null,null,null,null,null,null,null,null,null,null,null,null,null,null,null,null,null,null,null,null,null,null,null,null,{"$error":"#VALUE!"}]
[null,"Pump Curve Slope on Linear Term",null,null,null,null,1,null,null,null,null,null,null,null,null,null,null,null,null,null,null,null,null,null,null,null,null,null,null,{"$error":"#VALUE!"},{"$f":"IF(AB6<>\"\",8-COUNTBLANK(AB6:AB13),\"\")","v":""}]
[null,"Pump Curve on the Quadratic Term"]
[null,"Total dynamic lift (ft)"]
[null,"Pad/Ground elevation (ft)"]
[null,"Sprinkler height above the ground (ft)"]
[null,"ID of the riser pipe (in)"]
[null,"ID of the pump to riser pipe (in)"]
[null,"Hazen-Williams or Darcy-Weisbach resistance coefficient"]
[null,"Length of pump to riser pipe (ft)"]
[]
[]
[]
[]
[]
[]
[]
[]
[]
[]
[]
[null,null,null,null,null,null,null,"Friction Factor"]

{"sheet":"Tower","index":3,"n_rows":31,"n_cols":10,"rows_kept":31,"cut":false,"hidden":false,"merged":[[1,4,1,10]]}
[]
[null,null,null,null,"Tower Elevation Information"]
[]
[]
[]
[]
[]
[]
[]
[]
[]
[]
[null,null,null,null,null,null,"Tower Number","Span length (ft)","Distance from Pivot (ft)","Ground Elevation (ft)"]
[null,null,null,null,null,null,null,null,{"$f":"IF(H14<>\"\",H14,\"\")","v":""}]
[null,null,null,null,null,null,null,null,{"$f":"IF(H15<>\"\",H15+I14,\"\")","v":""}]
[null,null,null,null,null,null,null,null,""]
[null,null,null,null,null,null,null,null,""]
[null,null,null,null,null,null,null,null,""]
[null,null,null,null,null,null,null,null,""]
[null,null,null,null,null,null,null,null,""]
[null,null,null,null,null,null,null,null,{"$f":"IF(H21<>\"\",H21+I20,\"\")","v":""}]
[null,null,null,null,null,null,null,null,""]
[null,null,null,null,null,null,null,null,""]
[null,null,null,null,null,null,null,null,""]
[null,null,null,null,null,null,null,null,""]
[null,null,null,null,null,null,null,null,""]
[null,null,null,null,null,null,null,null,""]
[null,null,null,null,null,null,null,null,""]
[null,null,null,null,null,null,null,null,""]
[null,null,null,null,null,null,null,null,""]
[null,null,null,null,null,null,null,null,""]

{"sheet":"Span","index":4,"n_rows":15,"n_cols":5,"rows_kept":15,"cut":false,"hidden":false,"merged":[[1,2,1,5]]}
[]
[null,null,"Span Pipe information"]
[]
[]
[]
[]
[]
[]
[]
[]
[]
[]
[]
[]
[null,null,"Inside Diameter (ID) of Span Pipe (in)","Hazen-Williams or Darcy-Weisbach Resistance Coefficient","Starting Distance for Sprinkler Pipe Diameter (ft)"]

{"sheet":"Sprinkler","index":5,"n_rows":1795,"n_cols":84,"rows_kept":1795,"cut":false,"hidden":false,"merged":[]}
[null,"Span Number (optional)","Sprinkler Number","Distance from last sprinkler (ft)"," Distance from pivot point (ft)","Sprinkler Model Number","Sprinkler application Pattern",{"$f":"IF($AC$1=1,\"Range Nozzle Diameter in 1/64ths\",\"Range Nozzle Diameter in 1/128ths\")","v":"Range Nozzle Diameter in 1/64ths"},{"$f":"IF($AC$1 =1,\"Spreader Nozzle Diameter in 1/64ths\",\"Spreader Nozzle Diameter in 1/128ths\")","v":"Spreader Nozzle Diameter in 1/64ths"},"Pressure or orifice diameter of pressure controlled sprinkler (psi or in)","Stop angles of part circle sprinklers L+(degrees)","Start angle of part circle sprinklers R+(degrees)","Offset distances (ft)","Left offset distances (ft)","Names of pressure regulated sprinklers",null,null,null,null,null,null,null,null,null,null,null,true,false,{"$f":"IF(AA1=TRUE,1,2)","v":1},null,null,null,null,null,null,null,null,null,null,null,null,null,null,null,null,null,null,null,null,null,null,null,null,null,null,null,null,null,null,"Nmodels","Acelerator","Spray","Nutator","Orbitor","Rotator","Spinner","SR End Gun","Impacts","Flow Controls","Rainbird","Rmodels","Smodels","Endspray","Fanspray","LDN","SImpacts","Iwob","Sspray","Valleyspray","Xcel","XiWob","Wobbler","BlankS","Patterns"]
[null,null,null,null,null,null,null,null,null,null,null,null,"","",""]
[null,null,null,null,null,null,null,null,null,null,null,null,"","","",null,null,null,null,null,null,null,null,null,null,null,null,null,null,null,null,null,null,null,null,null,null,null,null,null,null,null,null,null,null,null,null,null,null,null,null,null,"Komet",null,null,"KPS","KM-KPS-BK-FL-24-3","KM-KPT-BK-10-3","KOMET_TWINMAX","Acelerator","NLA3000_GD1","NLD3000_BK3","NLN3000_BL3","NLO3000_BK3","NLR30","NLS3000_BG3","NLSPR1","NLF32AS","NT3FC02.0_BL12","RB20","ImpactsR","End spray","SNSENDSPRAY","SNSFANSPRAY","SEN_LDN_LEPA","SN2014PM_12","SNIWOBL6_3","SENSSPRAYCV_3-UP3","VLSPR06","SNXCELHA_12","SNXWOB605_TOP","SNSWobLA",null,"Triangular"]
[null,null,null,null,{"$f":"IF(D4<>\"\",E3+D4,\"\")","v":""},null,null,null,null,null,null,null,"","","",null,null,null,null,null,null,null,null,null,null,null,null,null,null,null,null,null,null,null,null,null,null,null,null,null,null,null,null,null,null,null,null,null,null,null,null,null,"Nelson",null,null,"KPT","KM-KPS-BK-FL-24-6","KM-KPT-BK-10-6","KOMET101","Dual Spray","NLA3000_GD3","NLD3000_BK9","NLN3000_BL6","NLO3000_BK6","NLR30_LEPA","NLS3000_BG6","NLSR100","NLF32S","NT3FC02.0_GN6","RBL20",null,"Fan spray",null,null,"SENLDNCV1.5","SNS3005_SPVN","SNIWOBL6_3-UP3","SENSSPRAYCV_6-UP3","VLSPR10","SNXCELMA_12","SNXWOB605_TOP-UP3","SNSWobSD",null,"Eliptical"]
[null,null,null,null,"",null,null,null,null,null,null,null,"","","",null,null,null,null,null,null,null,null,null,null,null,null,null,null,null,null,null,null,null,null,null,null,null,null,null,null,null,null,null,null,null,null,null,null,null,null,null,"Rainbird",null,null,"Twin","KM-KPS-BK-FL-24-9","KM-KPT-BK-10-9","KOMET140","Nutator","NLA3000_GD6","NLD3000_BL3","NLN3000_GN3","NLO3000_BL3","NLR55a","NLS3000_GR3","NLSR150","NLF333DN","NT3FC02.5_BL12","RBL2020",null,"LDN",null,null,"SENLDNCV3","SNS3005_STVN","SNIWOBL6_6","SENSSPRAYCV_9-UP3",null,"SNXCELWOBTOP_UP3","SNXWOB610_3","WobLA_LEPA",null,"Donut"]
[null,null,null,null,"",null,null,null,null,null,null,null,"","","",null,null,null,null,null,null,null,null,null,null,null,null,null,null,null,null,null,null,null,null,null,null,null,null,null,null,null,null,null,null,null,null,null,null,null,null,null,"Senninger",null,null,null,"KM-KPS-BK-FL-33-3","KM-KPT-BL-10-3","KOMET160","Orbitor","NLA3000_GD9","NLD3000_BL9","NLN3000_GN6","NLO3000_BL6","NLR55i_GR","NLS3000_GR6","NLSR200","NLF33A","NT3FC02.5_GN6","RB30H/WH/FH/FWH-SBN-3",null,"ImpactsS",null,null,"SENLDNCV6","SNS4006","SNIWOBL6_6-UP3","SENSSPRAYCX_3-UP3",null,null,"SNXWOB610_3-UP3","WobSD_LEPA"]
[null,null,null,null,"",null,null,null,null,null,null,null,"","","",null,null,null,null,null,null,null,null,null,null,null,null,null,null,null,null,null,null,null,null,null,null,null,null,null,null,null,null,null,null,null,null,null,null,null,null,null,null,null,null,null,"KM-KPS-BK-FL-33-6","KM-KPT-BL-10-6","KOMET202","Rotator","NLA3000_NV12","NLD3000_BR3",null,"NLO3000_PU3","NLR3000_BL12","NLS3000_PU3","NLSR75","NLF33AS","NT3FC03.0_BL12","RB30H/WH-SBN-3V",null,"Iwob",null,null,"SENLDNCV9","SNS5006","SNIWOBL9_3","SENSSPRAYCX_6-UP3",null,null,"SNXWOB610_6"]
[null,null,null,null,"",null,null,null,null,null,null,null,"","","",null,null,null,null,null,null,null,null,null,null,null,null,null,null,null,null,null,null,null,null,null,null,null,null,null,null,null,null,null,null,null,null,null,null,null,null,null,null,null,null,null,"KM-KPS-BK-FL-33-9","KM-KPT-BL-10-9",null,"Spinner","NLA3000_MR1","NLD3000_BR9",null,"NLO3000_PU6","NLR3000_BR1","NLS3000_PU6",null,"NLF33S","NT3FC03.0_GN6","RBL30",null,"Sspray",null,null,"SENLDNCX1.5","SNS5006H","SNIWOBL9_3-UP3","SENSSPRAYCX_9-UP3",null,null,"SNXWOB610_6-UP3"]
[null,null,null,null,"",null,null,null,null,null,null,null,"","","",null,null,null,null,null,null,null,null,null,null,null,null,null,null,null,null,null,null,null,null,null,null,null,null,null,null,null,null,null,null,null,null,null,null,null,null,null,null,null,null,null,"KM-KPS-BL-CC-33-3","KM-KPT-YL-10-3",null,"SR End Gun","NLA3000_MR3","NLD3000_GN3",null,"NLO3030_BK3","NLR3000_BR3","NLS3000_RD3",null,"NLF43A","NT3FC03.5_BL12","RBL3030",null,"Valley spray",null,null,"SENLDNCX1.5-UP3",null,"SNIWOBL9_6","SENSSPRAYFL_3-UP3",null,null,"SNXWOB615_3"]
[null,null,null,null,"",null,null,null,null,null,null,null,"","","",null,null,null,null,null,null,null,null,null,null,null,null,null,null,null,null,null,null,null,null,null,null,null,null,null,null,null,null,null,null,null,null,null,null,null,null,null,null,null,null,null,"KM-KPS-BL-CC-33-6","KM-KPT-YL-10-6",null,"ImpactsN","NLA3000_MR6","NLD3000_GN9",null,"NLO3030_BK6","NLR3000_BR6","NLS3000_RD6",null,"NLF43AP","NT3FC03.5_GN6","RB35",null,"Xcel-Wobbler",null,null,"SENLDNCX3",null,"SNIWOBL9_6-UP3","SENSSPRAYFL_6-UP3",null,null,"SNXWOB615_3-UP3"]
[null,null,null,null,"",null,null,null,null,null,null,null,"","","",null,null,null,null,null,null,null,null,null,null,null,null,null,null,null,null,null,null,null,null,null,null,null,null,null,null,null,null,null,null,null,null,null,null,null,null,null,null,null,null,null,"KM-KPS-BL-CC-33-9","KM-KPT-YL-10-9",null,"Flow Control","NLA3000_MR9","NLD3000_GR3",null,"NLO3030_BL3","NLR3000_BR9","NLS3000_YL3",null,"NLF43P","NT3FC04.0_BL12","RBL36AH-QF-SBN-3",null,"Xiwob",null,null,"SENLDNCX3-UP3",null,"SNIWOBS6_3-UP3","SENSSPRAYFL_9-UP3",null,null,"SNXWOB615_6"]
[null,null,null,null,"",null,null,null,null,null,null,null,"","","",null,null,null,null,null,null,null,null,null,null,null,null,null,null,null,null,null,null,null,null,null,null,null,null,null,null,null,null,null,null,null,null,null,null,null,null,null,null,null,null,null,"KM-KPS-GR-FLmini-24-3",null,null,null,"NLA3030_GD1","NLD3000_GR9",null,"NLO3030_BL6","NLR3000_GN1","NLS3000_YL6",null,"NLF44AAB","NT3FC04.0_GN6","RBL36AH-QF-LPN-3",null,"Wobbler",null,null,"SENLDNCX6",null,"SNIWOBS6_6-UP3","SNSSPR",null,null,"SNXWOB615_6-UP3"]
[null,null,null,null,"",null,null,null,null,null,null,null,"","","",null,null,null,null,null,null,null,null,null,null,null,null,null,null,null,null,null,null,null,null,null,null,null,null,null,null,null,null,null,null,null,null,null,null,null,null,null,null,null,null,null,"KM-KPS-GR-FLmini-24-6",null,null,null,"NLA3030_GD3","NLD3000_OR3",null,"NLO3030_PU3","NLR3000_GN3","NLS3000_TRQPC3",null,"NLF70A","NT3FC04.3_BL12","RBL36H-QF-SBN-3",null,null,null,null,"SENLDNCX6-UP3",null,"SNIWOBS9_3","SNSSPR_LEPA",null,null,"SNXWOB910_3"]
[null,null,null,null,"",null,null,null,null,null,null,null,"","","",null,null,null,null,null,null,null,null,null,null,null,null,null,null,null,null,null,null,null,null,null,null,null,null,null,null,null,null,null,null,null,null,null,null,null,null,null,null,null,null,null,"KM-KPS-GR-FLmini-24-9",null,null,null,"NLA3030_GD6","NLD3000_OR9",null,"NLO3030_PU6","NLR3000_GN6","NLS3000_TRQPC6",null,"NLF80A","NT3FC04.3_GN6","RBL36H-QF-LPN-3",null,null,null,null,"SENLDNCX9",null,"SNIWOBS9_3-UP3",null,null,null,"SNXWOB910_3-UP3"]
[null,null,null,null,"",null,null,null,null,null,null,null,"","","",null,null,null,null,null,null,null,null,null,null,null,null,null,null,null,null,null,null,null,null,null,null,null,null,null,null,null,null,null,null,null,null,null,null,null,null,null,null,null,null,null,"KM-KPS-PC-BL-CC-15-3",null,null,null,"NLA3030_GD9","NLD3000_PU3",null,null,"NLR3000_GN9","NLS3030_BG3",null,"NLP85A","NT3FC05.0_BL12","RB40",null,null,null,null,"SENLDNCX9-UP3",null,"SNIWOBS9_6",null,null,null,"SNXWOB910_6"]
[null,null,null,null,"",null,null,null,null,null,null,null,"","","",null,null,null,null,null,null,null,null,null,null,null,null,null,null,null,null,null,null,null,null,null,null,null,null,null,null,null,null,null,null,null,null,null,null,null,null,null,null,null,null,null,"KM-KPS-PC-BL-CC-15-6",null,null,null,"NLA3030_NV12","NLD3000_PU9",null,null,"NLR3000_OR1","NLS3030_BG6",null,"NLP85AV","NT3FC05.0_GN6","RB65",null,null,null,null,"SENLDNFL1.5",null,"SNIWOBS9_6-UP3",null,null,null,"SNXWOB910_6-UP3"]
[null,null,null,null,"",null,null,null,null,null,null,null,"","","",null,null,null,null,null,null,null,null,null,null,null,null,null,null,null,null,null,null,null,null,null,null,null,null,null,null,null,null,null,null,null,null,null,null,null,null,null,null,null,null,null,"KM-KPS-PC-BL-CC-15-9",null,null,null,"NLA3030_MR1","NLD3000_TQ3",null,null,"NLR3000_OR3","NLS3030_LM12",null,"NLP85PV","NT3FC05.5_BL12","RB70",null,null,null,null,"SENLDNFL1.5-UP3"]
[null,null,null,null,"",null,null,null,null,null,null,null,"","","",null,null,null,null,null,null,null,null,null,null,null,null,null,null,null,null,null,null,null,null,null,null,null,null,null,null,null,null,null,null,null,null,null,null,null,null,null,null,null,null,null,"KM-KPS-TQ-FLmini-0-3",null,null,null,"NLA3030_MR3","NLD3000_TQ9",null,null,"NLR3000_OR6","NLS3030_PU3",null,null,"NT3FC05.5_GN6","RB85",null,null,null,null,"SENLDNFL3"]
[null,null,null,null,"",null,null,null,null,null,null,null,"","","",null,null,null,null,null,null,null,null,null,null,null,null,null,null,null,null,null,null,null,null,null,null,null,null,null,null,null,null,null,null,null,null,null,null,null,null,null,null,null,null,null,"KM-KPS-TQ-FLmini-0-6",null,null,null,"NLA3030_MR6","NLD3000_YL3",null,null,"NLR3000_OR9","NLS3030_PU6",null,null,"NT3FC06.0_BL12","RB8X",null,null,null,null,"SENLDNFL3-UP3"]
[null,null,null,null,"",null,null,null,null,null,null,null,"","","",null,null,null,null,null,null,null,null,null,null,null,null,null,null,null,null,null,null,null,null,null,null,null,null,null,null,null,null,null,null,null,null,null,null,null,null,null,null,null,null,null,"KM-KPS-TQ-FLmini-0-9",null,null,null,"NLA3030_MR9","NLD3000_YL9",null,null,"NLR3000_RD1","NLS3030_RD3",null,null,"NT3FC06.0_GN6",null,null,null,null,null,"SENLDNFL6"]
[null,null,null,null,"",null,null,null,null,null,null,null,"","","",null,null,null,null,null,null,null,null,null,null,null,null,null,null,null,null,null,null,null,null,null,null,null,null,null,null,null,null,null,null,null,null,null,null,null,null,null,null,null,null,null,"KM-KPS-YL-FL-30-3",null,null,null,null,"NLD3000_Bubble",null,null,"NLR3000_RD3","NLS3030_RD6",null,null,"NT3FC07.0_BL12",null,null,null,null,null,"SENLDNFL6-UP3"]
[null,null,null,null,"",null,null,null,null,null,null,null,"","","",null,null,null,null,null,null,null,null,null,null,null,null,null,null,null,null,null,null,null,null,null,null,null,null,null,null,null,null,null,null,null,null,null,null,null,null,null,null,null,null,null,"KM-KPS-YL-FL-30-6",null,null,null,null,"NLD3030_BL2",null,null,"NLR3000_RD6","NLS3030_YL3",null,null,"NT3FC07.0_GN6",null,null,null,null,null,"SENLDNFL9"]
[null,null,null,null,"",null,null,null,null,null,null,null,"","","",null,null,null,null,null,null,null,null,null,null,null,null,null,null,null,null,null,null,null,null,null,null,null,null,null,null,null,null,null,null,null,null,null,null,null,null,null,null,null,null,null,"KM-KPS-YL-FL-30-9",null,null,null,null,"NLD3030_BL3",null,null,"NLR3000_RD9","NLS3030_YL6",null,null,"NT3FC08.0_BL12",null,null,null,null,null,"SENLDNFL9-UP3"]
[null,null,null,null,"",null,null,null,null,null,null,null,"","","",null,null,null,null,null,null,null,null,null,null,null,null,null,null,null,null,null,null,null,null,null,null,null,null,null,null,null,null,null,null,null,null,null,null,null,null,null,null,null,null,null,"Km-KPS-WT-FL-10-13",null,null,null,null,"NLD3030_BL9",null,null,"NLR3000_WH12","NLS3030_TRQPC3",null,null,"NT3FC08.0_GN6",null,null,null,null,null,"SENLNDCV1.5-UP3"]
[null,null,null,null,"",null,null,null,null,null,null,null,"","","",null,null,null,null,null,null,null,null,null,null,null,null,null,null,null,null,null,null,null,null,null,null,null,null,null,null,null,null,null,null,null,null,null,null,null,null,null,null,null,null,null,null,null,null,null,null,"NLD3030_BR3",null,null,"NLR3000_PC1","NLS3030_TRQPC6",null,null,"NT3FC09.0_BL12",null,null,null,null,null,"SENLNDCV3-UP3"]
[null,null,null,null,"",null,null,null,null,null,null,null,"","","",null,null,null,null,null,null,null,null,null,null,null,null,null,null,null,null,null,null,null,null,null,null,null,null,null,null,null,null,null,null,null,null,null,null,null,null,null,null,null,null,null,null,null,null,null,null,"NLD3030_BR9",null,null,"NLR3000_PC3",null,null,null,"NT3FC09.0_GN6",null,null,null,null,null,"SENLNDCV6-UP3"]
[null,null,null,null,"",null,null,null,null,null,null,null,"","","",null,null,null,null,null,null,null,null,null,null,null,null,null,null,null,null,null,null,null,null,null,null,null,null,null,null,null,null,null,null,null,null,null,null,null,null,null,null,null,null,null,null,null,null,null,null,"NLD3030_GR3",null,null,"NLR3000_PC6",null,null,null,"NT3FC10.0_BL12",null,null,null,null,null,"SENLNDCV9-UP3"]
[null,null,null,null,"",null,null,null,null,null,null,null,"","","",null,null,null,null,null,null,null,null,null,null,null,null,null,null,null,null,null,null,null,null,null,null,null,null,null,null,null,null,null,null,null,null,null,null,null,null,null,null,null,null,null,null,null,null,null,null,"NLD3030_GR9",null,null,"NLR3030_BL12",null,null,null,"NT3FC10.0_GN6"]
[null,null,null,null,"",null,null,null,null,null,null,null,"","","",null,null,null,null,null,null,null,null,null,null,null,null,null,null,null,null,null,null,null,null,null,null,null,null,null,null,null,null,null,null,null,null,null,null,null,null,null,null,null,null,null,null,null,null,null,null,"NLD3030_GN2",null,null,"NLR3030_BR1"]
[null,null,null,null,"",null,null,null,null,null,null,null,"","","",null,null,null,null,null,null,null,null,null,null,null,null,null,null,null,null,null,null,null,null,null,null,null,null,null,null,null,null,null,null,null,null,null,null,null,null,null,null,null,null,null,null,null,null,null,null,"NLD3030_GN3",null,null,"NLR3030_BR3"]
[null,null,null,null,"",null,null,null,null,null,null,null,"","","",null,null,null,null,null,null,null,null,null,null,null,null,null,null,null,null,null,null,null,null,null,null,null,null,null,null,null,null,null,null,null,null,null,null,null,null,null,null,null,null,null,null,null,null,null,null,"NLD3030_GN9",null,null,"NLR3030_BR6"]
[null,null,null,null,"",null,null,null,null,null,null,null,"","","",null,null,null,null,null,null,null,null,null,null,null,null,null,null,null,null,null,null,null,null,null,null,null,null,null,null,null,null,null,null,null,null,null,null,null,null,null,null,null,null,null,null,null,null,null,null,"NLD3030_YL2",null,null,"NLR3030_BR9"]
[null,null,null,null,"",null,null,null,null,null,null,null,"","","",null,null,null,null,null,null,null,null,null,null,null,null,null,null,null,null,null,null,null,null,null,null,null,null,null,null,null,null,null,null,null,null,null,null,null,null,null,null,null,null,null,null,null,null,null,null,"NLD3030_YL3",null,null,"NLR3030_GN1"]
[null,null,null,null,"",null,null,null,null,null,null,null,"","","",null,null,null,null,null,null,null,null,null,null,null,null,null,null,null,null,null,null,null,null,null,null,null,null,null,null,null,null,null,null,null,null,null,null,null,null,null,null,null,null,null,null,null,null,null,null,"NLD3030_YL9",null,null,"NLR3030_GN3"]
[null,null,null,null,"",null,null,null,null,null,null,null,"","","",null,null,null,null,null,null,null,null,null,null,null,null,null,null,null,null,null,null,null,null,null,null,null,null,null,null,null,null,null,null,null,null,null,null,null,null,null,null,null,null,null,null,null,null,null,null,"NLD3030_OR3",null,null,"NLR3030_GN6"]
[null,null,null,null,"",null,null,null,null,null,null,null,"","","",null,null,null,null,null,null,null,null,null,null,null,null,null,null,null,null,null,null,null,null,null,null,null,null,null,null,null,null,null,null,null,null,null,null,null,null,null,null,null,null,null,null,null,null,null,null,"NLD3030_OR9",null,null,"NLR3030_GN9"]
[null,null,null,null,"",null,null,null,null,null,null,null,"","","",null,null,null,null,null,null,null,null,null,null,null,null,null,null,null,null,null,null,null,null,null,null,null,null,null,null,null,null,null,null,null,null,null,null,null,null,null,null,null,null,null,null,null,null,null,null,"NLD3030_PU3",null,null,"NLR3030_OL6"]
[null,null,null,null,"",null,null,null,null,null,null,null,"","","",null,null,null,null,null,null,null,null,null,null,null,null,null,null,null,null,null,null,null,null,null,null,null,null,null,null,null,null,null,null,null,null,null,null,null,null,null,null,null,null,null,null,null,null,null,null,"NLD3030_PU9",null,null,"NLR3030_OR1"]
[null,null,null,null,"",null,null,null,null,null,null,null,"","","",null,null,null,null,null,null,null,null,null,null,null,null,null,null,null,null,null,null,null,null,null,null,null,null,null,null,null,null,null,null,null,null,null,null,null,null,null,null,null,null,null,null,null,null,null,null,"NLD3030_TQ3",null,null,"NLR3030_OR3"]
[null,null,null,null,"",null,null,null,null,null,null,null,"","","",null,null,null,null,null,null,null,null,null,null,null,null,null,null,null,null,null,null,null,null,null,null,null,null,null,null,null,null,null,null,null,null,null,null,null,null,null,null,null,null,null,null,null,null,null,null,"NLD3030_TQ9",null,null,"NLR3030_OR6"]
[null,null,null,null,"",null,null,null,null,null,null,null,"","","",null,null,null,null,null,null,null,null,null,null,null,null,null,null,null,null,null,null,null,null,null,null,null,null,null,null,null,null,null,null,null,null,null,null,null,null,null,null,null,null,null,null,null,null,null,null,"NLD3030_Bubble",null,null,"NLR3030_OR9"]
[null,null,null,null,"",null,null,null,null,null,null,null,"","","",null,null,null,null,null,null,null,null,null,null,null,null,null,null,null,null,null,null,null,null,null,null,null,null,null,null,null,null,null,null,null,null,null,null,null,null,null,null,null,null,null,null,null,null,null,null,null,null,null,"NLR3030_PC1"]
[null,null,null,null,"",null,null,null,null,null,null,null,"","","",null,null,null,null,null,null,null,null,null,null,null,null,null,null,null,null,null,null,null,null,null,null,null,null,null,null,null,null,null,null,null,null,null,null,null,null,null,null,null,null,null,null,null,null,null,null,null,null,null,"NLR3030_PC3"]
[null,null,null,null,"",null,null,null,null,null,null,null,"","","",null,null,null,null,null,null,null,null,null,null,null,null,null,null,null,null,null,null,null,null,null,null,null,null,null,null,null,null,null,null,null,null,null,null,null,null,null,null,null,null,null,null,null,null,null,null,null,null,null,"NLR3030_PC6"]
[null,null,null,null,"",null,null,null,null,null,null,null,"","","",null,null,null,null,null,null,null,null,null,null,null,null,null,null,null,null,null,null,null,null,null,null,null,null,null,null,null,null,null,null,null,null,null,null,null,null,null,null,null,null,null,null,null,null,null,null,null,null,null,"NLR3030_RD1"]
[null,null,null,null,"",null,null,null,null,null,null,null,"","","",null,null,null,null,null,null,null,null,null,null,null,null,null,null,null,null,null,null,null,null,null,null,null,null,null,null,null,null,null,null,null,null,null,null,null,null,null,null,null,null,null,null,null,null,null,null,null,null,null,"NLR3030_RD3"]
[null,null,null,null,"",null,null,null,null,null,null,null,"","","",null,null,null,null,null,null,null,null,null,null,null,null,null,null,null,null,null,null,null,null,null,null,null,null,null,null,null,null,null,null,null,null,null,null,null,null,null,null,null,null,null,null,null,null,null,null,null,null,null,"NLR3030_RD6"]
[null,null,null,null,"",null,null,null,null,null,null,null,"","","",null,null,null,null,null,null,null,null,null,null,null,null,null,null,null,null,null,null,null,null,null,null,null,null,null,null,null,null,null,null,null,null,null,null,null,null,null,null,null,null,null,null,null,null,null,null,null,null,null,"NLR3030_RD9"]
[null,null,null,null,"",null,null,null,null,null,null,null,"","","",null,null,null,null,null,null,null,null,null,null,null,null,null,null,null,null,null,null,null,null,null,null,null,null,null,null,null,null,null,null,null,null,null,null,null,null,null,null,null,null,null,null,null,null,null,null,null,null,null,"NLR3030_WH12"]
[null,null,null,null,""]
[null,null,null,null,""]
[null,null,null,null,""]
[null,null,null,null,""]
[null,null,null,null,""]
[null,null,null,null,""]
[null,null,null,null,""]
[null,null,null,null,""]
[null,null,null,null,""]
[null,null,null,null,""]
[null,null,null,null,""]
[null,null,null,null,""]
[null,null,null,null,""]
[null,null,null,null,""]
[null,null,null,null,""]
[null,null,null,null,""]
[null,null,null,null,""]
[null,null,null,null,""]
[null,null,null,null,{"$f":"IF(D68<>\"\",E67+D68,\"\")","v":""}]
[null,null,null,null,""]
[null,null,null,null,""]
[null,null,null,null,""]
[null,null,null,null,""]
[null,null,null,null,""]
[null,null,null,null,""]
[null,null,null,null,""]
[null,null,null,null,""]
[null,null,null,null,""]
[null,null,null,null,""]
[null,null,null,null,""]
[null,null,null,null,""]
[null,null,null,null,""]
[null,null,null,null,""]
[null,null,null,null,""]
[null,null,null,null,""]
[null,null,null,null,""]
[null,null,null,null,""]
[null,null,null,null,""]
[null,null,null,null,""]
[null,null,null,null,""]
[null,null,null,null,""]
[null,null,null,null,""]
[null,null,null,null,""]
[null,null,null,null,""]
[null,null,null,null,""]
[null,null,null,null,""]
[null,null,null,null,""]
[null,null,null,null,""]
[null,null,null,null,""]
[null,null,null,null,""]
[null,null,null,null,""]
[null,null,null,null,""]
[null,null,null,null,""]
[null,null,null,null,""]
[null,null,null,null,""]
[null,null,null,null,""]
[null,null,null,null,""]
[null,null,null,null,""]
[null,null,null,null,""]
[null,null,null,null,""]
[null,null,null,null,""]
[null,null,null,null,""]
[null,null,null,null,""]
[null,null,null,null,""]
[null,null,null,null,""]
[null,null,null,null,""]
[null,null,null,null,""]
[null,null,null,null,""]
[null,null,null,null,""]
[null,null,null,null,""]
[null,null,null,null,""]
[null,null,null,null,""]
[null,null,null,null,""]
[null,null,null,null,""]
[null,null,null,null,""]
[null,null,null,null,""]
[null,null,null,null,""]
[null,null,null,null,""]
[null,null,null,null,""]
[null,null,null,null,""]
[null,null,null,null,""]
[null,null,null,null,""]
[null,null,null,null,{"$f":"IF(D132<>\"\",E131+D132,\"\")","v":""}]
[null,null,null,null,""]
[null,null,null,null,""]
[null,null,null,null,""]
[null,null,null,null,""]
[null,null,null,null,""]
[null,null,null,null,""]
[null,null,null,null,""]
[null,null,null,null,""]
[null,null,null,null,""]
[null,null,null,null,""]
[null,null,null,null,""]
[null,null,null,null,""]
[null,null,null,null,""]
[null,null,null,null,""]
[null,null,null,null,""]
[null,null,null,null,""]
[null,null,null,null,""]
[null,null,null,null,""]
[null,null,null,null,""]
[null,null,null,null,""]
[null,null,null,null,""]
[null,null,null,null,""]
[null,null,null,null,""]
[null,null,null,null,""]
[null,null,null,null,""]
[null,null,null,null,""]
[null,null,null,null,""]
[null,null,null,null,""]
[null,null,null,null,""]
[null,null,null,null,""]
[null,null,null,null,""]
[null,null,null,null,""]
[null,null,null,null,""]
[null,null,null,null,""]
[null,null,null,null,""]
[null,null,null,null,""]
[null,null,null,null,""]
[null,null,null,null,""]
[null,null,null,null,""]
[null,null,null,null,""]
[null,null,null,null,""]
[null,null,null,null,""]
[null,null,null,null,""]
[null,null,null,null,""]
[null,null,null,null,""]
[null,null,null,null,""]
[null,null,null,null,""]
[null,null,null,null,""]
[null,null,null,null,""]
[null,null,null,null,""]
[null,null,null,null,""]
[null,null,null,null,""]
[null,null,null,null,""]
[null,null,null,null,""]
[null,null,null,null,""]
[null,null,null,null,""]
[null,null,null,null,""]
[null,null,null,null,""]
[null,null,null,null,""]
[null,null,null,null,""]
[null,null,null,null,""]
[null,null,null,null,""]
[null,null,null,null,""]
[null,null,null,null,{"$f":"IF(D196<>\"\",E195+D196,\"\")","v":""}]
[null,null,null,null,""]
[null,null,null,null,""]
[null,null,null,null,""]
[null,null,null,null,""]
[null,null,null,null,""]
[null,null,null,null,""]
[null,null,null,null,""]
[null,null,null,null,""]
[null,null,null,null,""]
[null,null,null,null,""]
[null,null,null,null,""]
[null,null,null,null,""]
[null,null,null,null,""]
[null,null,null,null,""]
[null,null,null,null,""]
[null,null,null,null,""]
[null,null,null,null,""]
[null,null,null,null,""]
[null,null,null,null,""]
[null,null,null,null,""]
[null,null,null,null,""]
[null,null,null,null,""]
[null,null,null,null,""]
[null,null,null,null,""]
[null,null,null,null,""]
[null,null,null,null,""]
[null,null,null,null,""]
[null,null,null,null,""]
[null,null,null,null,""]
[null,null,null,null,""]
[null,null,null,null,""]
[null,null,null,null,""]
[null,null,null,null,""]
[null,null,null,null,""]
[null,null,null,null,""]
[null,null,null,null,""]
[null,null,null,null,""]
[null,null,null,null,""]
[null,null,null,null,""]
[null,null,null,null,""]
[null,null,null,null,""]
[null,null,null,null,""]
[null,null,null,null,""]
[null,null,null,null,""]
[null,null,null,null,""]
[null,null,null,null,""]
[null,null,null,null,""]
[null,null,null,null,""]
[null,null,null,null,""]
[null,null,null,null,""]
[null,null,null,null,""]
[null,null,null,null,""]
[null,null,null,null,""]
[null,null,null,null,""]
[null,null,null,null,""]
[null,null,null,null,""]
[null,null,null,null,""]
[null,null,null,null,""]
[null,null,null,null,""]
[null,null,null,null,""]
[null,null,null,null,""]
[null,null,null,null,""]
[null,null,null,null,""]
[null,null,null,null,{"$f":"IF(D260<>\"\",E259+D260,\"\")","v":""}]
[null,null,null,null,""]
[null,null,null,null,""]
[null,null,null,null,""]
[null,null,null,null,""]
[null,null,null,null,""]
[null,null,null,null,""]
[null,null,null,null,""]
[null,null,null,null,""]
[null,null,null,null,""]
[null,null,null,null,""]
[null,null,null,null,""]
[null,null,null,null,""]
[null,null,null,null,""]
[null,null,null,null,""]
[null,null,null,null,""]
[null,null,null,null,""]
[null,null,null,null,""]
[null,null,null,null,""]
[null,null,null,null,""]
[null,null,null,null,""]
[null,null,null,null,""]
[null,null,null,null,""]
[null,null,null,null,""]
[null,null,null,null,""]
[null,null,null,null,""]
[null,null,null,null,""]
[null,null,null,null,""]
[null,null,null,null,""]
[null,null,null,null,""]
[null,null,null,null,""]
[null,null,null,null,""]
[null,null,null,null,""]
[null,null,null,null,""]
[null,null,null,null,""]
[null,null,null,null,""]
[null,null,null,null,""]
[null,null,null,null,""]
[null,null,null,null,""]
[null,null,null,null,""]
[null,null,null,null,""]
[null,null,null,null,""]
[null,null,null,null,""]
[null,null,null,null,""]
[null,null,null,null,""]
[null,null,null,null,""]
[null,null,null,null,""]
[null,null,null,null,""]
[null,null,null,null,""]
[null,null,null,null,""]
[null,null,null,null,""]
[null,null,null,null,""]
[null,null,null,null,""]
[null,null,null,null,""]
[null,null,null,null,""]
[null,null,null,null,""]
[null,null,null,null,""]
[null,null,null,null,""]
[null,null,null,null,""]
[null,null,null,null,""]
[null,null,null,null,""]
[null,null,null,null,""]
[null,null,null,null,""]
[null,null,null,null,""]
[null,null,null,null,{"$f":"IF(D324<>\"\",E323+D324,\"\")","v":""}]
[null,null,null,null,""]
[null,null,null,null,""]
[null,null,null,null,""]
[null,null,null,null,""]
[null,null,null,null,""]
[null,null,null,null,""]
[null,null,null,null,""]
[null,null,null,null,""]
[null,null,null,null,""]
[null,null,null,null,""]
[null,null,null,null,""]
[null,null,null,null,""]
[null,null,null,null,""]
[null,null,null,null,""]
[null,null,null,null,""]
[null,null,null,null,""]
[null,null,null,null,""]
[null,null,null,null,""]
[null,null,null,null,""]
[null,null,null,null,""]
[null,null,null,null,""]
[null,null,null,null,""]
[null,null,null,null,""]
[null,null,null,null,""]
[null,null,null,null,""]
[null,null,null,null,""]
[null,null,null,null,""]
[null,null,null,null,""]
[null,null,null,null,""]
[null,null,null,null,""]
[null,null,null,null,""]
[null,null,null,null,""]
[null,null,null,null,""]
[null,null,null,null,""]
[null,null,null,null,""]
[null,null,null,null,""]
[null,null,null,null,""]
[null,null,null,null,""]
[null,null,null,null,""]
[null,null,null,null,""]
[null,null,null,null,""]
[null,null,null,null,""]
[null,null,null,null,""]
[null,null,null,null,""]
[null,null,null,null,""]
[null,null,null,null,""]
[null,null,null,null,""]
[null,null,null,null,""]
[null,null,null,null,""]
[null,null,null,null,""]
[null,null,null,null,""]
[null,null,null,null,""]
[null,null,null,null,""]
[null,null,null,null,""]
[null,null,null,null,""]
[null,null,null,null,""]
[null,null,null,null,""]
[null,null,null,null,""]
[null,null,null,null,""]
[null,null,null,null,""]
[null,null,null,null,{"$f":"IF(D385<>\"\",E384+D385,\"\")","v":""}]
[null,null,null,null,""]
[null,null,null,null,""]
[null,null,null,null,""]
[null,null,null,null,""]
[null,null,null,null,""]
[null,null,null,null,""]
[null,null,null,null,""]
[null,null,null,null,""]
[null,null,null,null,""]
[null,null,null,null,""]
[null,null,null,null,""]
[null,null,null,null,""]
[null,null,null,null,""]
[null,null,null,null,""]
[null,null,null,null,""]
[null,null,null,null,""]
[null,null,null,null,""]
[null,null,null,null,""]
[null,null,null,null,""]
[null,null,null,null,""]
[null,null,null,null,""]
[null,null,null,null,""]
[null,null,null,null,""]
[null,null,null,null,""]
[null,null,null,null,""]
[null,null,null,null,""]
[null,null,null,null,""]
[null,null,null,null,""]
[null,null,null,null,""]
[null,null,null,null,""]
[null,null,null,null,""]
[null,null,null,null,""]
[null,null,null,null,""]
[null,null,null,null,""]
[null,null,null,null,""]
[null,null,null,null,""]
[null,null,null,null,""]
[null,null,null,null,""]
[null,null,null,null,""]
[null,null,null,null,""]
[null,null,null,null,""]
[null,null,null,null,""]
[null,null,null,null,""]
[null,null,null,null,""]
[null,null,null,null,""]
[null,null,null,null,""]
[null,null,null,null,""]
[null,null,null,null,""]
[null,null,null,null,""]
[null,null,null,null,""]
[null,null,null,null,""]
[null,null,null,null,""]
[null,null,null,null,""]
[null,null,null,null,""]
[null,null,null,null,""]
[null,null,null,null,""]
[null,null,null,null,""]
[null,null,null,null,""]
[null,null,null,null,""]
[null,null,null,null,""]
[null,null,null,null,""]
[null,null,null,null,""]
[null,null,null,null,""]
[null,null,null,null,{"$f":"IF(D449<>\"\",E448+D449,\"\")","v":""}]
[null,null,null,null,""]
[null,null,null,null,""]
[null,null,null,null,""]
[null,null,null,null,""]
[null,null,null,null,""]
[null,null,null,null,""]
[null,null,null,null,""]
[null,null,null,null,""]
[null,null,null,null,""]
[null,null,null,null,""]
[null,null,null,null,""]
[null,null,null,null,""]
[null,null,null,null,""]
[null,null,null,null,""]
[null,null,null,null,""]
[null,null,null,null,""]
[null,null,null,null,""]
[null,null,null,null,""]
[null,null,null,null,""]
[null,null,null,null,""]
[null,null,null,null,""]
[null,null,null,null,""]
[null,null,null,null,""]
[null,null,null,null,""]
[null,null,null,null,""]
[null,null,null,null,""]
[null,null,null,null,""]
[null,null,null,null,""]
[null,null,null,null,""]
[null,null,null,null,""]
[null,null,null,null,""]
[null,null,null,null,""]
[null,null,null,null,""]
[null,null,null,null,""]
[null,null,null,null,""]
[null,null,null,null,""]
[null,null,null,null,""]
[null,null,null,null,""]
[null,null,null,null,""]
[null,null,null,null,""]
[null,null,null,null,""]
[null,null,null,null,""]
[null,null,null,null,""]
[null,null,null,null,""]
[null,null,null,null,""]
[null,null,null,null,""]
[null,null,null,null,""]
[null,null,null,null,""]
[null,null,null,null,""]
[null,null,null,null,""]
[null,null,null,null,""]
[null,null,null,null,""]
[null,null,null,null,""]
[null,null,null,null,""]
[null,null,null,null,""]
[null,null,null,null,""]
[null,null,null,null,""]
[null,null,null,null,""]
[null,null,null,null,""]
[null,null,null,null,""]
[null,null,null,null,""]
[null,null,null,null,""]
[null,null,null,null,""]
[null,null,null,null,{"$f":"IF(D513<>\"\",E512+D513,\"\")","v":""}]
[null,null,null,null,""]
[null,null,null,null,""]
[null,null,null,null,""]
[null,null,null,null,""]
[null,null,null,null,""]
[null,null,null,null,""]
[null,null,null,null,""]
[null,null,null,null,""]
[null,null,null,null,""]
[null,null,null,null,""]
[null,null,null,null,""]
[null,null,null,null,""]
[null,null,null,null,""]
[null,null,null,null,""]
[null,null,null,null,""]
[null,null,null,null,""]
[null,null,null,null,""]
[null,null,null,null,""]
[null,null,null,null,""]
[null,null,null,null,""]
[null,null,null,null,""]
[null,null,null,null,""]
[null,null,null,null,""]
[null,null,null,null,""]
[null,null,null,null,""]
[null,null,null,null,""]
[null,null,null,null,""]
[null,null,null,null,""]
[null,null,null,null,""]
[null,null,null,null,""]
[null,null,null,null,""]
[null,null,null,null,""]
[null,null,null,null,""]
[null,null,null,null,""]
[null,null,null,null,""]
[null,null,null,null,""]
[null,null,null,null,""]
[null,null,null,null,""]
[null,null,null,null,""]
[null,null,null,null,""]
[null,null,null,null,""]
[null,null,null,null,""]
[null,null,null,null,""]
[null,null,null,null,""]
[null,null,null,null,""]
[null,null,null,null,""]
[null,null,null,null,""]
[null,null,null,null,""]
[null,null,null,null,""]
[null,null,null,null,""]
[null,null,null,null,""]
[null,null,null,null,""]
[null,null,null,null,""]
[null,null,null,null,""]
[null,null,null,null,""]
[null,null,null,null,""]
[null,null,null,null,""]
[null,null,null,null,""]
[null,null,null,null,""]
[null,null,null,null,""]
[null,null,null,null,""]
[null,null,null,null,""]
[null,null,null,null,""]
[null,null,null,null,{"$f":"IF(D577<>\"\",E576+D577,\"\")","v":""}]
[null,null,null,null,""]
[null,null,null,null,""]
[null,null,null,null,""]
[null,null,null,null,""]
[null,null,null,null,""]
[null,null,null,null,""]
[null,null,null,null,""]
[null,null,null,null,""]
[null,null,null,null,""]
[null,null,null,null,""]
[null,null,null,null,""]
[null,null,null,null,""]
[null,null,null,null,""]
[null,null,null,null,""]
[null,null,null,null,""]
[null,null,null,null,""]
[null,null,null,null,""]
[null,null,null,null,""]
[null,null,null,null,""]
[null,null,null,null,""]
[null,null,null,null,""]
[null,null,null,null,""]
[null,null,null,null,""]
[null,null,null,null,""]
[null,null,null,null,""]
[null,null,null,null,""]
[null,null,null,null,""]
[null,null,null,null,""]
[null,null,null,null,""]
[null,null,null,null,""]
[null,null,null,null,""]
[null,null,null,null,""]
[null,null,null,null,""]
[null,null,null,null,""]
[null,null,null,null,""]
[null,null,null,null,""]
[null,null,null,null,""]
[null,null,null,null,""]
[null,null,null,null,""]
[null,null,null,null,""]
[null,null,null,null,""]
[null,null,null,null,""]
[null,null,null,null,""]
[null,null,null,null,""]
[null,null,null,null,""]
[null,null,null,null,""]
[null,null,null,null,""]
[null,null,null,null,""]
[null,null,null,null,""]
[null,null,null,null,""]
[null,null,null,null,""]
[null,null,null,null,""]
[null,null,null,null,""]
[null,null,null,null,""]
[null,null,null,null,""]
[null,null,null,null,""]
[null,null,null,null,""]
[null,null,null,null,""]
[null,null,null,null,""]
[null,null,null,null,""]
[null,null,null,null,""]
[null,null,null,null,""]
[null,null,null,null,""]
[null,null,null,null,{"$f":"IF(D641<>\"\",E640+D641,\"\")","v":""}]
[null,null,null,null,""]
[null,null,null,null,""]
[null,null,null,null,""]
[null,null,null,null,""]
[null,null,null,null,""]
[null,null,null,null,""]
[null,null,null,null,""]
[null,null,null,null,""]
[null,null,null,null,""]
[null,null,null,null,""]
[null,null,null,null,""]
[null,null,null,null,""]
[null,null,null,null,""]
[null,null,null,null,""]
[null,null,null,null,""]
[null,null,null,null,""]
[null,null,null,null,""]
[null,null,null,null,""]
[null,null,null,null,""]
[null,null,null,null,""]
[null,null,null,null,""]
[null,null,null,null,""]
[null,null,null,null,""]
[null,null,null,null,""]
[null,null,null,null,""]
[null,null,null,null,""]
[null,null,null,null,""]
[null,null,null,null,""]
[null,null,null,null,""]
[null,null,null,null,""]
[null,null,null,null,""]
[null,null,null,null,""]
[null,null,null,null,""]
[null,null,null,null,""]
[null,null,null,null,""]
[null,null,null,null,""]
[null,null,null,null,""]
[null,null,null,null,""]
[null,null,null,null,""]
[null,null,null,null,""]
[null,null,null,null,""]
[null,null,null,null,""]
[null,null,null,null,""]
[null,null,null,null,""]
[null,null,null,null,""]
[null,null,null,null,""]
[null,null,null,null,""]
[null,null,null,null,""]
[null,null,null,null,""]
[null,null,null,null,""]
[null,null,null,null,""]
[null,null,null,null,""]
[null,null,null,null,""]
[null,null,null,null,""]
[null,null,null,null,""]
[null,null,null,null,""]
[null,null,null,null,""]
[null,null,null,null,""]
[null,null,null,null,""]
[null,null,null,null,""]
[null,null,null,null,""]
[null,null,null,null,""]
[null,null,null,null,""]
[null,null,null,null,{"$f":"IF(D705<>\"\",E704+D705,\"\")","v":""}]
[null,null,null,null,""]
[null,null,null,null,""]
[null,null,null,null,""]
[null,null,null,null,""]
[null,null,null,null,""]
[null,null,null,null,""]
[null,null,null,null,""]
[null,null,null,null,""]
[null,null,null,null,""]
[null,null,null,null,""]
[null,null,null,null,""]
[null,null,null,null,""]
[null,null,null,null,""]
[null,null,null,null,""]
[null,null,null,null,""]
[null,null,null,null,""]
[null,null,null,null,""]
[null,null,null,null,""]
[null,null,null,null,""]
[null,null,null,null,""]
[null,null,null,null,""]
[null,null,null,null,""]
[null,null,null,null,""]
[null,null,null,null,""]
[null,null,null,null,""]
[null,null,null,null,""]
[null,null,null,null,""]
[null,null,null,null,""]
[null,null,null,null,""]
[null,null,null,null,""]
[null,null,null,null,""]
[null,null,null,null,""]
[null,null,null,null,""]
[null,null,null,null,""]
[null,null,null,null,""]
[null,null,null,null,""]
[null,null,null,null,""]
[null,null,null,null,""]
[null,null,null,null,""]
[null,null,null,null,""]
[null,null,null,null,""]
[null,null,null,null,""]
[null,null,null,null,""]
[null,null,null,null,""]
[null,null,null,null,""]
[null,null,null,null,""]
[null,null,null,null,""]
[null,null,null,null,""]
[null,null,null,null,""]
[null,null,null,null,""]
[null,null,null,null,""]
[null,null,null,null,""]
[null,null,null,null,""]
[null,null,null,null,""]
[null,null,null,null,""]
[null,null,null,null,""]
[null,null,null,null,""]
[null,null,null,null,""]
[null,null,null,null,""]
[null,null,null,null,""]
[null,null,null,null,""]
[null,null,null,null,""]
[null,null,null,null,""]
[null,null,null,null,{"$f":"IF(D769<>\"\",E768+D769,\"\")","v":""}]
[null,null,null,null,""]
[null,null,null,null,""]
[null,null,null,null,""]
[null,null,null,null,""]
[null,null,null,null,""]
[null,null,null,null,""]
[null,null,null,null,""]
[null,null,null,null,""]
[null,null,null,null,""]
[null,null,null,null,""]
[null,null,null,null,""]
[null,null,null,null,""]
[null,null,null,null,""]
[null,null,null,null,""]
[null,null,null,null,""]
[null,null,null,null,""]
[null,null,null,null,""]
[null,null,null,null,""]
[null,null,null,null,""]
[null,null,null,null,""]
[null,null,null,null,""]
[null,null,null,null,""]
[null,null,null,null,""]
[null,null,null,null,""]
[null,null,null,null,""]
[null,null,null,null,""]
[null,null,null,null,""]
[null,null,null,null,""]
[null,null,null,null,""]
[null,null,null,null,""]
[null,null,null,null,""]
[null,null,null,null,""]
[null,null,null,null,""]
[null,null,null,null,""]
[null,null,null,null,""]
[null,null,null,null,""]
[null,null,null,null,""]
[null,null,null,null,""]
[null,null,null,null,""]
[null,null,null,null,""]
[null,null,null,null,""]
[null,null,null,null,""]
[null,null,null,null,""]
[null,null,null,null,""]
[null,null,null,null,""]
[null,null,null,null,""]
[null,null,null,null,""]
[null,null,null,null,""]
[null,null,null,null,""]
[null,null,null,null,""]
[null,null,null,null,""]
[null,null,null,null,""]
[null,null,null,null,""]
[null,null,null,null,""]
[null,null,null,null,""]
[null,null,null,null,""]
[null,null,null,null,""]
[null,null,null,null,""]
[null,null,null,null,""]
[null,null,null,null,""]
[null,null,null,null,""]
[null,null,null,null,""]
[null,null,null,null,""]
[null,null,null,null,{"$f":"IF(D833<>\"\",E832+D833,\"\")","v":""}]
[null,null,null,null,""]
[null,null,null,null,""]
[null,null,null,null,""]
[null,null,null,null,""]
[null,null,null,null,""]
[null,null,null,null,""]
[null,null,null,null,""]
[null,null,null,null,""]
[null,null,null,null,""]
[null,null,null,null,""]
[null,null,null,null,""]
[null,null,null,null,""]
[null,null,null,null,""]
[null,null,null,null,""]
[null,null,null,null,""]
[null,null,null,null,""]
[null,null,null,null,""]
[null,null,null,null,""]
[null,null,null,null,""]
[null,null,null,null,""]
[null,null,null,null,""]
[null,null,null,null,""]
[null,null,null,null,""]
[null,null,null,null,""]
[null,null,null,null,""]
[null,null,null,null,""]
[null,null,null,null,""]
[null,null,null,null,""]
[null,null,null,null,""]
[null,null,null,null,""]
[null,null,null,null,""]
[null,null,null,null,""]
[null,null,null,null,""]
[null,null,null,null,""]
[null,null,null,null,""]
[null,null,null,null,""]
[null,null,null,null,""]
[null,null,null,null,""]
[null,null,null,null,""]
[null,null,null,null,""]
[null,null,null,null,""]
[null,null,null,null,""]
[null,null,null,null,""]
[null,null,null,null,""]
[null,null,null,null,""]
[null,null,null,null,""]
[null,null,null,null,""]
[null,null,null,null,""]
[null,null,null,null,""]
[null,null,null,null,""]
[null,null,null,null,""]
[null,null,null,null,""]
[null,null,null,null,""]
[null,null,null,null,""]
[null,null,null,null,""]
[null,null,null,null,""]
[null,null,null,null,""]
[null,null,null,null,""]
[null,null,null,null,""]
[null,null,null,null,""]
[null,null,null,null,""]
[null,null,null,null,""]
[null,null,null,null,""]
[null,null,null,null,{"$f":"IF(D897<>\"\",E896+D897,\"\")","v":""}]
[null,null,null,null,""]
[null,null,null,null,""]
[null,null,null,null,""]
[null,null,null,null,""]
[null,null,null,null,""]
[null,null,null,null,""]
[null,null,null,null,""]
[null,null,null,null,""]
[null,null,null,null,""]
[null,null,null,null,""]
[null,null,null,null,""]
[null,null,null,null,""]
[null,null,null,null,""]
[null,null,null,null,""]
[null,null,null,null,""]
[null,null,null,null,""]
[null,null,null,null,""]
[null,null,null,null,""]
[null,null,null,null,""]
[null,null,null,null,""]
[null,null,null,null,""]
[null,null,null,null,""]
[null,null,null,null,""]
[null,null,null,null,""]
[null,null,null,null,""]
[null,null,null,null,""]
[null,null,null,null,""]
[null,null,null,null,""]
[null,null,null,null,""]
[null,null,null,null,""]
[null,null,null,null,""]
[null,null,null,null,""]
[null,null,null,null,""]
[null,null,null,null,""]
[null,null,null,null,""]
[null,null,null,null,""]
[null,null,null,null,""]
[null,null,null,null,""]
[null,null,null,null,""]
[null,null,null,null,""]
[null,null,null,null,""]
[null,null,null,null,""]
[null,null,null,null,""]
[null,null,null,null,""]
[null,null,null,null,""]
[null,null,null,null,""]
[null,null,null,null,""]
[null,null,null,null,""]
[null,null,null,null,""]
[null,null,null,null,""]
[null,null,null,null,""]
[null,null,null,null,""]
[null,null,null,null,""]
[null,null,null,null,""]
[null,null,null,null,""]
[null,null,null,null,""]
[null,null,null,null,""]
[null,null,null,null,""]
[null,null,null,null,""]
[null,null,null,null,""]
[null,null,null,null,""]
[null,null,null,null,""]
[null,null,null,null,""]
[null,null,null,null,{"$f":"IF(D961<>\"\",E960+D961,\"\")","v":""}]
[null,null,null,null,""]
[null,null,null,null,""]
[null,null,null,null,""]
[null,null,null,null,""]
[null,null,null,null,""]
[null,null,null,null,""]
[null,null,null,null,""]
[null,null,null,null,""]
[null,null,null,null,""]
[null,null,null,null,""]
[null,null,null,null,""]
[null,null,null,null,""]
[null,null,null,null,""]
[null,null,null,null,""]
[null,null,null,null,""]
[null,null,null,null,""]
[null,null,null,null,""]
[null,null,null,null,""]
[null,null,null,null,""]
[null,null,null,null,""]
[null,null,null,null,""]
[null,null,null,null,""]
[null,null,null,null,""]
[null,null,null,null,""]
[null,null,null,null,""]
[null,null,null,null,""]
[null,null,null,null,""]
[null,null,null,null,""]
[null,null,null,null,""]
[null,null,null,null,""]
[null,null,null,null,""]
[null,null,null,null,""]
[null,null,null,null,""]
[null,null,null,null,""]
[null,null,null,null,""]
[null,null,null,null,""]
[null,null,null,null,""]
[null,null,null,null,""]
[null,null,null,null,""]
[null,null,null,null,""]
[null,null,null,null,""]
[null,null,null,null,""]
[null,null,null,null,""]
[null,null,null,null,""]
[null,null,null,null,""]
[null,null,null,null,""]
[null,null,null,null,""]
[null,null,null,null,""]
[null,null,null,null,""]
[null,null,null,null,""]
[null,null,null,null,""]
[null,null,null,null,""]
[null,null,null,null,""]
[null,null,null,null,""]
[null,null,null,null,""]
[null,null,null,null,""]
[null,null,null,null,""]
[null,null,null,null,""]
[null,null,null,null,""]
[null,null,null,null,""]
[null,null,null,null,""]
[null,null,null,null,""]
[null,null,null,null,""]
[null,null,null,null,{"$f":"IF(D1025<>\"\",E1024+D1025,\"\")","v":""}]
[null,null,null,null,""]
[null,null,null,null,""]
[null,null,null,null,""]
[null,null,null,null,""]
[null,null,null,null,""]
[null,null,null,null,""]
[null,null,null,null,""]
[null,null,null,null,""]
[null,null,null,null,""]
[null,null,null,null,""]
[null,null,null,null,""]
[null,null,null,null,""]
[null,null,null,null,""]
[null,null,null,null,""]
[null,null,null,null,""]
[null,null,null,null,""]
[null,null,null,null,""]
[null,null,null,null,""]
[null,null,null,null,""]
[null,null,null,null,""]
[null,null,null,null,""]
[null,null,null,null,""]
[null,null,null,null,""]
[null,null,null,null,""]
[null,null,null,null,""]
[null,null,null,null,""]
[null,null,null,null,""]
[null,null,null,null,""]
[null,null,null,null,""]
[null,null,null,null,""]
[null,null,null,null,""]
[null,null,null,null,""]
[null,null,null,null,""]
[null,null,null,null,""]
[null,null,null,null,""]
[null,null,null,null,""]
[null,null,null,null,""]
[null,null,null,null,""]
[null,null,null,null,""]
[null,null,null,null,""]
[null,null,null,null,""]
[null,null,null,null,""]
[null,null,null,null,""]
[null,null,null,null,""]
[null,null,null,null,""]
[null,null,null,null,""]
[null,null,null,null,""]
[null,null,null,null,""]
[null,null,null,null,""]
[null,null,null,null,""]
[null,null,null,null,""]
[null,null,null,null,""]
[null,null,null,null,""]
[null,null,null,null,""]
[null,null,null,null,""]
[null,null,null,null,""]
[null,null,null,null,""]
[null,null,null,null,""]
[null,null,null,null,""]
[null,null,null,null,""]
[null,null,null,null,""]
[null,null,null,null,""]
[null,null,null,null,""]
[null,null,null,null,{"$f":"IF(D1089<>\"\",E1088+D1089,\"\")","v":""}]
[null,null,null,null,""]
[null,null,null,null,""]
[null,null,null,null,""]
[null,null,null,null,""]
[null,null,null,null,""]
[null,null,null,null,""]
[null,null,null,null,""]
[null,null,null,null,""]
[null,null,null,null,""]
[null,null,null,null,""]
[null,null,null,null,""]
[null,null,null,null,""]
[null,null,null,null,""]
[null,null,null,null,""]
[null,null,null,null,""]
[null,null,null,null,""]
[null,null,null,null,""]
[null,null,null,null,""]
[null,null,null,null,""]
[null,null,null,null,""]
[null,null,null,null,""]
[null,null,null,null,""]
[null,null,null,null,""]
[null,null,null,null,""]
[null,null,null,null,""]
[null,null,null,null,""]
[null,null,null,null,""]
[null,null,null,null,""]
[null,null,null,null,""]
[null,null,null,null,""]
[null,null,null,null,""]
[null,null,null,null,""]
[null,null,null,null,""]
[null,null,null,null,""]
[null,null,null,null,""]
[null,null,null,null,""]
[null,null,null,null,""]
[null,null,null,null,""]
[null,null,null,null,""]
[null,null,null,null,""]
[null,null,null,null,""]
[null,null,null,null,""]
[null,null,null,null,""]
[null,null,null,null,""]
[null,null,null,null,""]
[null,null,null,null,""]
[null,null,null,null,""]
[null,null,null,null,""]
[null,null,null,null,""]
[null,null,null,null,""]
[null,null,null,null,""]
[null,null,null,null,""]
[null,null,null,null,""]
[null,null,null,null,""]
[null,null,null,null,""]
[null,null,null,null,""]
[null,null,null,null,""]
[null,null,null,null,""]
[null,null,null,null,""]
[null,null,null,null,""]
[null,null,null,null,""]
[null,null,null,null,""]
[null,null,null,null,""]
[null,null,null,null,{"$f":"IF(D1153<>\"\",E1152+D1153,\"\")","v":""}]
[null,null,null,null,""]
[null,null,null,null,""]
[null,null,null,null,""]
[null,null,null,null,""]
[null,null,null,null,""]
[null,null,null,null,""]
[null,null,null,null,""]
[null,null,null,null,""]
[null,null,null,null,""]
[null,null,null,null,""]
[null,null,null,null,""]
[null,null,null,null,""]
[null,null,null,null,""]
[null,null,null,null,""]
[null,null,null,null,""]
[null,null,null,null,""]
[null,null,null,null,""]
[null,null,null,null,""]
[null,null,null,null,""]
[null,null,null,null,""]
[null,null,null,null,""]
[null,null,null,null,""]
[null,null,null,null,""]
[null,null,null,null,""]
[null,null,null,null,""]
[null,null,null,null,""]
[null,null,null,null,""]
[null,null,null,null,""]
[null,null,null,null,""]
[null,null,null,null,""]
[null,null,null,null,""]
[null,null,null,null,""]
[null,null,null,null,""]
[null,null,null,null,""]
[null,null,null,null,""]
[null,null,null,null,""]
[null,null,null,null,""]
[null,null,null,null,""]
[null,null,null,null,""]
[null,null,null,null,""]
[null,null,null,null,""]
[null,null,null,null,""]
[null,null,null,null,""]
[null,null,null,null,""]
[null,null,null,null,""]
[null,null,null,null,""]
[null,null,null,null,""]
[null,null,null,null,""]
[null,null,null,null,""]
[null,null,null,null,""]
[null,null,null,null,""]
[null,null,null,null,""]
[null,null,null,null,""]
[null,null,null,null,""]
[null,null,null,null,""]
[null,null,null,null,""]
[null,null,null,null,""]
[null,null,null,null,""]
[null,null,null,null,""]
[null,null,null,null,""]
[null,null,null,null,""]
[null,null,null,null,""]
[null,null,null,null,""]
[null,null,null,null,{"$f":"IF(D1217<>\"\",E1216+D1217,\"\")","v":""}]
[null,null,null,null,""]
[null,null,null,null,""]
[null,null,null,null,""]
[null,null,null,null,""]
[null,null,null,null,""]
[null,null,null,null,""]
[null,null,null,null,""]
[null,null,null,null,""]
[null,null,null,null,""]
[null,null,null,null,""]
[null,null,null,null,""]
[null,null,null,null,""]
[null,null,null,null,""]
[null,null,null,null,""]
[null,null,null,null,""]
[null,null,null,null,""]
[null,null,null,null,""]
[null,null,null,null,""]
[null,null,null,null,""]
[null,null,null,null,""]
[null,null,null,null,""]
[null,null,null,null,""]
[null,null,null,null,""]
[null,null,null,null,""]
[null,null,null,null,""]
[null,null,null,null,""]
[null,null,null,null,""]
[null,null,null,null,""]
[null,null,null,null,""]
[null,null,null,null,""]
[null,null,null,null,""]
[null,null,null,null,""]
[null,null,null,null,""]
[null,null,null,null,""]
[null,null,null,null,""]
[null,null,null,null,""]
[null,null,null,null,""]
[null,null,null,null,""]
[null,null,null,null,""]
[null,null,null,null,""]
[null,null,null,null,""]
[null,null,null,null,""]
[null,null,null,null,""]
[null,null,null,null,""]
[null,null,null,null,""]
[null,null,null,null,""]
[null,null,null,null,""]
[null,null,null,null,""]
[null,null,null,null,""]
[null,null,null,null,""]
[null,null,null,null,""]
[null,null,null,null,""]
[null,null,null,null,""]
[null,null,null,null,""]
[null,null,null,null,""]
[null,null,null,null,""]
[null,null,null,null,""]
[null,null,null,null,""]
[null,null,null,null,""]
[null,null,null,null,""]
[null,null,null,null,""]
[null,null,null,null,""]
[null,null,null,null,""]
[null,null,null,null,{"$f":"IF(D1281<>\"\",E1280+D1281,\"\")","v":""}]
[null,null,null,null,""]
[null,null,null,null,""]
[null,null,null,null,""]
[null,null,null,null,""]
[null,null,null,null,""]
[null,null,null,null,""]
[null,null,null,null,""]
[null,null,null,null,""]
[null,null,null,null,""]
[null,null,null,null,""]
[null,null,null,null,""]
[null,null,null,null,""]
[null,null,null,null,""]
[null,null,null,null,""]
[null,null,null,null,""]
[null,null,null,null,""]
[null,null,null,null,""]
[null,null,null,null,""]
[null,null,null,null,""]
[null,null,null,null,""]
[null,null,null,null,""]
[null,null,null,null,""]
[null,null,null,null,""]
[null,null,null,null,""]
[null,null,null,null,""]
[null,null,null,null,""]
[null,null,null,null,""]
[null,null,null,null,""]
[null,null,null,null,""]
[null,null,null,null,""]
[null,null,null,null,""]
[null,null,null,null,""]
[null,null,null,null,""]
[null,null,null,null,""]
[null,null,null,null,""]
[null,null,null,null,""]
[null,null,null,null,""]
[null,null,null,null,""]
[null,null,null,null,""]
[null,null,null,null,""]
[null,null,null,null,""]
[null,null,null,null,""]
[null,null,null,null,""]
[null,null,null,null,""]
[null,null,null,null,""]
[null,null,null,null,""]
[null,null,null,null,""]
[null,null,null,null,""]
[null,null,null,null,""]
[null,null,null,null,""]
[null,null,null,null,""]
[null,null,null,null,""]
[null,null,null,null,""]
[null,null,null,null,""]
[null,null,null,null,""]
[null,null,null,null,""]
[null,null,null,null,""]
[null,null,null,null,""]
[null,null,null,null,""]
[null,null,null,null,""]
[null,null,null,null,""]
[null,null,null,null,""]
[null,null,null,null,""]
[null,null,null,null,{"$f":"IF(D1345<>\"\",E1344+D1345,\"\")","v":""}]
[null,null,null,null,""]
[null,null,null,null,""]
[null,null,null,null,""]
[null,null,null,null,""]
[null,null,null,null,""]
[null,null,null,null,""]
[null,null,null,null,""]
[null,null,null,null,""]
[null,null,null,null,""]
[null,null,null,null,""]
[null,null,null,null,""]
[null,null,null,null,""]
[null,null,null,null,""]
[null,null,null,null,""]
[null,null,null,null,""]
[null,null,null,null,""]
[null,null,null,null,""]
[null,null,null,null,""]
[null,null,null,null,""]
[null,null,null,null,""]
[null,null,null,null,""]
[null,null,null,null,""]
[null,null,null,null,""]
[null,null,null,null,""]
[null,null,null,null,""]
[null,null,null,null,""]
[null,null,null,null,""]
[null,null,null,null,""]
[null,null,null,null,""]
[null,null,null,null,""]
[null,null,null,null,""]
[null,null,null,null,""]
[null,null,null,null,""]
[null,null,null,null,""]
[null,null,null,null,""]
[null,null,null,null,""]
[null,null,null,null,""]
[null,null,null,null,""]
[null,null,null,null,""]
[null,null,null,null,""]
[null,null,null,null,""]
[null,null,null,null,""]
[null,null,null,null,""]
[null,null,null,null,""]
[null,null,null,null,""]
[null,null,null,null,""]
[null,null,null,null,""]
[null,null,null,null,""]
[null,null,null,null,""]
[null,null,null,null,""]
[null,null,null,null,""]
[null,null,null,null,""]
[null,null,null,null,""]
[null,null,null,null,""]
[null,null,null,null,""]
[null,null,null,null,""]
[null,null,null,null,""]
[null,null,null,null,""]
[null,null,null,null,""]
[null,null,null,null,""]
[null,null,null,null,""]
[null,null,null,null,""]
[null,null,null,null,""]
[null,null,null,null,{"$f":"IF(D1409<>\"\",E1408+D1409,\"\")","v":""}]
[null,null,null,null,""]
[null,null,null,null,""]
[null,null,null,null,""]
[null,null,null,null,""]
[null,null,null,null,""]
[null,null,null,null,""]
[null,null,null,null,""]
[null,null,null,null,""]
[null,null,null,null,""]
[null,null,null,null,""]
[null,null,null,null,""]
[null,null,null,null,""]
[null,null,null,null,""]
[null,null,null,null,""]
[null,null,null,null,""]
[null,null,null,null,""]
[null,null,null,null,""]
[null,null,null,null,""]
[null,null,null,null,""]
[null,null,null,null,""]
[null,null,null,null,""]
[null,null,null,null,""]
[null,null,null,null,""]
[null,null,null,null,""]
[null,null,null,null,""]
[null,null,null,null,""]
[null,null,null,null,""]
[null,null,null,null,""]
[null,null,null,null,""]
[null,null,null,null,""]
[null,null,null,null,""]
[null,null,null,null,""]
[null,null,null,null,""]
[null,null,null,null,""]
[null,null,null,null,""]
[null,null,null,null,""]
[null,null,null,null,""]
[null,null,null,null,""]
[null,null,null,null,""]
[null,null,null,null,""]
[null,null,null,null,""]
[null,null,null,null,""]
[null,null,null,null,""]
[null,null,null,null,""]
[null,null,null,null,""]
[null,null,null,null,""]
[null,null,null,null,""]
[null,null,null,null,""]
[null,null,null,null,""]
[null,null,null,null,""]
[null,null,null,null,""]
[null,null,null,null,""]
[null,null,null,null,""]
[null,null,null,null,""]
[null,null,null,null,""]
[null,null,null,null,""]
[null,null,null,null,""]
[null,null,null,null,""]
[null,null,null,null,""]
[null,null,null,null,""]
[null,null,null,null,""]
[null,null,null,null,""]
[null,null,null,null,""]
[null,null,null,null,{"$f":"IF(D1473<>\"\",E1472+D1473,\"\")","v":""}]
[null,null,null,null,""]
[null,null,null,null,""]
[null,null,null,null,""]
[null,null,null,null,""]
[null,null,null,null,""]
[null,null,null,null,""]
[null,null,null,null,""]
[null,null,null,null,""]
[null,null,null,null,""]
[null,null,null,null,""]
[null,null,null,null,""]
[null,null,null,null,""]
[null,null,null,null,""]
[null,null,null,null,""]
[null,null,null,null,""]
[null,null,null,null,""]
[null,null,null,null,""]
[null,null,null,null,""]
[null,null,null,null,""]
[null,null,null,null,""]
[null,null,null,null,""]
[null,null,null,null,""]
[null,null,null,null,""]
[null,null,null,null,""]
[null,null,null,null,""]
[null,null,null,null,""]
[null,null,null,null,""]
[null,null,null,null,""]
[null,null,null,null,""]
[null,null,null,null,""]
[null,null,null,null,""]
[null,null,null,null,""]
[null,null,null,null,""]
[null,null,null,null,""]
[null,null,null,null,""]
[null,null,null,null,""]
[null,null,null,null,""]
[null,null,null,null,""]
[null,null,null,null,""]
[null,null,null,null,""]
[null,null,null,null,""]
[null,null,null,null,""]
[null,null,null,null,""]
[null,null,null,null,""]
[null,null,null,null,""]
[null,null,null,null,""]
[null,null,null,null,""]
[null,null,null,null,""]
[null,null,null,null,""]
[null,null,null,null,""]
[null,null,null,null,""]
[null,null,null,null,""]
[null,null,null,null,""]
[null,null,null,null,""]
[null,null,null,null,""]
[null,null,null,null,""]
[null,null,null,null,""]
[null,null,null,null,""]
[null,null,null,null,""]
[null,null,null,null,""]
[null,null,null,null,""]
[null,null,null,null,""]
[null,null,null,null,""]
[null,null,null,null,{"$f":"IF(D1537<>\"\",E1536+D1537,\"\")","v":""}]
[null,null,null,null,""]
[null,null,null,null,""]
[null,null,null,null,""]
[null,null,null,null,""]
[null,null,null,null,""]
[null,null,null,null,""]
[null,null,null,null,""]
[null,null,null,null,""]
[null,null,null,null,""]
[null,null,null,null,""]
[null,null,null,null,""]
[null,null,null,null,""]
[null,null,null,null,""]
[null,null,null,null,""]
[null,null,null,null,""]
[null,null,null,null,""]
[null,null,null,null,""]
[null,null,null,null,""]
[null,null,null,null,""]
[null,null,null,null,""]
[null,null,null,null,""]
[null,null,null,null,""]
[null,null,null,null,""]
[null,null,null,null,""]
[null,null,null,null,""]
[null,null,null,null,""]
[null,null,null,null,""]
[null,null,null,null,""]
[null,null,null,null,""]
[null,null,null,null,""]
[null,null,null,null,""]
[null,null,null,null,""]
[null,null,null,null,""]
[null,null,null,null,""]
[null,null,null,null,""]
[null,null,null,null,""]
[null,null,null,null,""]
[null,null,null,null,""]
[null,null,null,null,""]
[null,null,null,null,""]
[null,null,null,null,""]
[null,null,null,null,""]
[null,null,null,null,""]
[null,null,null,null,""]
[null,null,null,null,""]
[null,null,null,null,""]
[null,null,null,null,""]
[null,null,null,null,""]
[null,null,null,null,""]
[null,null,null,null,""]
[null,null,null,null,""]
[null,null,null,null,""]
[null,null,null,null,""]
[null,null,null,null,""]
[null,null,null,null,""]
[null,null,null,null,""]
[null,null,null,null,""]
[null,null,null,null,""]
[null,null,null,null,""]
[null,null,null,null,""]
[null,null,null,null,""]
[null,null,null,null,""]
[null,null,null,null,""]
[null,null,null,null,{"$f":"IF(D1601<>\"\",E1600+D1601,\"\")","v":""}]
[null,null,null,null,""]
[null,null,null,null,""]
[null,null,null,null,""]
[null,null,null,null,""]
[null,null,null,null,""]
[null,null,null,null,""]
[null,null,null,null,""]
[null,null,null,null,""]
[null,null,null,null,""]
[null,null,null,null,""]
[null,null,null,null,""]
[null,null,null,null,""]
[null,null,null,null,""]
[null,null,null,null,""]
[null,null,null,null,""]
[null,null,null,null,""]
[null,null,null,null,""]
[null,null,null,null,""]
[null,null,null,null,""]
[null,null,null,null,""]
[null,null,null,null,""]
[null,null,null,null,""]
[null,null,null,null,""]
[null,null,null,null,""]
[null,null,null,null,""]
[null,null,null,null,""]
[null,null,null,null,""]
[null,null,null,null,""]
[null,null,null,null,""]
[null,null,null,null,""]
[null,null,null,null,""]
[null,null,null,null,""]
[null,null,null,null,""]
[null,null,null,null,""]
[null,null,null,null,""]
[null,null,null,null,""]
[null,null,null,null,""]
[null,null,null,null,""]
[null,null,null,null,""]
[null,null,null,null,""]
[null,null,null,null,""]
[null,null,null,null,""]
[null,null,null,null,""]
[null,null,null,null,""]
[null,null,null,null,""]
[null,null,null,null,""]
[null,null,null,null,""]
[null,null,null,null,""]
[null,null,null,null,""]
[null,null,null,null,""]
[null,null,null,null,""]
[null,null,null,null,""]
[null,null,null,null,""]
[null,null,null,null,""]
[null,null,null,null,""]
[null,null,null,null,""]
[null,null,null,null,""]
[null,null,null,null,""]
[null,null,null,null,""]
[null,null,null,null,""]
[null,null,null,null,""]
[null,null,null,null,""]
[null,null,null,null,""]
[null,null,null,null,{"$f":"IF(D1665<>\"\",E1664+D1665,\"\")","v":""}]
[null,null,null,null,""]
[null,null,null,null,""]
[null,null,null,null,""]
[null,null,null,null,""]
[null,null,null,null,""]
[null,null,null,null,""]
[null,null,null,null,""]
[null,null,null,null,""]
[null,null,null,null,""]
[null,null,null,null,""]
[null,null,null,null,""]
[null,null,null,null,""]
[null,null,null,null,""]
[null,null,null,null,""]
[null,null,null,null,""]
[null,null,null,null,""]
[null,null,null,null,""]
[null,null,null,null,""]
[null,null,null,null,""]
[null,null,null,null,""]
[null,null,null,null,""]
[null,null,null,null,""]
[null,null,null,null,""]
[null,null,null,null,""]
[null,null,null,null,""]
[null,null,null,null,""]
[null,null,null,null,""]
[null,null,null,null,""]
[null,null,null,null,""]
[null,null,null,null,""]
[null,null,null,null,""]
[null,null,null,null,""]
[null,null,null,null,""]
[null,null,null,null,""]
[null,null,null,null,""]
[null,null,null,null,""]
[null,null,null,null,""]
[null,null,null,null,""]
[null,null,null,null,""]
[null,null,null,null,""]
[null,null,null,null,""]
[null,null,null,null,""]
[null,null,null,null,""]
[null,null,null,null,""]
[null,null,null,null,""]
[null,null,null,null,""]
[null,null,null,null,""]
[null,null,null,null,""]
[null,null,null,null,""]
[null,null,null,null,""]
[null,null,null,null,""]
[null,null,null,null,""]
[null,null,null,null,""]
[null,null,null,null,""]
[null,null,null,null,""]
[null,null,null,null,""]
[null,null,null,null,""]
[null,null,null,null,""]
[null,null,null,null,""]
[null,null,null,null,""]
[null,null,null,null,""]
[null,null,null,null,""]
[null,null,null,null,""]
[null,null,null,null,{"$f":"IF(D1729<>\"\",E1728+D1729,\"\")","v":""}]
[null,null,null,null,""]
[null,null,null,null,""]
[null,null,null,null,""]
[null,null,null,null,""]
[null,null,null,null,""]
[null,null,null,null,""]
[null,null,null,null,""]
[null,null,null,null,""]
[null,null,null,null,""]
[null,null,null,null,""]
[null,null,null,null,""]
[null,null,null,null,""]
[null,null,null,null,""]
[null,null,null,null,""]
[null,null,null,null,""]
[null,null,null,null,""]
[null,null,null,null,""]
[null,null,null,null,""]
[null,null,null,null,""]
[null,null,null,null,""]
[null,null,null,null,""]
[null,null,null,null,""]
[null,null,null,null,""]
[null,null,null,null,""]
[null,null,null,null,""]
[null,null,null,null,""]
[null,null,null,null,""]
[null,null,null,null,""]
[null,null,null,null,""]
[null,null,null,null,""]
[null,null,null,null,""]
[null,null,null,null,""]
[null,null,null,null,""]
[null,null,null,null,""]
[null,null,null,null,""]
[null,null,null,null,""]
[null,null,null,null,""]
[null,null,null,null,""]
[null,null,null,null,""]
[null,null,null,null,""]
[null,null,null,null,""]
[null,null,null,null,""]
[null,null,null,null,""]
[null,null,null,null,""]
[null,null,null,null,""]
[null,null,null,null,""]
[null,null,null,null,""]
[null,null,null,null,""]
[null,null,null,null,""]
[null,null,null,null,""]
[null,null,null,null,""]
[null,null,null,null,""]
[null,null,null,null,""]
[null,null,null,null,""]
[null,null,null,null,""]
[null,null,null,null,""]
[null,null,null,null,""]
[null,null,null,null,""]
[null,null,null,null,""]
[null,null,null,null,""]
[null,null,null,null,""]
[null,null,null,null,""]
[null,null,null,null,""]
[null,null,null,null,{"$f":"IF(D1793<>\"\",E1792+D1793,\"\")","v":""}]
[null,null,null,null,""]
[null,null,null,null,""]

{"sheet":"Field Evaluation","index":6,"n_rows":55,"n_cols":14,"rows_kept":55,"cut":false,"hidden":false,"merged":[[49,3,49,6],[50,3,50,6],[51,3,51,6],[55,1,63,14],[52,3,52,6],[46,11,46,14],[30,11,30,14],[31,11,31,14],[37,12,37,14],[38,11,38,12],[38,13,38,14],[39,11,39,12],[39,13,39,14],[40,11,40,12],[40,13,40,14],[41,11,41,12],[41,13,41,14],[45,11,45,14],[23,3,23,6],[23,11,23,14],[24,3,24,6],[27,11,27,14],[28,1,29,5],[28,11,28,14],[29,11,29,14],[18,3,18,6],[19,11,19,14],[20,11,20,14],[21,11,21,14],[22,3,22,6],[22,11,22,14],[17,9,17,13],[11,3,11,6],[11,11,11,14],[12,3,12,6],[12,11,12,14],[13,3,13,6],[13,11,13,14],[14,3,14,6],[14,11,14,14],[15,3,15,6],[15,11,15,12],[16,3,16,6],[1,3,1,12],[4,3,4,5],[4,8,4,10],[6,3,6,5],[6,8,6,10],[4,13,4,15],[5,3,5,5],[5,8,5,10],[5,13,5,15],[10,3,10,6],[10,11,10,12],[6,13,6,15],[8,1,8,3],[8,9,8,13]]}
[]
[null,null,null,"Center-pivot sprinkle irrigation evaluation"]
[]
[]
[null,null,"Location ",null,null,null,null,"Observers ",null,null,null,null,"Date "]
[null,null,"Owner ",null,null,null,null,"Coordinates ",null,null,null,null,"Start Time "]
[null,null,"Pivot ID ",null,null,null,null,"Elevation ",null,null,null,null,"End Time "]
[]
[null,"Pivot and site data",null,null,null,null,null,null,null,"Agronomic and metorlogical data"]
[]
[null,null,"Pivot manufacturer ",null,null,null,null,null,null,null,"Wind direction ",null,null,"Speed"]
[null,null,"Distance to last tower ",null,null,null,null,null,null,null,"Weather conditions "]
[null,null,"Number of towers ",null,null,null,null,null,null,null,"Crop "]
[null,null,"Field elevation ∆(+/-) ",null,null,null,null,null,null,null,"Crop height "]
[null,null,"Nozzle head type/brand ",null,null,null,null,null,null,null,"Soil type "]
[null,null,"Drop spacing ",null,null,null,null,null,null,"Temperature: ","Wet Bulb",null,null,"Dry bulb"]
[null,null,"Nozzle height "]
[null,null,"Pressure regulators",null,"set at (psi)",null,null,null,null,"Pivot settings and flow rate"]
[null,null,"Wetted radius of pivot "]
[null,null,null,null,null,null,null,null,null,null,"Speed setting "]
[null,"End tower travel speed",null,null,null,null,null,null,null,null,"Pressure at inlet "]
[null,null,null,null,null,null,null,null,null,null,"Hour meter reading "]
[null,null,"Time marker set ",null,null,null,null,null,null,null,"Flow rate "]
[null,null,"End time ",null,null,null,null,null,null,null,"Time of flow measure "]
[null,null,"Distance traveled "]
[null,null,null,null,null,null,null,null,null,"Application rate/intensity at last nozzle"]
[null,"Pivot position"]
[null,null,null,null,null,null,null,null,null,null,"Last Nozzle pattern diameter "]
[null,"Show position of pivot, catch cans, evaporation cans, wind and runoff",null,null,null,null,null,null,null,null,"Time water hit can "]
[null,null,null,null,null,null,null,null,null,null,"Time stopped hitting can "]
[null,null,null,null,null,null,null,null,null,null,"Last nozzle flow rate "]
[null,null,null,null,null,null,null,null,null,null,"Pressure at last nozzle "]
[]
[null,null,null,null,null,null,null,null,null,"Evaporation during study"]
[]
[null,null,null,null,null,null,null,null,null,"Initial time",null,null,"Final time"]
[]
[null,null,null,null,null,null,null,null,null,null,null,null,"Volume"]
[null,null,null,null,null,null,null,null,null,null,null,"Initial",null,"Final"]
[null,null,null,null,null,null,null,null,null,null,"Evap can 1 "]
[null,null,null,null,null,null,null,null,null,null,"Evap can 2 "]
[null,null,null,null,null,null,null,null,null,null,"Evap can 3 "]
[]
[null,null,null,null,null,null,null,null,null,"Runoff"]
[]
[null,null,null,null,null,null,null,null,null,null,"Surface runoff at 3/4 point"]
[null,null,null,null,null,null,"North",null,null,null,"Surface runoff at end"]
[null,"Catch can Information"]
[]
[null,null,"Type Used ",null,null,null,null,"Centimeters","Inches"]
[null,null,"Diameter "]
[null,null,"Height  above ground "]
[null,null,"Can Spacing "]
[]
[null,"Additional observations"]

{"sheet":"Catchcan","index":7,"n_rows":655,"n_cols":25,"rows_kept":655,"cut":false,"hidden":false,"merged":[[1,3,1,9],[24,5,25,8],[24,9,25,9],[26,5,27,8],[26,9,27,9],[22,5,23,8],[22,9,23,9],[18,5,19,8],[20,5,21,8],[18,9,19,9],[20,9,21,9],[3,8,5,8],[12,5,13,8],[16,5,17,8],[9,2,10,2],[14,5,15,7],[16,9,17,9],[12,9,13,9],[4,2,5,2],[3,9,5,9],[4,1,5,1],[3,5,5,5],[3,7,5,7],[4,3,5,3],[3,6,5,6]]}
[null,null,null,null,null,null,null,null,null,null,null,null,null,null,null,null,null,null,1,{"$f":"IF(T2<>\"\",T2,T3)","v":""}]
[null,null,null,"Uniformity using catch can data",null,null,null,null,null,null,null,null,null,null,null,null,null,null,false,{"$f":"IF(AND(D7<>\"\",S2=TRUE),PI()*D7^2/4/2.54^2,\"\")","v":""}]
[null,null,null,null,null,null,null,null,null,null,null,null,null,null,null,null,null,null,false,{"$f":"IF(AND(D7<>\"\",S3=TRUE),PI()*D7^2/4,\"\")","v":""}]
[null,null,null,null,null,"Measured system flow rate (gpm)","Pressure at the pivot point (psi)","End tower speed (ft/min)","Distance to last tower    (ft)","Wetted radius of Pivot (ft)",null,null,null,null,null,null,null,null,null,{"$f":"COUNTA(D13:D360)","v":0}]
[null,"Catch recorded in units of","Catch can spacing (ft)","Catch Can diameter"]
[null,null,null,null,null,null,null,null,null,null,null,null,null,null,null,null,null,null,null,null,"Heerman and Hein CU "]
[null,null,{"$f":"IF('Field Evaluation'!D53<>\"\",'Field Evaluation'!D53,\"\")","v":""},{"$f":"IF('Field Evaluation'!D51<>\"\",'Field Evaluation'!D51,\"\")","v":""},null,{"$f":"IF('Field Evaluation'!L23<>\"\",'Field Evaluation'!L23,\"\")","v":""},{"$f":"IF('Field Evaluation'!L21<>\"\",'Field Evaluation'!L21,\"\")","v":""},{"$f":"IF('Field Evaluation'!D23<>\"\",'Field Evaluation'!D25/('Field Evaluation'!D24-'Field Evaluation'!D23)/1440,\"\")","v":""},{"$f":"IF('Field Evaluation'!D12<>\"\",'Field Evaluation'!D12,\"\")","v":""},{"$f":"IF('Field Evaluation'!D19<>\"\",'Field Evaluation'!D19,\"\")","v":""},null,null,null,null,null,null,null,null,{"$f":"SUM(IF(ISBLANK(Catch),0,Distance))","v":0},null,{"$f":"SUM(IF(ISBLANK(Catch),0,ABS(Catch-$S$10)*Distance))","v":0}]
[null,null,null,null,null,null,null,null,null,null,null,null,null,null,null,null,null,null,{"$f":"SUM(D13:D360)","v":0},null,null,{"$f":"IF(U9<>0,U7/U9,\"\")","v":""}]
[null,null,null,null,null,null,null,null,null,null,null,null,null,null,null,null,null,null,"Weighted Catch Can Volume",null,{"$f":"SUM(IF(ISBLANK(Catch),0,C13:C360*D13:D360))","v":0}]
[null,null,"Distance from Pivot",null,null,null,null,null,null,null,null,null,null,null,null,null,null,null,{"$f":"IF(S7<>0,U9/S7,\"\")","v":""}]
[null,null,null,"Catch"]
[null,"Can number","(feet) ",{"$f":"IF(S1=1,\"(cc)\",\"(in)\")","v":"(cc)"},null,null,null,null,null,null,null,null,null,null,null,null,null,null,{"$f":"COUNTA(D13:D360)","v":0}]
[null,1,{"$f":"IF(D13=\"\",\"\",C7)","v":""},null,null,"Uniformity coefficient CU",null,null,null,{"$f":"IF(AND(V8<>\"\",C7<>\"\"),(1-V8),\"\")","v":""}]
[null,{"$f":"B13+1","v":2},{"$f":"IF(D14=\"\",\"\",C13+$C$7)","v":""}]
[null,{"$f":"B14+1","v":3},{"$f":"IF(D15=\"\",\"\",C14+$C$7)","v":""},null,null,"Distribution Uniformity",null,null,"Calculated"]
[null,4,"",null,null,null,null,null,"Approximated",{"$f":"IF(J13<>\"\",1-1.59*(1-J13),\"\")","v":""}]
[null,5,"",null,null,"Average depth applied (in)",null,null,null,{"$f":"IF(AND(T1<>\"\",COUNTA(D13:D360)<>0,C7<>\"\"),IF(S1=1,SUM(D13:D360)/(T1*2.54^3)/COUNTA(D13:D360),SUM(D13:D360)/COUNTA(D13:D360)/T1),\"\")","v":""}]
[null,6,""]
[null,7,"",null,null,"Area irrigated (ac)",null,null,null,{"$f":"IF(J7<>\"\",PI()*J7^2/43560,\"\")","v":""}]
[null,8,""]
[null,9,"",null,null,"Hours per revolution (hrs)",null,null,null,{"$f":"IF(I7<>\"\",2*PI()*I7/60/H7,\"\")","v":""}]
[null,10,""]
[null,11,"",null,null,"Gross Depth Applied (in)",null,null,null,{"$f":"IF(J19<>\"\",J21*F7/J19/453,\"\")","v":""}]
[null,12,""]
[null,13,"",null,null,"Esitmated Application Efficiency %",null,null,null,{"$f":"IF(J23<>\"\",J17/J23,\"\")","v":""}]
[null,14,""]
[null,15,"",null,null,"System Efficiency %",null,null,null,{"$f":"IF(J25<>\"\",IF(J15<>\"\",J15*J25,J16*J25),\"\")","v":""}]
[null,16,""]
[null,17,""]
[null,18,""]
[null,19,""]
[null,20,""]
[null,21,""]
[null,22,""]
[null,23,""]
[null,24,""]
[null,25,""]
[null,26,""]
[null,27,""]
[null,28,""]
[null,29,""]
[null,30,""]
[null,31,""]
[null,32,""]
[null,33,""]
[null,34,""]
[null,35,""]
[null,36,""]
[null,37,""]
[null,38,""]
[null,39,""]
[null,40,""]
[null,41,""]
[null,42,""]
[null,43,""]
[null,44,""]
[null,45,""]
[null,46,""]
[null,47,""]
[null,48,""]
[null,49,""]
[null,50,""]
[null,51,""]
[null,52,""]
[null,53,""]
[null,54,""]
[null,55,""]
[null,56,""]
[null,57,""]
[null,58,""]
[null,59,""]
[null,60,""]
[null,61,""]
[null,62,""]
[null,63,""]
[null,64,""]
[null,65,""]
[null,66,""]
[null,{"$f":"B78+1","v":67},{"$f":"IF(D79=\"\",\"\",C78+$C$7)","v":""}]
[null,68,""]
[null,69,""]
[null,70,""]
[null,71,""]
[null,72,""]
[null,73,""]
[null,74,""]
[null,75,""]
[null,76,""]
[null,77,""]
[null,78,""]
[null,79,""]
[null,80,""]
[null,81,""]
[null,82,""]
[null,83,""]
[null,84,""]
[null,85,""]
[null,86,""]
[null,87,""]
[null,88,""]
[null,89,""]
[null,90,""]
[null,91,""]
[null,92,""]
[null,93,""]
[null,94,""]
[null,95,""]
[null,96,""]
[null,97,""]
[null,98,""]
[null,99,""]
[null,100,""]
[null,101,""]
[null,102,""]
[null,103,""]
[null,104,""]
[null,105,""]
[null,106,""]
[null,107,""]
[null,108,""]
[null,109,""]
[null,110,""]
[null,111,""]
[null,112,""]
[null,113,""]
[null,114,""]
[null,115,""]
[null,116,""]
[null,117,""]
[null,118,""]
[null,119,""]
[null,120,""]
[null,121,""]
[null,122,""]
[null,123,""]
[null,124,""]
[null,125,""]
[null,126,""]
[null,127,""]
[null,128,""]
[null,129,""]
[null,130,""]
[null,{"$f":"B142+1","v":131},{"$f":"IF(D143=\"\",\"\",C142+$C$7)","v":""}]
[null,132,""]
[null,133,""]
[null,134,""]
[null,135,""]
[null,136,""]
[null,137,""]
[null,138,""]
[null,139,""]
[null,140,""]
[null,141,""]
[null,142,""]
[null,143,""]
[null,144,""]
[null,145,""]
[null,146,""]
[null,147,""]
[null,148,""]
[null,149,""]
[null,150,""]
[null,151,""]
[null,152,""]
[null,153,""]
[null,154,""]
[null,155,""]
[null,156,""]
[null,157,""]
[null,158,""]
[null,159,""]
[null,160,""]
[null,161,""]
[null,162,""]
[null,163,""]
[null,164,""]
[null,165,""]
[null,166,""]
[null,167,""]
[null,168,""]
[null,169,""]
[null,170,"",null,null,null,null,null,null,null,null,null,null,null,null,null,null,null,null,null,null,null,null,null,{"$f":"IF(AND(D182<=$X$1,X182>0),C182,\"\")","v":""}]
[null,171,"",null,null,null,null,null,null,null,null,null,null,null,null,null,null,null,null,null,null,null,null,null,""]
[null,172,"",null,null,null,null,null,null,null,null,null,null,null,null,null,null,null,null,null,null,null,null,null,""]
[null,173,"",null,null,null,null,null,null,null,null,null,null,null,null,null,null,null,null,null,null,null,null,null,""]
[null,174,"",null,null,null,null,null,null,null,null,null,null,null,null,null,null,null,null,null,null,null,null,null,""]
[null,175,"",null,null,null,null,null,null,null,null,null,null,null,null,null,null,null,null,null,null,null,null,null,""]
[null,176,"",null,null,null,null,null,null,null,null,null,null,null,null,null,null,null,null,null,null,null,null,null,""]
[null,177,"",null,null,null,null,null,null,null,null,null,null,null,null,null,null,null,null,null,null,null,null,null,""]
[null,178,"",null,null,null,null,null,null,null,null,null,null,null,null,null,null,null,null,null,null,null,null,null,""]
[null,179,"",null,null,null,null,null,null,null,null,null,null,null,null,null,null,null,null,null,null,null,null,null,""]
[null,180,"",null,null,null,null,null,null,null,null,null,null,null,null,null,null,null,null,null,null,null,null,null,""]
[null,181,"",null,null,null,null,null,null,null,null,null,null,null,null,null,null,null,null,null,null,null,null,null,""]
[null,182,"",null,null,null,null,null,null,null,null,null,null,null,null,null,null,null,null,null,null,null,null,null,""]
[null,183,"",null,null,null,null,null,null,null,null,null,null,null,null,null,null,null,null,null,null,null,null,null,""]
[null,184,"",null,null,null,null,null,null,null,null,null,null,null,null,null,null,null,null,null,null,null,null,null,""]
[null,185,"",null,null,null,null,null,null,null,null,null,null,null,null,null,null,null,null,null,null,null,null,null,""]
[null,186,"",null,null,null,null,null,null,null,null,null,null,null,null,null,null,null,null,null,null,null,null,null,""]
[null,187,"",null,null,null,null,null,null,null,null,null,null,null,null,null,null,null,null,null,null,null,null,null,""]
[null,188,"",null,null,null,null,null,null,null,null,null,null,null,null,null,null,null,null,null,null,null,null,null,""]
[null,189,"",null,null,null,null,null,null,null,null,null,null,null,null,null,null,null,null,null,null,null,null,null,""]
[null,190,"",null,null,null,null,null,null,null,null,null,null,null,null,null,null,null,null,null,null,null,null,null,""]
[null,191,"",null,null,null,null,null,null,null,null,null,null,null,null,null,null,null,null,null,null,null,null,null,""]
[null,192,"",null,null,null,null,null,null,null,null,null,null,null,null,null,null,null,null,null,null,null,null,null,""]
[null,193,"",null,null,null,null,null,null,null,null,null,null,null,null,null,null,null,null,null,null,null,null,null,""]
[null,194,"",null,null,null,null,null,null,null,null,null,null,null,null,null,null,null,null,null,null,null,null,null,""]
[null,{"$f":"B206+1","v":195},{"$f":"IF(D207=\"\",\"\",C206+$C$7)","v":""},null,null,null,null,null,null,null,null,null,null,null,null,null,null,null,null,null,null,null,null,null,""]
[null,196,"",null,null,null,null,null,null,null,null,null,null,null,null,null,null,null,null,null,null,null,null,null,""]
[null,197,"",null,null,null,null,null,null,null,null,null,null,null,null,null,null,null,null,null,null,null,null,null,""]
[null,198,"",null,null,null,null,null,null,null,null,null,null,null,null,null,null,null,null,null,null,null,null,null,""]
[null,199,"",null,null,null,null,null,null,null,null,null,null,null,null,null,null,null,null,null,null,null,null,null,""]
[null,200,"",null,null,null,null,null,null,null,null,null,null,null,null,null,null,null,null,null,null,null,null,null,""]
[null,201,"",null,null,null,null,null,null,null,null,null,null,null,null,null,null,null,null,null,null,null,null,null,""]
[null,202,"",null,null,null,null,null,null,null,null,null,null,null,null,null,null,null,null,null,null,null,null,null,""]
[null,203,"",null,null,null,null,null,null,null,null,null,null,null,null,null,null,null,null,null,null,null,null,null,""]
[null,204,"",null,null,null,null,null,null,null,null,null,null,null,null,null,null,null,null,null,null,null,null,null,""]
[null,205,"",null,null,null,null,null,null,null,null,null,null,null,null,null,null,null,null,null,null,null,null,null,""]
[null,206,"",null,null,null,null,null,null,null,null,null,null,null,null,null,null,null,null,null,null,null,null,null,""]
[null,207,"",null,null,null,null,null,null,null,null,null,null,null,null,null,null,null,null,null,null,null,null,null,""]
[null,208,"",null,null,null,null,null,null,null,null,null,null,null,null,null,null,null,null,null,null,null,null,null,""]
[null,209,"",null,null,null,null,null,null,null,null,null,null,null,null,null,null,null,null,null,null,null,null,null,""]
[null,210,"",null,null,null,null,null,null,null,null,null,null,null,null,null,null,null,null,null,null,null,null,null,""]
[null,211,"",null,null,null,null,null,null,null,null,null,null,null,null,null,null,null,null,null,null,null,null,null,""]
[null,212,"",null,null,null,null,null,null,null,null,null,null,null,null,null,null,null,null,null,null,null,null,null,""]
[null,213,"",null,null,null,null,null,null,null,null,null,null,null,null,null,null,null,null,null,null,null,null,null,""]
[null,214,"",null,null,null,null,null,null,null,null,null,null,null,null,null,null,null,null,null,null,null,null,null,""]
[null,215,"",null,null,null,null,null,null,null,null,null,null,null,null,null,null,null,null,null,null,null,null,null,""]
[null,216,"",null,null,null,null,null,null,null,null,null,null,null,null,null,null,null,null,null,null,null,null,null,""]
[null,217,"",null,null,null,null,null,null,null,null,null,null,null,null,null,null,null,null,null,null,null,null,null,""]
[null,218,"",null,null,null,null,null,null,null,null,null,null,null,null,null,null,null,null,null,null,null,null,null,""]
[null,219,"",null,null,null,null,null,null,null,null,null,null,null,null,null,null,null,null,null,null,null,null,null,""]
[null,220,"",null,null,null,null,null,null,null,null,null,null,null,null,null,null,null,null,null,null,null,null,null,""]
[null,221,"",null,null,null,null,null,null,null,null,null,null,null,null,null,null,null,null,null,null,null,null,null,""]
[null,222,"",null,null,null,null,null,null,null,null,null,null,null,null,null,null,null,null,null,null,null,null,null,""]
[null,223,"",null,null,null,null,null,null,null,null,null,null,null,null,null,null,null,null,null,null,null,null,null,""]
[null,224,"",null,null,null,null,null,null,null,null,null,null,null,null,null,null,null,null,null,null,null,null,null,""]
[null,225,"",null,null,null,null,null,null,null,null,null,null,null,null,null,null,null,null,null,null,null,null,null,""]
[null,226,"",null,null,null,null,null,null,null,null,null,null,null,null,null,null,null,null,null,null,null,null,null,""]
[null,227,"",null,null,null,null,null,null,null,null,null,null,null,null,null,null,null,null,null,null,null,null,null,""]
[null,228,"",null,null,null,null,null,null,null,null,null,null,null,null,null,null,null,null,null,null,null,null,null,""]
[null,229,"",null,null,null,null,null,null,null,null,null,null,null,null,null,null,null,null,null,null,null,null,null,""]
[null,230,"",null,null,null,null,null,null,null,null,null,null,null,null,null,null,null,null,null,null,null,null,null,""]
[null,231,"",null,null,null,null,null,null,null,null,null,null,null,null,null,null,null,null,null,null,null,null,null,""]
[null,232,"",null,null,null,null,null,null,null,null,null,null,null,null,null,null,null,null,null,null,null,null,null,""]
[null,233,"",null,null,null,null,null,null,null,null,null,null,null,null,null,null,null,null,null,null,null,null,null,""]
[null,234,"",null,null,null,null,null,null,null,null,null,null,null,null,null,null,null,null,null,null,null,null,null,{"$f":"IF(AND(D246<=$X$1,X246>0),C246,\"\")","v":""}]
[null,235,"",null,null,null,null,null,null,null,null,null,null,null,null,null,null,null,null,null,null,null,null,null,""]
[null,236,"",null,null,null,null,null,null,null,null,null,null,null,null,null,null,null,null,null,null,null,null,null,""]
[null,237,"",null,null,null,null,null,null,null,null,null,null,null,null,null,null,null,null,null,null,null,null,null,""]
[null,238,"",null,null,null,null,null,null,null,null,null,null,null,null,null,null,null,null,null,null,null,null,null,""]
[null,239,"",null,null,null,null,null,null,null,null,null,null,null,null,null,null,null,null,null,null,null,null,null,""]
[null,240,"",null,null,null,null,null,null,null,null,null,null,null,null,null,null,null,null,null,null,null,null,null,""]
[null,241,"",null,null,null,null,null,null,null,null,null,null,null,null,null,null,null,null,null,null,null,null,null,""]
[null,242,"",null,null,null,null,null,null,null,null,null,null,null,null,null,null,null,null,null,null,null,null,null,""]
[null,243,"",null,null,null,null,null,null,null,null,null,null,null,null,null,null,null,null,null,null,null,null,null,""]
[null,244,"",null,null,null,null,null,null,null,null,null,null,null,null,null,null,null,null,null,null,null,null,null,""]
[null,245,"",null,null,null,null,null,null,null,null,null,null,null,null,null,null,null,null,null,null,null,null,null,""]
[null,246,"",null,null,null,null,null,null,null,null,null,null,null,null,null,null,null,null,null,null,null,null,null,""]
[null,247,"",null,null,null,null,null,null,null,null,null,null,null,null,null,null,null,null,null,null,null,null,null,""]
[null,248,"",null,null,null,null,null,null,null,null,null,null,null,null,null,null,null,null,null,null,null,null,null,""]
[null,249,"",null,null,null,null,null,null,null,null,null,null,null,null,null,null,null,null,null,null,null,null,null,""]
[null,250,"",null,null,null,null,null,null,null,null,null,null,null,null,null,null,null,null,null,null,null,null,null,""]
[null,251,"",null,null,null,null,null,null,null,null,null,null,null,null,null,null,null,null,null,null,null,null,null,""]
[null,252,"",null,null,null,null,null,null,null,null,null,null,null,null,null,null,null,null,null,null,null,null,null,""]
[null,253,"",null,null,null,null,null,null,null,null,null,null,null,null,null,null,null,null,null,null,null,null,null,""]
[null,254,"",null,null,null,null,null,null,null,null,null,null,null,null,null,null,null,null,null,null,null,null,null,""]
[null,255,"",null,null,null,null,null,null,null,null,null,null,null,null,null,null,null,null,null,null,null,null,null,""]
[null,256,"",null,null,null,null,null,null,null,null,null,null,null,null,null,null,null,null,null,null,null,null,null,""]
[null,257,"",null,null,null,null,null,null,null,null,null,null,null,null,null,null,null,null,null,null,null,null,null,""]
[null,258,"",null,null,null,null,null,null,null,null,null,null,null,null,null,null,null,null,null,null,null,null,null,""]
[null,{"$f":"B270+1","v":259},{"$f":"IF(D271=\"\",\"\",C270+$C$7)","v":""},null,null,null,null,null,null,null,null,null,null,null,null,null,null,null,null,null,null,null,null,null,""]
[null,260,"",null,null,null,null,null,null,null,null,null,null,null,null,null,null,null,null,null,null,null,null,null,""]
[null,261,"",null,null,null,null,null,null,null,null,null,null,null,null,null,null,null,null,null,null,null,null,null,""]
[null,262,"",null,null,null,null,null,null,null,null,null,null,null,null,null,null,null,null,null,null,null,null,null,""]
[null,263,"",null,null,null,null,null,null,null,null,null,null,null,null,null,null,null,null,null,null,null,null,null,""]
[null,264,"",null,null,null,null,null,null,null,null,null,null,null,null,null,null,null,null,null,null,null,null,null,""]
[null,265,"",null,null,null,null,null,null,null,null,null,null,null,null,null,null,null,null,null,null,null,null,null,""]
[null,266,"",null,null,null,null,null,null,null,null,null,null,null,null,null,null,null,null,null,null,null,null,null,""]
[null,267,"",null,null,null,null,null,null,null,null,null,null,null,null,null,null,null,null,null,null,null,null,null,""]
[null,268,"",null,null,null,null,null,null,null,null,null,null,null,null,null,null,null,null,null,null,null,null,null,""]
[null,269,"",null,null,null,null,null,null,null,null,null,null,null,null,null,null,null,null,null,null,null,null,null,""]
[null,270,"",null,null,null,null,null,null,null,null,null,null,null,null,null,null,null,null,null,null,null,null,null,""]
[null,271,"",null,null,null,null,null,null,null,null,null,null,null,null,null,null,null,null,null,null,null,null,null,""]
[null,272,"",null,null,null,null,null,null,null,null,null,null,null,null,null,null,null,null,null,null,null,null,null,""]
[null,273,"",null,null,null,null,null,null,null,null,null,null,null,null,null,null,null,null,null,null,null,null,null,""]
[null,274,"",null,null,null,null,null,null,null,null,null,null,null,null,null,null,null,null,null,null,null,null,null,""]
[null,275,"",null,null,null,null,null,null,null,null,null,null,null,null,null,null,null,null,null,null,null,null,null,""]
[null,276,"",null,null,null,null,null,null,null,null,null,null,null,null,null,null,null,null,null,null,null,null,null,""]
[null,277,"",null,null,null,null,null,null,null,null,null,null,null,null,null,null,null,null,null,null,null,null,null,""]
[null,278,"",null,null,null,null,null,null,null,null,null,null,null,null,null,null,null,null,null,null,null,null,null,""]
[null,279,"",null,null,null,null,null,null,null,null,null,null,null,null,null,null,null,null,null,null,null,null,null,""]
[null,280,"",null,null,null,null,null,null,null,null,null,null,null,null,null,null,null,null,null,null,null,null,null,""]
[null,281,"",null,null,null,null,null,null,null,null,null,null,null,null,null,null,null,null,null,null,null,null,null,""]
[null,282,"",null,null,null,null,null,null,null,null,null,null,null,null,null,null,null,null,null,null,null,null,null,""]
[null,283,"",null,null,null,null,null,null,null,null,null,null,null,null,null,null,null,null,null,null,null,null,null,""]
[null,284,"",null,null,null,null,null,null,null,null,null,null,null,null,null,null,null,null,null,null,null,null,null,""]
[null,285,"",null,null,null,null,null,null,null,null,null,null,null,null,null,null,null,null,null,null,null,null,null,""]
[null,286,"",null,null,null,null,null,null,null,null,null,null,null,null,null,null,null,null,null,null,null,null,null,""]
[null,287,"",null,null,null,null,null,null,null,null,null,null,null,null,null,null,null,null,null,null,null,null,null,""]
[null,288,"",null,null,null,null,null,null,null,null,null,null,null,null,null,null,null,null,null,null,null,null,null,""]
[null,289,"",null,null,null,null,null,null,null,null,null,null,null,null,null,null,null,null,null,null,null,null,null,""]
[null,290,"",null,null,null,null,null,null,null,null,null,null,null,null,null,null,null,null,null,null,null,null,null,""]
[null,291,"",null,null,null,null,null,null,null,null,null,null,null,null,null,null,null,null,null,null,null,null,null,""]
[null,292,"",null,null,null,null,null,null,null,null,null,null,null,null,null,null,null,null,null,null,null,null,null,""]
[null,293,"",null,null,null,null,null,null,null,null,null,null,null,null,null,null,null,null,null,null,null,null,null,""]
[null,294,"",null,null,null,null,null,null,null,null,null,null,null,null,null,null,null,null,null,null,null,null,null,""]
[null,295,"",null,null,null,null,null,null,null,null,null,null,null,null,null,null,null,null,null,null,null,null,null,""]
[null,296,"",null,null,null,null,null,null,null,null,null,null,null,null,null,null,null,null,null,null,null,null,null,""]
[null,297,"",null,null,null,null,null,null,null,null,null,null,null,null,null,null,null,null,null,null,null,null,null,""]
[null,298,"",null,null,null,null,null,null,null,null,null,null,null,null,null,null,null,null,null,null,null,null,null,{"$f":"IF(AND(D310<=$X$1,X310>0),C310,\"\")","v":""}]
[null,299,"",null,null,null,null,null,null,null,null,null,null,null,null,null,null,null,null,null,null,null,null,null,""]
[null,300,"",null,null,null,null,null,null,null,null,null,null,null,null,null,null,null,null,null,null,null,null,null,""]
[null,301,"",null,null,null,null,null,null,null,null,null,null,null,null,null,null,null,null,null,null,null,null,null,""]
[null,302,"",null,null,null,null,null,null,null,null,null,null,null,null,null,null,null,null,null,null,null,null,null,""]
[null,303,"",null,null,null,null,null,null,null,null,null,null,null,null,null,null,null,null,null,null,null,null,null,""]
[null,304,"",null,null,null,null,null,null,null,null,null,null,null,null,null,null,null,null,null,null,null,null,null,""]
[null,305,"",null,null,null,null,null,null,null,null,null,null,null,null,null,null,null,null,null,null,null,null,null,""]
[null,306,"",null,null,null,null,null,null,null,null,null,null,null,null,null,null,null,null,null,null,null,null,null,""]
[null,307,"",null,null,null,null,null,null,null,null,null,null,null,null,null,null,null,null,null,null,null,null,null,""]
[null,308,"",null,null,null,null,null,null,null,null,null,null,null,null,null,null,null,null,null,null,null,null,null,""]
[null,309,"",null,null,null,null,null,null,null,null,null,null,null,null,null,null,null,null,null,null,null,null,null,""]
[null,310,"",null,null,null,null,null,null,null,null,null,null,null,null,null,null,null,null,null,null,null,null,null,""]
[null,311,"",null,null,null,null,null,null,null,null,null,null,null,null,null,null,null,null,null,null,null,null,null,""]
[null,312,"",null,null,null,null,null,null,null,null,null,null,null,null,null,null,null,null,null,null,null,null,null,""]
[null,313,"",null,null,null,null,null,null,null,null,null,null,null,null,null,null,null,null,null,null,null,null,null,""]
[null,314,"",null,null,null,null,null,null,null,null,null,null,null,null,null,null,null,null,null,null,null,null,null,""]
[null,315,"",null,null,null,null,null,null,null,null,null,null,null,null,null,null,null,null,null,null,null,null,null,""]
[null,316,"",null,null,null,null,null,null,null,null,null,null,null,null,null,null,null,null,null,null,null,null,null,""]
[null,317,"",null,null,null,null,null,null,null,null,null,null,null,null,null,null,null,null,null,null,null,null,null,""]
[null,318,"",null,null,null,null,null,null,null,null,null,null,null,null,null,null,null,null,null,null,null,null,null,""]
[null,319,"",null,null,null,null,null,null,null,null,null,null,null,null,null,null,null,null,null,null,null,null,null,""]
[null,320,"",null,null,null,null,null,null,null,null,null,null,null,null,null,null,null,null,null,null,null,null,null,""]
[null,321,"",null,null,null,null,null,null,null,null,null,null,null,null,null,null,null,null,null,null,null,null,null,""]
[null,322,"",null,null,null,null,null,null,null,null,null,null,null,null,null,null,null,null,null,null,null,null,null,""]
[null,{"$f":"B334+1","v":323},{"$f":"IF(D335=\"\",\"\",C334+$C$7)","v":""},null,null,null,null,null,null,null,null,null,null,null,null,null,null,null,null,null,null,null,null,null,""]
[null,324,"",null,null,null,null,null,null,null,null,null,null,null,null,null,null,null,null,null,null,null,null,null,""]
[null,325,"",null,null,null,null,null,null,null,null,null,null,null,null,null,null,null,null,null,null,null,null,null,""]
[null,326,"",null,null,null,null,null,null,null,null,null,null,null,null,null,null,null,null,null,null,null,null,null,""]
[null,327,"",null,null,null,null,null,null,null,null,null,null,null,null,null,null,null,null,null,null,null,null,null,""]
[null,328,"",null,null,null,null,null,null,null,null,null,null,null,null,null,null,null,null,null,null,null,null,null,""]
[null,329,"",null,null,null,null,null,null,null,null,null,null,null,null,null,null,null,null,null,null,null,null,null,""]
[null,330,"",null,null,null,null,null,null,null,null,null,null,null,null,null,null,null,null,null,null,null,null,null,""]
[null,331,"",null,null,null,null,null,null,null,null,null,null,null,null,null,null,null,null,null,null,null,null,null,""]
[null,332,"",null,null,null,null,null,null,null,null,null,null,null,null,null,null,null,null,null,null,null,null,null,""]
[null,333,"",null,null,null,null,null,null,null,null,null,null,null,null,null,null,null,null,null,null,null,null,null,""]
[null,334,"",null,null,null,null,null,null,null,null,null,null,null,null,null,null,null,null,null,null,null,null,null,""]
[null,335,"",null,null,null,null,null,null,null,null,null,null,null,null,null,null,null,null,null,null,null,null,null,""]
[null,336,"",null,null,null,null,null,null,null,null,null,null,null,null,null,null,null,null,null,null,null,null,null,""]
[null,337,"",null,null,null,null,null,null,null,null,null,null,null,null,null,null,null,null,null,null,null,null,null,""]
[null,338,"",null,null,null,null,null,null,null,null,null,null,null,null,null,null,null,null,null,null,null,null,null,""]
[null,339,"",null,null,null,null,null,null,null,null,null,null,null,null,null,null,null,null,null,null,null,null,null,""]
[null,340,"",null,null,null,null,null,null,null,null,null,null,null,null,null,null,null,null,null,null,null,null,null,""]
[null,341,"",null,null,null,null,null,null,null,null,null,null,null,null,null,null,null,null,null,null,null,null,null,""]
[null,342,"",null,null,null,null,null,null,null,null,null,null,null,null,null,null,null,null,null,null,null,null,null,""]
[null,343,"",null,null,null,null,null,null,null,null,null,null,null,null,null,null,null,null,null,null,null,null,null,""]
[null,344,"",null,null,null,null,null,null,null,null,null,null,null,null,null,null,null,null,null,null,null,null,null,""]
[null,345,"",null,null,null,null,null,null,null,null,null,null,null,null,null,null,null,null,null,null,null,null,null,""]
[null,346,"",null,null,null,null,null,null,null,null,null,null,null,null,null,null,null,null,null,null,null,null,null,""]
[null,347,"",null,null,null,null,null,null,null,null,null,null,null,null,null,null,null,null,null,null,null,null,null,""]
[null,348,"",null,null,null,null,null,null,null,null,null,null,null,null,null,null,null,null,null,null,null,null,null,""]
[null,null,null,null,null,null,null,null,null,null,null,null,null,null,null,null,null,null,null,null,null,null,null,null,""]
[null,null,null,null,null,null,null,null,null,null,null,null,null,null,null,null,null,null,null,null,null,null,null,null,""]
[null,null,null,null,null,null,null,null,null,null,null,null,null,null,null,null,null,null,null,null,null,null,null,null,""]
[null,null,null,null,null,null,null,null,null,null,null,null,null,null,null,null,null,null,null,null,null,null,null,null,""]
[null,null,null,null,null,null,null,null,null,null,null,null,null,null,null,null,null,null,null,null,null,null,null,null,""]
[null,null,null,null,null,null,null,null,null,null,null,null,null,null,null,null,null,null,null,null,null,null,null,null,""]
[null,null,null,null,null,null,null,null,null,null,null,null,null,null,null,null,null,null,null,null,null,null,null,null,""]
[null,null,null,null,null,null,null,null,null,null,null,null,null,null,null,null,null,null,null,null,null,null,null,null,""]
[null,null,null,null,null,null,null,null,null,null,null,null,null,null,null,null,null,null,null,null,null,null,null,null,""]
[null,null,null,null,null,null,null,null,null,null,null,null,null,null,null,null,null,null,null,null,null,null,null,null,""]
[null,null,null,null,null,null,null,null,null,null,null,null,null,null,null,null,null,null,null,null,null,null,null,null,""]
[null,null,null,null,null,null,null,null,null,null,null,null,null,null,null,null,null,null,null,null,null,null,null,null,""]
[null,null,null,null,null,null,null,null,null,null,null,null,null,null,null,null,null,null,null,null,null,null,null,null,""]
[null,null,null,null,null,null,null,null,null,null,null,null,null,null,null,null,null,null,null,null,null,null,null,null,{"$f":"IF(AND(D374<=$X$1,X374>0),C374,\"\")","v":""}]
[null,null,null,null,null,null,null,null,null,null,null,null,null,null,null,null,null,null,null,null,null,null,null,null,""]
[null,null,null,null,null,null,null,null,null,null,null,null,null,null,null,null,null,null,null,null,null,null,null,null,""]
[null,null,null,null,null,null,null,null,null,null,null,null,null,null,null,null,null,null,null,null,null,null,null,null,""]
[null,null,null,null,null,null,null,null,null,null,null,null,null,null,null,null,null,null,null,null,null,null,null,null,""]
[null,null,null,null,null,null,null,null,null,null,null,null,null,null,null,null,null,null,null,null,null,null,null,null,""]
[null,null,null,null,null,null,null,null,null,null,null,null,null,null,null,null,null,null,null,null,null,null,null,null,""]
[null,null,null,null,null,null,null,null,null,null,null,null,null,null,null,null,null,null,null,null,null,null,null,null,""]
[null,null,null,null,null,null,null,null,null,null,null,null,null,null,null,null,null,null,null,null,null,null,null,null,""]
[null,null,null,null,null,null,null,null,null,null,null,null,null,null,null,null,null,null,null,null,null,null,null,null,""]
[null,null,null,null,null,null,null,null,null,null,null,null,null,null,null,null,null,null,null,null,null,null,null,null,""]
[null,null,null,null,null,null,null,null,null,null,null,null,null,null,null,null,null,null,null,null,null,null,null,null,""]
[null,null,null,null,null,null,null,null,null,null,null,null,null,null,null,null,null,null,null,null,null,null,null,null,""]
[null,null,null,null,null,null,null,null,null,null,null,null,null,null,null,null,null,null,null,null,null,null,null,null,""]
[null,null,null,null,null,null,null,null,null,null,null,null,null,null,null,null,null,null,null,null,null,null,null,null,""]
[null,null,null,null,null,null,null,null,null,null,null,null,null,null,null,null,null,null,null,null,null,null,null,null,""]
[null,null,null,null,null,null,null,null,null,null,null,null,null,null,null,null,null,null,null,null,null,null,null,null,""]
[null,null,null,null,null,null,null,null,null,null,null,null,null,null,null,null,null,null,null,null,null,null,null,null,""]
[null,null,null,null,null,null,null,null,null,null,null,null,null,null,null,null,null,null,null,null,null,null,null,null,""]
[null,null,null,null,null,null,null,null,null,null,null,null,null,null,null,null,null,null,null,null,null,null,null,null,""]
[null,null,null,null,null,null,null,null,null,null,null,null,null,null,null,null,null,null,null,null,null,null,null,null,""]
[null,null,null,null,null,null,null,null,null,null,null,null,null,null,null,null,null,null,null,null,null,null,null,null,""]
[null,null,null,null,null,null,null,null,null,null,null,null,null,null,null,null,null,null,null,null,null,null,null,null,""]
[null,null,null,null,null,null,null,null,null,null,null,null,null,null,null,null,null,null,null,null,null,null,null,null,""]
[null,null,null,null,null,null,null,null,null,null,null,null,null,null,null,null,null,null,null,null,null,null,null,null,""]
[null,null,null,null,null,null,null,null,null,null,null,null,null,null,null,null,null,null,null,null,null,null,null,null,""]
[null,null,null,null,null,null,null,null,null,null,null,null,null,null,null,null,null,null,null,null,null,null,null,null,""]
[null,null,null,null,null,null,null,null,null,null,null,null,null,null,null,null,null,null,null,null,null,null,null,null,""]
[null,null,null,null,null,null,null,null,null,null,null,null,null,null,null,null,null,null,null,null,null,null,null,null,""]
[null,null,null,null,null,null,null,null,null,null,null,null,null,null,null,null,null,null,null,null,null,null,null,null,""]
[null,null,null,null,null,null,null,null,null,null,null,null,null,null,null,null,null,null,null,null,null,null,null,null,""]
[null,null,null,null,null,null,null,null,null,null,null,null,null,null,null,null,null,null,null,null,null,null,null,null,""]
[null,null,null,null,null,null,null,null,null,null,null,null,null,null,null,null,null,null,null,null,null,null,null,null,""]
[null,null,null,null,null,null,null,null,null,null,null,null,null,null,null,null,null,null,null,null,null,null,null,null,""]
[null,null,null,null,null,null,null,null,null,null,null,null,null,null,null,null,null,null,null,null,null,null,null,null,""]
[null,null,null,null,null,null,null,null,null,null,null,null,null,null,null,null,null,null,null,null,null,null,null,null,""]
[null,null,null,null,null,null,null,null,null,null,null,null,null,null,null,null,null,null,null,null,null,null,null,null,""]
[null,null,null,null,null,null,null,null,null,null,null,null,null,null,null,null,null,null,null,null,null,null,null,null,""]
[null,null,null,null,null,null,null,null,null,null,null,null,null,null,null,null,null,null,null,null,null,null,null,null,""]
[null,null,null,null,null,null,null,null,null,null,null,null,null,null,null,null,null,null,null,null,null,null,null,null,""]
[null,null,null,null,null,null,null,null,null,null,null,null,null,null,null,null,null,null,null,null,null,null,null,null,""]
[null,null,null,null,null,null,null,null,null,null,null,null,null,null,null,null,null,null,null,null,null,null,null,null,""]
[null,null,null,null,null,null,null,null,null,null,null,null,null,null,null,null,null,null,null,null,null,null,null,null,""]
[null,null,null,null,null,null,null,null,null,null,null,null,null,null,null,null,null,null,null,null,null,null,null,null,""]
[null,null,null,null,null,null,null,null,null,null,null,null,null,null,null,null,null,null,null,null,null,null,null,null,""]
[null,null,null,null,null,null,null,null,null,null,null,null,null,null,null,null,null,null,null,null,null,null,null,null,""]
[null,null,null,null,null,null,null,null,null,null,null,null,null,null,null,null,null,null,null,null,null,null,null,null,""]
[null,null,null,null,null,null,null,null,null,null,null,null,null,null,null,null,null,null,null,null,null,null,null,null,""]
[null,null,null,null,null,null,null,null,null,null,null,null,null,null,null,null,null,null,null,null,null,null,null,null,""]
[null,null,null,null,null,null,null,null,null,null,null,null,null,null,null,null,null,null,null,null,null,null,null,null,""]
[null,null,null,null,null,null,null,null,null,null,null,null,null,null,null,null,null,null,null,null,null,null,null,null,""]
[null,null,null,null,null,null,null,null,null,null,null,null,null,null,null,null,null,null,null,null,null,null,null,null,""]
[null,null,null,null,null,null,null,null,null,null,null,null,null,null,null,null,null,null,null,null,null,null,null,null,""]
[null,null,null,null,null,null,null,null,null,null,null,null,null,null,null,null,null,null,null,null,null,null,null,null,""]
[null,null,null,null,null,null,null,null,null,null,null,null,null,null,null,null,null,null,null,null,null,null,null,null,""]
[null,null,null,null,null,null,null,null,null,null,null,null,null,null,null,null,null,null,null,null,null,null,null,null,""]
[null,null,null,null,null,null,null,null,null,null,null,null,null,null,null,null,null,null,null,null,null,null,null,null,""]
[null,null,null,null,null,null,null,null,null,null,null,null,null,null,null,null,null,null,null,null,null,null,null,null,""]
[null,null,null,null,null,null,null,null,null,null,null,null,null,null,null,null,null,null,null,null,null,null,null,null,""]
[null,null,null,null,null,null,null,null,null,null,null,null,null,null,null,null,null,null,null,null,null,null,null,null,""]
[null,null,null,null,null,null,null,null,null,null,null,null,null,null,null,null,null,null,null,null,null,null,null,null,""]
[null,null,null,null,null,null,null,null,null,null,null,null,null,null,null,null,null,null,null,null,null,null,null,null,""]
[null,null,null,null,null,null,null,null,null,null,null,null,null,null,null,null,null,null,null,null,null,null,null,null,""]
[null,null,null,null,null,null,null,null,null,null,null,null,null,null,null,null,null,null,null,null,null,null,null,null,{"$f":"IF(AND(C437<=$X$1,X437>0),B437,\"\")","v":""}]
[null,null,null,null,null,null,null,null,null,null,null,null,null,null,null,null,null,null,null,null,null,null,null,null,""]
[null,null,null,null,null,null,null,null,null,null,null,null,null,null,null,null,null,null,null,null,null,null,null,null,""]
[null,null,null,null,null,null,null,null,null,null,null,null,null,null,null,null,null,null,null,null,null,null,null,null,""]
[null,null,null,null,null,null,null,null,null,null,null,null,null,null,null,null,null,null,null,null,null,null,null,null,""]
[null,null,null,null,null,null,null,null,null,null,null,null,null,null,null,null,null,null,null,null,null,null,null,null,""]
[null,null,null,null,null,null,null,null,null,null,null,null,null,null,null,null,null,null,null,null,null,null,null,null,""]
[null,null,null,null,null,null,null,null,null,null,null,null,null,null,null,null,null,null,null,null,null,null,null,null,""]
[null,null,null,null,null,null,null,null,null,null,null,null,null,null,null,null,null,null,null,null,null,null,null,null,""]
[null,null,null,null,null,null,null,null,null,null,null,null,null,null,null,null,null,null,null,null,null,null,null,null,""]
[null,null,null,null,null,null,null,null,null,null,null,null,null,null,null,null,null,null,null,null,null,null,null,null,""]
[null,null,null,null,null,null,null,null,null,null,null,null,null,null,null,null,null,null,null,null,null,null,null,null,""]
[null,null,null,null,null,null,null,null,null,null,null,null,null,null,null,null,null,null,null,null,null,null,null,null,""]
[null,null,null,null,null,null,null,null,null,null,null,null,null,null,null,null,null,null,null,null,null,null,null,null,""]
[null,null,null,null,null,null,null,null,null,null,null,null,null,null,null,null,null,null,null,null,null,null,null,null,""]
[null,null,null,null,null,null,null,null,null,null,null,null,null,null,null,null,null,null,null,null,null,null,null,null,""]
[null,null,null,null,null,null,null,null,null,null,null,null,null,null,null,null,null,null,null,null,null,null,null,null,""]
[null,null,null,null,null,null,null,null,null,null,null,null,null,null,null,null,null,null,null,null,null,null,null,null,""]
[null,null,null,null,null,null,null,null,null,null,null,null,null,null,null,null,null,null,null,null,null,null,null,null,""]
[null,null,null,null,null,null,null,null,null,null,null,null,null,null,null,null,null,null,null,null,null,null,null,null,""]
[null,null,null,null,null,null,null,null,null,null,null,null,null,null,null,null,null,null,null,null,null,null,null,null,""]
[null,null,null,null,null,null,null,null,null,null,null,null,null,null,null,null,null,null,null,null,null,null,null,null,""]
[null,null,null,null,null,null,null,null,null,null,null,null,null,null,null,null,null,null,null,null,null,null,null,null,""]
[null,null,null,null,null,null,null,null,null,null,null,null,null,null,null,null,null,null,null,null,null,null,null,null,""]
[null,null,null,null,null,null,null,null,null,null,null,null,null,null,null,null,null,null,null,null,null,null,null,null,""]
[null,null,null,null,null,null,null,null,null,null,null,null,null,null,null,null,null,null,null,null,null,null,null,null,{"$f":"IF(AND(C462<=$X$1,X462>0),B462,\"\")","v":""}]
[null,null,null,null,null,null,null,null,null,null,null,null,null,null,null,null,null,null,null,null,null,null,null,null,""]
[null,null,null,null,null,null,null,null,null,null,null,null,null,null,null,null,null,null,null,null,null,null,null,null,""]
[null,null,null,null,null,null,null,null,null,null,null,null,null,null,null,null,null,null,null,null,null,null,null,null,""]
[null,null,null,null,null,null,null,null,null,null,null,null,null,null,null,null,null,null,null,null,null,null,null,null,""]
[null,null,null,null,null,null,null,null,null,null,null,null,null,null,null,null,null,null,null,null,null,null,null,null,""]
[null,null,null,null,null,null,null,null,null,null,null,null,null,null,null,null,null,null,null,null,null,null,null,null,""]
[null,null,null,null,null,null,null,null,null,null,null,null,null,null,null,null,null,null,null,null,null,null,null,null,""]
[null,null,null,null,null,null,null,null,null,null,null,null,null,null,null,null,null,null,null,null,null,null,null,null,""]
[null,null,null,null,null,null,null,null,null,null,null,null,null,null,null,null,null,null,null,null,null,null,null,null,""]
[null,null,null,null,null,null,null,null,null,null,null,null,null,null,null,null,null,null,null,null,null,null,null,null,""]
[null,null,null,null,null,null,null,null,null,null,null,null,null,null,null,null,null,null,null,null,null,null,null,null,""]
[null,null,null,null,null,null,null,null,null,null,null,null,null,null,null,null,null,null,null,null,null,null,null,null,""]
[null,null,null,null,null,null,null,null,null,null,null,null,null,null,null,null,null,null,null,null,null,null,null,null,""]
[null,null,null,null,null,null,null,null,null,null,null,null,null,null,null,null,null,null,null,null,null,null,null,null,""]
[null,null,null,null,null,null,null,null,null,null,null,null,null,null,null,null,null,null,null,null,null,null,null,null,""]
[null,null,null,null,null,null,null,null,null,null,null,null,null,null,null,null,null,null,null,null,null,null,null,null,""]
[null,null,null,null,null,null,null,null,null,null,null,null,null,null,null,null,null,null,null,null,null,null,null,null,""]
[null,null,null,null,null,null,null,null,null,null,null,null,null,null,null,null,null,null,null,null,null,null,null,null,""]
[null,null,null,null,null,null,null,null,null,null,null,null,null,null,null,null,null,null,null,null,null,null,null,null,""]
[null,null,null,null,null,null,null,null,null,null,null,null,null,null,null,null,null,null,null,null,null,null,null,null,""]
[null,null,null,null,null,null,null,null,null,null,null,null,null,null,null,null,null,null,null,null,null,null,null,null,""]
[null,null,null,null,null,null,null,null,null,null,null,null,null,null,null,null,null,null,null,null,null,null,null,null,""]
[null,null,null,null,null,null,null,null,null,null,null,null,null,null,null,null,null,null,null,null,null,null,null,null,""]
[null,null,null,null,null,null,null,null,null,null,null,null,null,null,null,null,null,null,null,null,null,null,null,null,""]
[null,null,null,null,null,null,null,null,null,null,null,null,null,null,null,null,null,null,null,null,null,null,null,null,""]
[null,null,null,null,null,null,null,null,null,null,null,null,null,null,null,null,null,null,null,null,null,null,null,null,""]
[null,null,null,null,null,null,null,null,null,null,null,null,null,null,null,null,null,null,null,null,null,null,null,null,""]
[null,null,null,null,null,null,null,null,null,null,null,null,null,null,null,null,null,null,null,null,null,null,null,null,""]
[null,null,null,null,null,null,null,null,null,null,null,null,null,null,null,null,null,null,null,null,null,null,null,null,""]
[null,null,null,null,null,null,null,null,null,null,null,null,null,null,null,null,null,null,null,null,null,null,null,null,""]
[null,null,null,null,null,null,null,null,null,null,null,null,null,null,null,null,null,null,null,null,null,null,null,null,""]
[null,null,null,null,null,null,null,null,null,null,null,null,null,null,null,null,null,null,null,null,null,null,null,null,""]
[null,null,null,null,null,null,null,null,null,null,null,null,null,null,null,null,null,null,null,null,null,null,null,null,""]
[null,null,null,null,null,null,null,null,null,null,null,null,null,null,null,null,null,null,null,null,null,null,null,null,""]
[null,null,null,null,null,null,null,null,null,null,null,null,null,null,null,null,null,null,null,null,null,null,null,null,""]
[null,null,null,null,null,null,null,null,null,null,null,null,null,null,null,null,null,null,null,null,null,null,null,null,""]
[null,null,null,null,null,null,null,null,null,null,null,null,null,null,null,null,null,null,null,null,null,null,null,null,""]
[null,null,null,null,null,null,null,null,null,null,null,null,null,null,null,null,null,null,null,null,null,null,null,null,""]
[null,null,null,null,null,null,null,null,null,null,null,null,null,null,null,null,null,null,null,null,null,null,null,null,""]
[null,null,null,null,null,null,null,null,null,null,null,null,null,null,null,null,null,null,null,null,null,null,null,null,""]
[null,null,null,null,null,null,null,null,null,null,null,null,null,null,null,null,null,null,null,null,null,null,null,null,""]
[null,null,null,null,null,null,null,null,null,null,null,null,null,null,null,null,null,null,null,null,null,null,null,null,""]
[null,null,null,null,null,null,null,null,null,null,null,null,null,null,null,null,null,null,null,null,null,null,null,null,""]
[null,null,null,null,null,null,null,null,null,null,null,null,null,null,null,null,null,null,null,null,null,null,null,null,""]
[null,null,null,null,null,null,null,null,null,null,null,null,null,null,null,null,null,null,null,null,null,null,null,null,""]
[null,null,null,null,null,null,null,null,null,null,null,null,null,null,null,null,null,null,null,null,null,null,null,null,""]
[null,null,null,null,null,null,null,null,null,null,null,null,null,null,null,null,null,null,null,null,null,null,null,null,""]
[null,null,null,null,null,null,null,null,null,null,null,null,null,null,null,null,null,null,null,null,null,null,null,null,""]
[null,null,null,null,null,null,null,null,null,null,null,null,null,null,null,null,null,null,null,null,null,null,null,null,""]
[null,null,null,null,null,null,null,null,null,null,null,null,null,null,null,null,null,null,null,null,null,null,null,null,""]
[null,null,null,null,null,null,null,null,null,null,null,null,null,null,null,null,null,null,null,null,null,null,null,null,""]
[null,null,null,null,null,null,null,null,null,null,null,null,null,null,null,null,null,null,null,null,null,null,null,null,""]
[null,null,null,null,null,null,null,null,null,null,null,null,null,null,null,null,null,null,null,null,null,null,null,null,""]
[null,null,null,null,null,null,null,null,null,null,null,null,null,null,null,null,null,null,null,null,null,null,null,null,""]
[null,null,null,null,null,null,null,null,null,null,null,null,null,null,null,null,null,null,null,null,null,null,null,null,""]
[null,null,null,null,null,null,null,null,null,null,null,null,null,null,null,null,null,null,null,null,null,null,null,null,""]
[null,null,null,null,null,null,null,null,null,null,null,null,null,null,null,null,null,null,null,null,null,null,null,null,""]
[null,null,null,null,null,null,null,null,null,null,null,null,null,null,null,null,null,null,null,null,null,null,null,null,""]
[null,null,null,null,null,null,null,null,null,null,null,null,null,null,null,null,null,null,null,null,null,null,null,null,""]
[null,null,null,null,null,null,null,null,null,null,null,null,null,null,null,null,null,null,null,null,null,null,null,null,""]
[null,null,null,null,null,null,null,null,null,null,null,null,null,null,null,null,null,null,null,null,null,null,null,null,""]
[null,null,null,null,null,null,null,null,null,null,null,null,null,null,null,null,null,null,null,null,null,null,null,null,""]
[null,null,null,null,null,null,null,null,null,null,null,null,null,null,null,null,null,null,null,null,null,null,null,null,""]
[null,null,null,null,null,null,null,null,null,null,null,null,null,null,null,null,null,null,null,null,null,null,null,null,{"$f":"IF(AND(C526<=$X$1,X526>0),B526,\"\")","v":""}]
[null,null,null,null,null,null,null,null,null,null,null,null,null,null,null,null,null,null,null,null,null,null,null,null,""]
[null,null,null,null,null,null,null,null,null,null,null,null,null,null,null,null,null,null,null,null,null,null,null,null,""]
[null,null,null,null,null,null,null,null,null,null,null,null,null,null,null,null,null,null,null,null,null,null,null,null,""]
[null,null,null,null,null,null,null,null,null,null,null,null,null,null,null,null,null,null,null,null,null,null,null,null,""]
[null,null,null,null,null,null,null,null,null,null,null,null,null,null,null,null,null,null,null,null,null,null,null,null,""]
[null,null,null,null,null,null,null,null,null,null,null,null,null,null,null,null,null,null,null,null,null,null,null,null,""]
[null,null,null,null,null,null,null,null,null,null,null,null,null,null,null,null,null,null,null,null,null,null,null,null,""]
[null,null,null,null,null,null,null,null,null,null,null,null,null,null,null,null,null,null,null,null,null,null,null,null,""]
[null,null,null,null,null,null,null,null,null,null,null,null,null,null,null,null,null,null,null,null,null,null,null,null,""]
[null,null,null,null,null,null,null,null,null,null,null,null,null,null,null,null,null,null,null,null,null,null,null,null,""]
[null,null,null,null,null,null,null,null,null,null,null,null,null,null,null,null,null,null,null,null,null,null,null,null,""]
[null,null,null,null,null,null,null,null,null,null,null,null,null,null,null,null,null,null,null,null,null,null,null,null,""]
[null,null,null,null,null,null,null,null,null,null,null,null,null,null,null,null,null,null,null,null,null,null,null,null,""]
[null,null,null,null,null,null,null,null,null,null,null,null,null,null,null,null,null,null,null,null,null,null,null,null,""]
[null,null,null,null,null,null,null,null,null,null,null,null,null,null,null,null,null,null,null,null,null,null,null,null,""]
[null,null,null,null,null,null,null,null,null,null,null,null,null,null,null,null,null,null,null,null,null,null,null,null,""]
[null,null,null,null,null,null,null,null,null,null,null,null,null,null,null,null,null,null,null,null,null,null,null,null,""]
[null,null,null,null,null,null,null,null,null,null,null,null,null,null,null,null,null,null,null,null,null,null,null,null,""]
[null,null,null,null,null,null,null,null,null,null,null,null,null,null,null,null,null,null,null,null,null,null,null,null,""]
[null,null,null,null,null,null,null,null,null,null,null,null,null,null,null,null,null,null,null,null,null,null,null,null,""]
[null,null,null,null,null,null,null,null,null,null,null,null,null,null,null,null,null,null,null,null,null,null,null,null,""]
[null,null,null,null,null,null,null,null,null,null,null,null,null,null,null,null,null,null,null,null,null,null,null,null,""]
[null,null,null,null,null,null,null,null,null,null,null,null,null,null,null,null,null,null,null,null,null,null,null,null,""]
[null,null,null,null,null,null,null,null,null,null,null,null,null,null,null,null,null,null,null,null,null,null,null,null,""]
[null,null,null,null,null,null,null,null,null,null,null,null,null,null,null,null,null,null,null,null,null,null,null,null,""]
[null,null,null,null,null,null,null,null,null,null,null,null,null,null,null,null,null,null,null,null,null,null,null,null,""]
[null,null,null,null,null,null,null,null,null,null,null,null,null,null,null,null,null,null,null,null,null,null,null,null,""]
[null,null,null,null,null,null,null,null,null,null,null,null,null,null,null,null,null,null,null,null,null,null,null,null,""]
[null,null,null,null,null,null,null,null,null,null,null,null,null,null,null,null,null,null,null,null,null,null,null,null,""]
[null,null,null,null,null,null,null,null,null,null,null,null,null,null,null,null,null,null,null,null,null,null,null,null,""]
[null,null,null,null,null,null,null,null,null,null,null,null,null,null,null,null,null,null,null,null,null,null,null,null,""]
[null,null,null,null,null,null,null,null,null,null,null,null,null,null,null,null,null,null,null,null,null,null,null,null,""]
[null,null,null,null,null,null,null,null,null,null,null,null,null,null,null,null,null,null,null,null,null,null,null,null,""]
[null,null,null,null,null,null,null,null,null,null,null,null,null,null,null,null,null,null,null,null,null,null,null,null,""]
[null,null,null,null,null,null,null,null,null,null,null,null,null,null,null,null,null,null,null,null,null,null,null,null,""]
[null,null,null,null,null,null,null,null,null,null,null,null,null,null,null,null,null,null,null,null,null,null,null,null,""]
[null,null,null,null,null,null,null,null,null,null,null,null,null,null,null,null,null,null,null,null,null,null,null,null,""]
[null,null,null,null,null,null,null,null,null,null,null,null,null,null,null,null,null,null,null,null,null,null,null,null,""]
[null,null,null,null,null,null,null,null,null,null,null,null,null,null,null,null,null,null,null,null,null,null,null,null,""]
[null,null,null,null,null,null,null,null,null,null,null,null,null,null,null,null,null,null,null,null,null,null,null,null,""]
[null,null,null,null,null,null,null,null,null,null,null,null,null,null,null,null,null,null,null,null,null,null,null,null,""]
[null,null,null,null,null,null,null,null,null,null,null,null,null,null,null,null,null,null,null,null,null,null,null,null,""]
[null,null,null,null,null,null,null,null,null,null,null,null,null,null,null,null,null,null,null,null,null,null,null,null,""]
[null,null,null,null,null,null,null,null,null,null,null,null,null,null,null,null,null,null,null,null,null,null,null,null,""]
[null,null,null,null,null,null,null,null,null,null,null,null,null,null,null,null,null,null,null,null,null,null,null,null,""]
[null,null,null,null,null,null,null,null,null,null,null,null,null,null,null,null,null,null,null,null,null,null,null,null,""]
[null,null,null,null,null,null,null,null,null,null,null,null,null,null,null,null,null,null,null,null,null,null,null,null,""]
[null,null,null,null,null,null,null,null,null,null,null,null,null,null,null,null,null,null,null,null,null,null,null,null,""]
[null,null,null,null,null,null,null,null,null,null,null,null,null,null,null,null,null,null,null,null,null,null,null,null,""]
[null,null,null,null,null,null,null,null,null,null,null,null,null,null,null,null,null,null,null,null,null,null,null,null,""]
[null,null,null,null,null,null,null,null,null,null,null,null,null,null,null,null,null,null,null,null,null,null,null,null,""]
[null,null,null,null,null,null,null,null,null,null,null,null,null,null,null,null,null,null,null,null,null,null,null,null,""]
[null,null,null,null,null,null,null,null,null,null,null,null,null,null,null,null,null,null,null,null,null,null,null,null,""]
[null,null,null,null,null,null,null,null,null,null,null,null,null,null,null,null,null,null,null,null,null,null,null,null,""]
[null,null,null,null,null,null,null,null,null,null,null,null,null,null,null,null,null,null,null,null,null,null,null,null,""]
[null,null,null,null,null,null,null,null,null,null,null,null,null,null,null,null,null,null,null,null,null,null,null,null,""]
[null,null,null,null,null,null,null,null,null,null,null,null,null,null,null,null,null,null,null,null,null,null,null,null,""]
[null,null,null,null,null,null,null,null,null,null,null,null,null,null,null,null,null,null,null,null,null,null,null,null,""]
[null,null,null,null,null,null,null,null,null,null,null,null,null,null,null,null,null,null,null,null,null,null,null,null,""]
[null,null,null,null,null,null,null,null,null,null,null,null,null,null,null,null,null,null,null,null,null,null,null,null,""]
[null,null,null,null,null,null,null,null,null,null,null,null,null,null,null,null,null,null,null,null,null,null,null,null,""]
[null,null,null,null,null,null,null,null,null,null,null,null,null,null,null,null,null,null,null,null,null,null,null,null,""]
[null,null,null,null,null,null,null,null,null,null,null,null,null,null,null,null,null,null,null,null,null,null,null,null,""]
[null,null,null,null,null,null,null,null,null,null,null,null,null,null,null,null,null,null,null,null,null,null,null,null,{"$f":"IF(AND(C590<=$X$1,X590>0),B590,\"\")","v":""}]
[null,null,null,null,null,null,null,null,null,null,null,null,null,null,null,null,null,null,null,null,null,null,null,null,""]
[null,null,null,null,null,null,null,null,null,null,null,null,null,null,null,null,null,null,null,null,null,null,null,null,""]
[null,null,null,null,null,null,null,null,null,null,null,null,null,null,null,null,null,null,null,null,null,null,null,null,""]
[null,null,null,null,null,null,null,null,null,null,null,null,null,null,null,null,null,null,null,null,null,null,null,null,""]
[null,null,null,null,null,null,null,null,null,null,null,null,null,null,null,null,null,null,null,null,null,null,null,null,""]
[null,null,null,null,null,null,null,null,null,null,null,null,null,null,null,null,null,null,null,null,null,null,null,null,""]
[null,null,null,null,null,null,null,null,null,null,null,null,null,null,null,null,null,null,null,null,null,null,null,null,""]
[null,null,null,null,null,null,null,null,null,null,null,null,null,null,null,null,null,null,null,null,null,null,null,null,""]
[null,null,null,null,null,null,null,null,null,null,null,null,null,null,null,null,null,null,null,null,null,null,null,null,""]
[null,null,null,null,null,null,null,null,null,null,null,null,null,null,null,null,null,null,null,null,null,null,null,null,""]
[null,null,null,null,null,null,null,null,null,null,null,null,null,null,null,null,null,null,null,null,null,null,null,null,""]
[null,null,null,null,null,null,null,null,null,null,null,null,null,null,null,null,null,null,null,null,null,null,null,null,""]
[null,null,null,null,null,null,null,null,null,null,null,null,null,null,null,null,null,null,null,null,null,null,null,null,""]
[null,null,null,null,null,null,null,null,null,null,null,null,null,null,null,null,null,null,null,null,null,null,null,null,""]
[null,null,null,null,null,null,null,null,null,null,null,null,null,null,null,null,null,null,null,null,null,null,null,null,""]
[null,null,null,null,null,null,null,null,null,null,null,null,null,null,null,null,null,null,null,null,null,null,null,null,""]
[null,null,null,null,null,null,null,null,null,null,null,null,null,null,null,null,null,null,null,null,null,null,null,null,""]
[null,null,null,null,null,null,null,null,null,null,null,null,null,null,null,null,null,null,null,null,null,null,null,null,""]
[null,null,null,null,null,null,null,null,null,null,null,null,null,null,null,null,null,null,null,null,null,null,null,null,""]
[null,null,null,null,null,null,null,null,null,null,null,null,null,null,null,null,null,null,null,null,null,null,null,null,""]
[null,null,null,null,null,null,null,null,null,null,null,null,null,null,null,null,null,null,null,null,null,null,null,null,""]
[null,null,null,null,null,null,null,null,null,null,null,null,null,null,null,null,null,null,null,null,null,null,null,null,""]
[null,null,null,null,null,null,null,null,null,null,null,null,null,null,null,null,null,null,null,null,null,null,null,null,""]
[null,null,null,null,null,null,null,null,null,null,null,null,null,null,null,null,null,null,null,null,null,null,null,null,""]
[null,null,null,null,null,null,null,null,null,null,null,null,null,null,null,null,null,null,null,null,null,null,null,null,""]
[null,null,null,null,null,null,null,null,null,null,null,null,null,null,null,null,null,null,null,null,null,null,null,null,""]
[null,null,null,null,null,null,null,null,null,null,null,null,null,null,null,null,null,null,null,null,null,null,null,null,""]
[null,null,null,null,null,null,null,null,null,null,null,null,null,null,null,null,null,null,null,null,null,null,null,null,""]
[null,null,null,null,null,null,null,null,null,null,null,null,null,null,null,null,null,null,null,null,null,null,null,null,""]
[null,null,null,null,null,null,null,null,null,null,null,null,null,null,null,null,null,null,null,null,null,null,null,null,""]
[null,null,null,null,null,null,null,null,null,null,null,null,null,null,null,null,null,null,null,null,null,null,null,null,""]
[null,null,null,null,null,null,null,null,null,null,null,null,null,null,null,null,null,null,null,null,null,null,null,null,""]
[null,null,null,null,null,null,null,null,null,null,null,null,null,null,null,null,null,null,null,null,null,null,null,null,""]
[null,null,null,null,null,null,null,null,null,null,null,null,null,null,null,null,null,null,null,null,null,null,null,null,""]
[null,null,null,null,null,null,null,null,null,null,null,null,null,null,null,null,null,null,null,null,null,null,null,null,""]
[null,null,null,null,null,null,null,null,null,null,null,null,null,null,null,null,null,null,null,null,null,null,null,null,""]
[null,null,null,null,null,null,null,null,null,null,null,null,null,null,null,null,null,null,null,null,null,null,null,null,""]
[null,null,null,null,null,null,null,null,null,null,null,null,null,null,null,null,null,null,null,null,null,null,null,null,""]
[null,null,null,null,null,null,null,null,null,null,null,null,null,null,null,null,null,null,null,null,null,null,null,null,""]
[null,null,null,null,null,null,null,null,null,null,null,null,null,null,null,null,null,null,null,null,null,null,null,null,""]
[null,null,null,null,null,null,null,null,null,null,null,null,null,null,null,null,null,null,null,null,null,null,null,null,""]
[null,null,null,null,null,null,null,null,null,null,null,null,null,null,null,null,null,null,null,null,null,null,null,null,""]
[null,null,null,null,null,null,null,null,null,null,null,null,null,null,null,null,null,null,null,null,null,null,null,null,""]
[null,null,null,null,null,null,null,null,null,null,null,null,null,null,null,null,null,null,null,null,null,null,null,null,""]
[null,null,null,null,null,null,null,null,null,null,null,null,null,null,null,null,null,null,null,null,null,null,null,null,""]
[null,null,null,null,null,null,null,null,null,null,null,null,null,null,null,null,null,null,null,null,null,null,null,null,""]
[null,null,null,null,null,null,null,null,null,null,null,null,null,null,null,null,null,null,null,null,null,null,null,null,""]
[null,null,null,null,null,null,null,null,null,null,null,null,null,null,null,null,null,null,null,null,null,null,null,null,""]
[null,null,null,null,null,null,null,null,null,null,null,null,null,null,null,null,null,null,null,null,null,null,null,null,""]
[null,null,null,null,null,null,null,null,null,null,null,null,null,null,null,null,null,null,null,null,null,null,null,null,""]
[null,null,null,null,null,null,null,null,null,null,null,null,null,null,null,null,null,null,null,null,null,null,null,null,""]
[null,null,null,null,null,null,null,null,null,null,null,null,null,null,null,null,null,null,null,null,null,null,null,null,""]
[null,null,null,null,null,null,null,null,null,null,null,null,null,null,null,null,null,null,null,null,null,null,null,null,""]
[null,null,null,null,null,null,null,null,null,null,null,null,null,null,null,null,null,null,null,null,null,null,null,null,""]
[null,null,null,null,null,null,null,null,null,null,null,null,null,null,null,null,null,null,null,null,null,null,null,null,""]
[null,null,null,null,null,null,null,null,null,null,null,null,null,null,null,null,null,null,null,null,null,null,null,null,""]
[null,null,null,null,null,null,null,null,null,null,null,null,null,null,null,null,null,null,null,null,null,null,null,null,""]
[null,null,null,null,null,null,null,null,null,null,null,null,null,null,null,null,null,null,null,null,null,null,null,null,""]
[null,null,null,null,null,null,null,null,null,null,null,null,null,null,null,null,null,null,null,null,null,null,null,null,""]
[null,null,null,null,null,null,null,null,null,null,null,null,null,null,null,null,null,null,null,null,null,null,null,null,""]
[null,null,null,null,null,null,null,null,null,null,null,null,null,null,null,null,null,null,null,null,null,null,null,null,""]
[null,null,null,null,null,null,null,null,null,null,null,null,null,null,null,null,null,null,null,null,null,null,null,null,""]
[null,null,null,null,null,null,null,null,null,null,null,null,null,null,null,null,null,null,null,null,null,null,null,null,""]
[null,null,null,null,null,null,null,null,null,null,null,null,null,null,null,null,null,null,null,null,null,null,null,null,{"$f":"IF(AND(C654<=$X$1,X654>0),B654,\"\")","v":""}]
[null,null,null,null,null,null,null,null,null,null,null,null,null,null,null,null,null,null,null,null,null,null,null,null,{"$f":"IF(AND(C655<=$X$1,X655>0),B655,\"\")","v":""}]

{"sheet":"Output","index":8,"n_rows":152,"n_cols":9,"rows_kept":152,"cut":false,"hidden":false,"merged":[[31,1,31,2]]}
[]
[null,"Grower:"]
[null,"Location:",null,null,null,null,null,10,0.41808904231145627]
[null,"Notes:",null,null,null,null,null,20,0.87230295495510868]
[null,null,null,null,null,null,null,30,1.2220817216498621]
[null,null,null,null,null,null,null,40,1.2469290798001462]
[null,null,null,null,null,null,null,50,1.2540122660399928]
[null,null,null,null,null,null,null,60,1.2386940107086464]
[null,null,null,null,null,null,null,70,1.2355994693871193]
[null,null,null,null,null,null,null,80,1.2526605457313351]
[null,null,null,null,null,null,null,90,1.2674387102345139]
[null,null,null,null,null,null,null,100,1.2501933471266047]
[null,null,null,null,null,null,null,110,1.2590893415723761]
[null,null,null,null,null,null,null,120,1.252709080979908]
[null,null,null,null,null,null,null,130,1.2673320196771911]
[null,null,null,null,null,null,null,140,1.2596951634915108]
[null,null,null,null,null,null,null,150,1.272917301137189]
[null,null,null,null,null,null,null,160,1.2664261215614667]
[null,null,null,null,null,null,null,170,1.2417182385268506]
[null,null,null,null,null,null,null,180,1.2481760061167719]
[null,null,null,null,null,null,null,190,1.2466312213525217]
[null,null,null,null,null,null,null,200,1.2603361527846004]
[null,null,null,null,null,null,null,210,1.2506361600077169]
[null,"Calculated Results:",null,null,null,null,null,220,1.2632125824563849]
[null,null,null,null,null,null,null,230,1.2620318847402039]
[null,"Uniformity",null,null,null,"General Sprinkler Data",null,240,1.2501995159958288]
[null,"Uniformity Coefficient (CU)",null,96.5,null,"Total # Sprinklers",148,250,1.2627055082690966]
[null,"Low Quarter Uniformity (DUlq)",null,95.2,null,"Total # Different Models",3,260,1.2601932997150345]
[null,null,null,null,null,"Type of Pressure Control","CONST PRESS REG",270,1.2666035162993901]
[null,"Pressures/Flows",null,null,null,"Average Depth (inches)",1.27,280,1.2494469979730671]
[null,"Head at Pump (ft/stage)",null,107.50713480932568,null,null,null,290,1.2584156471707302]
[null,"Pivot Pressure (psi)",null,43.820899288026922,null,"Field",null,300,1.2420654278978389]
[null,"Booster Pump Increase (psi)",null,34.5,null,"Effective Irr. Area (acres)",118.29,310,1.2482139016557499]
[null,"Q-Depths (gpm)",null,851.6,null,"Field Boundary (ft)",1500,320,1.2669263717624235]
[null,"Effective Q-Depths (gpm)",null,851.6,null,null,null,330,1.2544943388039196]
[null,null,null,null,null,null,null,340,1.2666193285529828]
[null,"Additional Notes",null,null,null,null,null,350,1.256775667500204]
[null,null,null,null,null,null,null,360,1.2400710285020453]
[null,null,null,null,null,null,null,370,1.2658166318845789]
[null,null,null,null,null,null,null,380,1.268107118684928]
[null,null,null,null,null,null,null,390,1.2500932377535454]
[null,null,null,null,null,null,null,400,1.2534067676563878]
[null,null,null,null,null,null,null,410,1.2429721532626847]
[null,null,null,null,null,null,null,420,1.2577509128364992]
[null,null,null,null,null,null,null,430,1.2545582801824315]
[null,null,null,null,null,null,null,440,1.2695498027726602]
[null,null,null,null,null,null,null,450,1.2465509135648674]
[null,null,null,null,null,null,null,460,1.2420440148602161]
[null,null,null,null,null,null,null,470,1.2704888807870376]
[null,null,null,null,null,null,null,480,1.2646480311969532]
[null,null,null,null,null,null,null,490,1.2635082049374984]
[null,null,null,null,null,null,null,500,1.2546769190440314]
[null,null,null,null,null,null,null,510,1.2718518282676992]
[null,null,null,null,null,null,null,520,1.2603091588298423]
[null,null,null,null,null,null,null,530,1.2584246748526948]
[null,null,null,null,null,null,null,540,1.2500243604759194]
[null,null,null,null,null,null,null,550,1.2683682439601138]
[null,null,null,null,null,null,null,560,1.2698036029833319]
[null,null,null,null,null,null,null,570,1.2681933346437835]
[null,null,null,null,null,null,null,580,1.2742688202408416]
[null,null,null,null,null,null,null,590,1.2655490621857988]
[null,null,null,null,null,null,null,600,1.2413474378536946]
[null,null,null,null,null,null,null,610,1.2505402694232344]
[null,null,null,null,null,null,null,620,1.2690964235728974]
[null,null,null,null,null,null,null,630,1.2448569582498334]
[null,null,null,null,null,null,null,640,1.2347681370505545]
[null,null,null,null,null,null,null,650,1.2523741243605477]
[null,null,null,null,null,null,null,660,1.2694549291132324]
[null,null,null,null,null,null,null,670,1.2515397785425522]
[null,null,null,null,null,null,null,680,1.2651220240338343]
[null,null,null,null,null,null,null,690,1.2596435492272262]
[null,null,null,null,null,null,null,700,1.2624016512261738]
[null,null,null,null,null,null,null,710,1.2497451809555751]
[null,null,null,null,null,null,null,720,1.2620433529895767]
[null,null,null,null,null,null,null,730,1.2617516103988009]
[null,null,null,null,null,null,null,740,1.2496021707991019]
[null,null,null,null,null,null,null,750,1.2679162608421435]
[null,null,null,null,null,null,null,760,1.2648424416446715]
[null,null,null,null,null,null,null,770,1.239354055024013]
[null,null,null,null,null,null,null,780,1.2559930407121107]
[null,null,null,null,null,null,null,790,1.2651139316288167]
[null,null,null,null,null,null,null,800,1.2532212011722299]
[null,null,null,null,null,null,null,810,1.2655895458971311]
[null,null,null,null,null,null,null,820,1.2553456084818635]
[null,null,null,null,null,null,null,830,1.2607296288284098]
[null,null,null,null,null,null,null,840,1.2497983599163336]
[null,null,null,null,null,null,null,850,1.2564708892845498]
[null,null,null,null,null,null,null,860,1.2466129123038119]
[null,null,null,null,null,null,null,870,1.2522308722855278]
[null,null,null,null,null,null,null,880,1.26825269666754]
[null,null,null,null,null,null,null,890,1.2572427119080292]
[null,null,null,null,null,null,null,900,1.2698025789023339]
[null,null,null,null,null,null,null,910,1.2663353069589978]
[null,null,null,null,null,null,null,920,1.2453584357298366]
[null,null,null,null,null,null,null,930,1.2619196424494787]
[null,null,null,null,null,null,null,940,1.2661221431930245]
[null,null,null,null,null,null,null,950,1.2511522497651297]
[null,null,null,null,null,null,null,960,1.2643559856469853]
[null,null,null,null,null,null,null,970,1.2559632843960242]
[null,null,null,null,null,null,null,980,1.2397271019373206]
[null,null,null,null,null,null,null,990,1.2649259763054848]
[null,null,null,null,null,null,null,1000,1.2672893719302847]
[null,null,null,null,null,null,null,1010,1.2488845175511689]
[null,null,null,null,null,null,null,1020,1.2659309855447902]
[null,null,null,null,null,null,null,1030,1.2597633110278268]
[null,null,null,null,null,null,null,1040,1.2623615856758226]
[null,null,null,null,null,null,null,1050,1.2544490983060081]
[null,null,null,null,null,null,null,1060,1.2711589292461358]
[null,null,null,null,null,null,null,1070,1.2507619374608798]
[null,null,null,null,null,null,null,1080,1.2410458169328216]
[null,null,null,null,null,null,null,1090,1.2652281152883675]
[null,null,null,null,null,null,null,1100,1.2619455767158765]
[null,null,null,null,null,null,null,1110,1.2718611360727143]
[null,null,null,null,null,null,null,1120,1.2665028954976894]
[null,null,null,null,null,null,null,1130,1.2456907663552688]
[null,null,null,null,null,null,null,1140,1.2622961418828589]
[null,null,null,null,null,null,null,1150,1.2661460686051633]
[null,null,null,null,null,null,null,1160,1.2604491944429146]
[null,null,null,null,null,null,null,1170,1.2925831474543885]
[null,null,null,null,null,null,null,1180,1.2758733165142604]
[null,null,null,null,null,null,null,1190,1.2672357434310029]
[null,null,null,null,null,null,null,1200,1.273422801076227]
[null,null,null,null,null,null,null,1210,1.2698025789023317]
[null,null,null,null,null,null,null,1220,1.2572427119080221]
[null,null,null,null,null,null,null,1230,1.2650715542880899]
[null,null,null,null,null,null,null,1240,1.2507463482356496]
[null,null,null,null,null,null,null,1250,1.257484570109769]
[null,null,null,null,null,null,null,1260,1.2483586361631156]
[null,null,null,null,null,null,null,1270,1.265122024033841]
[null,null,null,null,null,null,null,1280,1.2537526349667465]
[null,null,null,null,null,null,null,1290,1.2561325752385004]
[null,null,null,null,null,null,null,1300,1.2720483643314837]
[null,null,null,null,null,null,null,1310,1.2649115389531431]
[null,null,null,null,null,null,null,1320,1.2863417948255105]
[null,null,null,null,null,null,null,1330,1.254373007851707]
[null,null,null,null,null,null,null,1340,1.2534972881753945]
[null,null,null,null,null,null,null,1350,1.2477247779314122]
[null,null,null,null,null,null,null,1360,1.2597119629162674]
[null,null,null,null,null,null,null,1370,1.2583955378217857]
[null,null,null,null,null,null,null,1380,1.2838686518070139]
[null,null,null,null,null,null,null,1390,1.2664131737861475]
[null,null,null,null,null,null,null,1400,1.2425254100444802]
[null,null,null,null,null,null,null,1410,1.2517773908921819]
[null,null,null,null,null,null,null,1420,1.2649752741823106]
[null,null,null,null,null,null,null,1430,1.2460645981110869]
[null,null,null,null,null,null,null,1440,1.2441961719122661]
[null,null,null,null,null,null,null,1450,1.4853482607952484]
[null,null,null,null,null,null,null,1460,1.5588600254043152]
[null,null,null,null,null,null,null,1470,2.0693891560308648]
[null,null,null,null,null,null,null,1480,2.129743893784898]
[null,null,null,null,null,null,null,1490,1.8686784324740882]
[null,null,null,null,null,null,null,1500,1.8391148530658152]

{"sheet":"Report","index":9,"n_rows":6,"n_cols":14,"rows_kept":6,"cut":false,"hidden":false,"merged":[[2,0,2,1],[2,3,2,4],[2,7,2,8],[2,11,2,12],[0,3,0,9],[4,4,4,5],[4,7,4,8],[4,10,4,11],[3,3,3,8]]}
[null,null,null,"Nozzle Summary Report "]
[]
["Total Pivot Q (gpm)",null,{"$f":"SUM(M7:M702)","v":0},"Pump Pressure (psi)",null,{"$f":"Output!D31*Pump!C11/2.31","v":0},null,"Pivot Pressure (psi)",null,{"$f":"Output!D32","v":43.820899288026922},"Pivot ","Wetted radius (ft)",null,1577.897804445035]
[]
["Span","Nozzle","Sprinkler","DIST","Nzzl DIA (128ths)",null,"PRSS REG","PART CIRC ANGLS",null,null,"PRESSURE-PSI",null,"DISCHRG","PATTERN"]
["#","#","Model","FT.","RNG","SPRDR","NAME","START","STOP","OFFSET","LINE","NOZ","GPM","RAD (FT)"]

{"sheet":"SprinklerDB","index":10,"n_rows":328,"n_cols":8,"rows_kept":328,"cut":false,"hidden":true,"merged":[]}
["Model","Cd Intercept","Cd Linear Slope","Cd Quadratic Slope","PR Intercept","PR Linear Slope","PR Quadratic Slope","Minimum Operating Pressure (ft)"]
["KM-KPS-BK-FLmini-24-3",0.98514662900000005,-22.401348160000001,6.1961399999999999E-4,12.450535759999999,456.61901810000001,-4589.4042820000004,13.86]
["KM-KPS-BK-FLmini-24-6",0.98514662900000005,-22.401348160000001,6.1961399999999999E-4,15.66015724,574.33077564999996,-5772.506026,13.86]
["KM-KPS-BK-FLmini-24-9",0.98514662900000005,-22.401348160000001,6.1961399999999999E-4,17.908660730000001,656.79383069999994,-6601.3291170000002,13.86]
["KM-KPS-BK-FL-33-3",0.98514662900000005,-22.401348160000001,6.1961399999999999E-4,10.78062254,499.33543429999997,-5007.7603410000002,13.86]
["KM-KPS-BK-FL-33-6",0.98514662900000005,-22.401348160000001,6.1961399999999999E-4,13.49970021,625.27731070000004,-6270.8125700000001,13.86]
["KM-KPS-BK-FL-33-9",0.98514662900000005,-22.401348160000001,6.1961399999999999E-4,15.397968519999999,713.20104839999999,-7152.586577,13.86]
["KM-KPS-BL-CC-33-3",0.98514662900000005,-22.401348160000001,6.1961399999999999E-4,11.263671950000001,546.35931760000005,-5435.7648630000003,13.86]
["KM-KPS-BL-CC-33-6",0.98514662900000005,-22.401348160000001,6.1961399999999999E-4,13.79129605,668.96506999999997,-6655.5775750000003,13.86]
["KM-KPS-BL-CC-33-9",0.98514662900000005,-22.401348160000001,6.1961399999999999E-4,15.525227060000001,753.07168879999995,-7492.3598700000002,13.86]
["KM-KPS-GR-FL-24-3",0.98514662900000005,-22.401348160000001,6.1961399999999999E-4,11.7693049,412.33173199999999,-4068.0999569999999,13.86]
["KM-KPS-GR-FL-24-6",0.98514662900000005,-22.401348160000001,6.1961399999999999E-4,15.075292900000001,528.15537410000002,-5210.8258669999996,13.86]
["KM-KPS-GR-FL-24-9",0.98514662900000005,-22.401348160000001,6.1961399999999999E-4,17.424405520000001,610.4553641,-6022.8045730000003,13.86]
["KM-KPS-PC-BL-CC-15-3",0.98514662900000005,-22.401348160000001,6.1961399999999999E-4,10.542815239999999,412.25176219999997,-4137.4109200000003,13.86]
["KM-KPS-PC-BL-CC-15-6",0.98514662900000005,-22.401348160000001,6.1961399999999999E-4,13.46662061,526.58023070000002,-5284.824987,13.86]
["KM-KPS-PC-BL-CC-15-9",0.98514662900000005,-22.401348160000001,6.1961399999999999E-4,15.539653339999999,607.64125439999998,-6098.3635480000003,13.86]
["KM-KPS-TQ-FLmini-0-3",0.98514662900000005,-22.401348160000001,6.1961399999999999E-4,8.7580370579999993,267.04852119999998,-3049.5221700000002,13.86]
["KM-KPS-TQ-FLmini-0-6",0.98514662900000005,-22.401348160000001,6.1961399999999999E-4,10.7116218,326.61688249999997,-3729.754504,13.86]
["KM-KPS-TQ-FLmini-0-9",0.98514662900000005,-22.401348160000001,6.1961399999999999E-4,12.05061733,367.4452981,-4195.9887209999997,13.86]
["KM-KPS-YL-FL-30-3",0.98514662900000005,-22.401348160000001,6.1961399999999999E-4,10.542815239999999,412.25176219999997,-4137.4101920000003,13.86]
["KM-KPS-YL-FL-30-6",0.98514662900000005,-22.401348160000001,6.1961399999999999E-4,13.46662061,526.58023070000002,-5284.824987,13.86]
["KM-KPS-YL-FL-30-9",0.98514662900000005,-22.401348160000001,6.1961399999999999E-4,15.539653339999999,607.64125439999998,-6098.3635480000003,13.86]
["KM-KPT-BK-10-3",0.98514662900000005,-22.401348160000001,6.1961399999999999E-4,16.999214500000001,349.20696600000002,-3877.7387800000001,13.86]
["KM-KPT-BK-10-6",0.98514662900000005,-22.401348160000001,6.1961399999999999E-4,19.984203699999998,609.06279900000004,-16333.724899999999,23.1]
["KM-KPT-BK-10-9",0.98514662900000005,-22.401348160000001,6.1961399999999999E-4,21.154015399999999,690.49732300000005,-18074.630300000001,23.1]
["KM-KPT-BL-10-3",0.98514662900000005,-22.401348160000001,6.1961399999999999E-4,15.7093338,329.243718,-4054.2829700000002,13.86]
["KM-KPT-BL-10-6",0.98514662900000005,-22.401348160000001,6.1961399999999999E-4,19.232895500000001,509.24363699999998,-13635.5324,23.1]
["KM-KPT-BL-10-9",0.98514662900000005,-22.401348160000001,6.1961399999999999E-4,21.245760600000001,572.94247399999995,-14889.0134,23.1]
["KM-KPT-YL-10-3",0.98514662900000005,-22.401348160000001,6.1961399999999999E-4,14.8991779,196.685697,-2249.1885299999999,13.86]
["KM-KPT-YL-10-6",0.98514662900000005,-22.401348160000001,6.1961399999999999E-4,18.046383599999999,511.47003999999998,-14223.329599999999,23.1]
["KM-KPT-YL-10-9",0.98514662900000005,-22.401348160000001,6.1961399999999999E-4,20.414170200000001,520.184347,-13710.232400000001,23.1]
["KM-KPT-WT-FL-10-13",0.98514662900000005,-22.401348160000001,6.1961399999999999E-4,45.755080613660503,588.35886480568502,-5012.6407731702902,13.86]
["KOMET_TWINMAX",0.978495,-3.738E-3,3.9999999999999998E-6,70.290000000000006,155.38,-60.97,57.75]
["KOMET101",0.97784099999999996,-0.28719699999999998,1.5999999999999999E-5,75.13,133.52000000000001,-44.06,69.3]
["KOMET140",0.97690500000000002,0.12806500000000001,7.9999999999999996E-6,87.54,107.98,-29.52,69.3]
["KOMET160",0.96984700000000001,-1.066019,0,96.28,94.44,-18.989999999999998,69.3]
["KOMET202",0.95883499999999999,3.1300000000000002E-4,9.9999999999999995E-7,99.76,80.45,-12.55,69.3]
["NLA3000_GD1",0.93950434699999996,59.237727079999999,-4.1421700000000004E-6,14.7288,545.37863059999995,-9065.9351009999991,13.86]
["NLA3000_GD3",0.93950434699999996,59.237727079999999,-4.1421700000000004E-6,16.541912,572.45600000000002,-7983.0627899999999,13.86]
["NLA3000_GD6",0.93950434699999996,59.237727079999999,-4.1421700000000004E-6,19.405550000000002,535.41954169999997,-8194.7511040000009,13.86]
["NLA3000_GD9",0.93950434699999996,59.237727079999999,-4.1421700000000004E-6,20.197230000000001,547.62885010000002,-8103.3130499999997,13.86]
["NLA3000_NV12",0.93950434699999996,59.237727079999999,-4.1421700000000004E-6,22.130765005285692,372.92753122346875,-6590.8015726844897,13.86]
["NLA3000_MR1",0.93950434699999996,59.237727079999999,-4.1421700000000004E-6,12.205909999999999,272.07339569999999,-3977.8887789999999,13.86]
["NLA3000_MR3",0.93950434699999996,59.237727079999999,-4.1421700000000004E-6,14.21166,211.52438000000001,-1586.85391,23.1]
["NLA3000_MR6",0.93950434699999996,59.237727079999999,-4.1421700000000004E-6,16.91921,222.95599000000001,-1682.8156200000001,23.1]
["NLA3000_MR9",0.93950434699999996,59.237727079999999,-4.1421700000000004E-6,19.184059999999999,387.70374329999999,-5960.1120010000004,13.86]
["NLA3030_GD1",0.93950434699999996,59.237727079999999,-4.1421700000000004E-6,14.7288,545.37863059999995,-9065.9351009999991,13.86]
["NLA3030_GD3",0.93950434699999996,59.237727079999999,-4.1421700000000004E-6,16.541912,572.45600000000002,-7983.0627899999999,13.86]
["NLA3030_GD6",0.93950434699999996,59.237727079999999,-4.1421700000000004E-6,19.405550000000002,535.41954169999997,-8194.7511040000009,13.86]
["NLA3030_GD9",0.93950434699999996,59.237727079999999,-4.1421700000000004E-6,20.197230000000001,547.62885010000002,-8103.3130499999997,13.86]
["NLA3030_NV12",0.93950434699999996,59.237727079999999,-4.1421700000000004E-6,22.130765005285692,372.92753122346875,-6590.8015726844897,13.86]
["NLA3030_MR1",0.93950434699999996,59.237727079999999,-4.1421700000000004E-6,12.205909999999999,272.07339569999999,-3977.8887789999999,13.86]
["NLA3030_MR3",0.93950434699999996,59.237727079999999,-4.1421700000000004E-6,14.21166,211.52438000000001,-1586.85391,23.1]
["NLA3030_MR6",0.93950434699999996,59.237727079999999,-4.1421700000000004E-6,16.91921,222.95599000000001,-1682.8156200000001,23.1]
["NLA3030_MR9",0.93950434699999996,59.237727079999999,-4.1421700000000004E-6,19.184059999999999,387.70374329999999,-5960.1120010000004,13.86]
["NLD3000_BK3",0.93950434699999996,59.237727079999999,-4.1421700000000004E-6,7.1596900000000003,732.09500000000003,-10148,13.86]
["NLD3000_BK9",0.93950434699999996,59.237727079999999,-4.1421700000000004E-6,9.7573699999999999,1084.5,-15074,13.86]
["NLD3030_BK2",0.93950434699999996,59.237727079999999,-4.1421700000000004E-6,5.8983090000000002,724.20761349999998,-10015.88846,13.86]
["NLD3030_BK3",0.93950434699999996,59.237727079999999,-4.1421700000000004E-6,7.1596688000000004,732.09514560000002,-10148.44686,13.86]
["NLD3030_BK9",0.93950434699999996,59.237727079999999,-4.1421700000000004E-6,9.7573709999999991,1084.5000930000001,-15074.123960000001,13.86]
["NLD3000_BL3",0.93950434699999996,59.237727079999999,-4.1421700000000004E-6,8.3390500000000003,761.31799999999998,-10816,13.86]
["NLD3000_BL9",0.93950434699999996,59.237727079999999,-4.1421700000000004E-6,11.39725,1097.655,-15661,13.86]
["NLD3000_BR3",0.93950434699999996,59.237727079999999,-4.1421700000000004E-6,8.8948199999999993,886.75052000000005,-11391,13.86]
["NLD3000_BR9",0.93950434699999996,59.237727079999999,-4.1421700000000004E-6,10.87321,1197.4362599999999,-16359,13.86]
["NLD3000_GN3",0.93950434699999996,59.237727079999999,-4.1421700000000004E-6,8.8458500000000004,436.63499999999999,-5536.29,13.86]
["NLD3000_GN9",0.93950434699999996,59.237727079999999,-4.1421700000000004E-6,14.46885,579.96699999999998,-7156.57,13.86]
["NLD3000_GR3",0.93950434699999996,59.237727079999999,-4.1421700000000004E-6,7.8162900000000004,546.46600000000001,-7074.75,13.86]
["NLD3000_GR9",0.93950434699999996,59.237727079999999,-4.1421700000000004E-6,14.4962,930.3,-13754,13.86]
["NLD3000_OR3",0.93950434699999996,59.237727079999999,-4.1421700000000004E-6,7.4373699999999996,683.24991,-8969.0998600000003,13.86]
["NLD3000_OR9",0.93950434699999996,59.237727079999999,-4.1421700000000004E-6,12.222849999999999,1007.62499,-14238,13.86]
["NLD3000_PU3",0.93950434699999996,59.237727079999999,-4.1421700000000004E-6,5.5642100000000001,261.375,-3049.68,13.86]
["NLD3000_PU9",0.93950434699999996,59.237727079999999,-4.1421700000000004E-6,11.99198,415.7,-6090.16,13.86]
["NLD3000_TQ3",0.93950434699999996,59.237727079999999,-4.1421700000000004E-6,7.2219300000000004,499.666,-9948.15,13.86]
["NLD3000_TQ9",0.93950434699999996,59.237727079999999,-4.1421700000000004E-6,9.3210080000000008,664.14337850000004,-12303.65904,13.86]
["NLD3000_YL3",0.93950434699999996,59.237727079999999,-4.1421700000000004E-6,8.6441499999999998,364.404,-4904.12,13.86]
["NLD3000_YL9",0.93950434699999996,59.237727079999999,-4.1421700000000004E-6,12.935,397.48599999999999,-4808.88,13.86]
["NLD3000_Bubble",0.93691521600000005,170.4463289,3.8695800000000003E-5,2.7533240000000001,767.15539799999999,-33985.079129999998,13.86]
["NLD3030_BL2",0.93950434699999996,59.237727079999999,-4.1421700000000004E-6,7.2634836609481894,721.33179313954395,-9903.5372076212461,13.86]
["NLD3030_BL3",0.93950434699999996,59.237727079999999,-4.1421700000000004E-6,8.3390541635164617,761.31816123715532,-10816.47714704112,13.86]
["NLD3030_BL9",0.93950434699999996,59.237727079999999,-4.1421700000000004E-6,11.39724514595191,1097.6553957939557,-15661.319227345277,13.86]
["NLD3030_BR3",0.93950434699999996,59.237727079999999,-4.1421700000000004E-6,9.0571748874816027,902.11085790342554,-11848.421040703175,13.86]
["NLD3030_BR9",0.93950434699999996,59.237727079999999,-4.1421700000000004E-6,11.375690432021184,1226.573880695048,-17660.548253706915,13.86]
["NLD3030_GR3",0.93950434699999996,59.237727079999999,-4.1421700000000004E-6,7.8162889752999014,546.46610630642067,-7074.7520833775898,13.86]
["NLD3030_GR9",0.93950434699999996,59.237727079999999,-4.1421700000000004E-6,14.496202686234353,930.29989508917652,-13754.17500067221,13.86]
["NLD3030_GN2",0.93950434699999996,59.237727079999999,-4.1421700000000004E-6,7.7277076969798726,365.87720910327647,-4866.3595791558018,13.86]
["NLD3030_GN3",0.93950434699999996,59.237727079999999,-4.1421700000000004E-6,8.8458450439869285,436.63503556005924,-5536.2859838993272,13.86]
["NLD3030_GN9",0.93950434699999996,59.237727079999999,-4.1421700000000004E-6,14.468854797956453,579.96750206686056,-7156.568589731236,13.86]
["NLD3030_YL2",0.93950434699999996,59.237727079999999,-4.1421700000000004E-6,6.8973190152004813,277.72283770561717,-3358.1649660826411,13.86]
["NLD3030_YL3",0.93950434699999996,59.237727079999999,-4.1421700000000004E-6,8.3077141644832366,455.2317224529358,-8193.5459780257297,13.86]
["NLD3030_YL9",0.93950434699999996,59.237727079999999,-4.1421700000000004E-6,12.934921523562091,397.48643938215207,-4808.8759550455879,13.86]
["NLD3030_OR3",0.93950434699999996,59.237727079999999,-4.1421700000000004E-6,7.437373653659245,683.24990559952755,-8969.0998640911166,13.86]
["NLD3030_OR9",0.93950434699999996,59.237727079999999,-4.1421700000000004E-6,12.222850515642,1007.6249881339222,-14237.877062935228,13.86]
["NLD3030_PU3",0.93950434699999996,59.237727079999999,-4.1421700000000004E-6,5.564210468865407,261.37457954587467,-3049.6828066419112,13.86]
["NLD3030_PU9",0.93950434699999996,59.237727079999999,-4.1421700000000004E-6,11.991978175705439,415.70024824617792,-6090.1587218080804,13.86]
["NLD3030_TQ3",0.93950434699999996,59.237727079999999,-4.1421700000000004E-6,7.1576240263160145,509.46473721234577,-10231.446569739301,13.86]
["NLD3030_TQ9",0.93950434699999996,59.237727079999999,-4.1421700000000004E-6,9.3210075374296437,664.14337849410174,-12303.659041335737,13.86]
["NLD3030_Bubble",0.93950434699999996,59.237727079999999,-4.1421700000000004E-6,2.7533235085320098,767.15539801022442,-33985.079127383557,13.86]
["NLF32AS",0.9536,470,5.5550000000000002E-5,25.13,928,-14930,57.75]
["NLF32S",0.9536,470,5.5550000000000002E-5,36.619999999999997,403.9,-2238,57.75]
["NLF333DN",1.0109999999999999,-21.05,-1.0280000000000001E-3,31.73,389.1,-3032,46.2]
["NLF33A",0.97560000000000002,-150.19999999999999,-7.6709999999999999E-6,32.619999999999997,611.70000000000005,-5187,57.75]
["NLF33AS",0.97560000000000002,-150.19999999999999,-7.6709999999999999E-6,32.619999999999997,611.70000000000005,-5187,57.75]
["NLF33S",0.97560000000000002,-150.19999999999999,-7.6709999999999999E-6,35.229999999999997,600.79999999999995,-4340,57.75]
["NLF43A",1.0109999999999999,-454,-1.7139999999999999E-5,30.34,385.9,-1992,57.75]
["NLF43AP",0.94450000000000001,-3.1230000000000002,-8.7490000000000004E-6,30.7,362.7,-1528,57.75]
["NLF43P",0.97499999999999998,-129.1,-2.4600000000000002E-5,40.46,419,-1836,57.75]
["NLF44AAB",0.99548000000000003,-1103.3506500000001,1.8508000000000001E-4,44,0,0,57.75]
["NLF70A",0.99570000000000003,-187.4,-4.0539999999999996E-6,41.4,233.5,-494.7,69.3]
["NLF80A",0.9909,-93.08,9.6000000000000002E-5,55.33,107.1,-77.040000000000006,92.4]
["NLHD3000",0.93950434699999996,59.237727079999999,-4.1421700000000004E-6,0,0,0,23.1]
["NLN3000_BL3",0.93950434699999996,59.237727079999999,-4.1421700000000004E-6,17.285340000000001,156.88982999999999,-943.71213,13.86]
["NLN3000_BL6",0.93950434699999996,59.237727079999999,-4.1421700000000004E-6,20.40307,147.58780999999999,-2399.13778,13.86]
["NLN3000_GN3",0.93950434699999996,59.237727079999999,-4.1421700000000004E-6,20.8644,48.728490000000001,-698.51900000000001,13.86]
["NLN3000_GN6",0.93950434699999996,59.237727079999999,-4.1421700000000004E-6,23.05988,22.585799999999999,-1123.8364300000001,13.86]
["NLO3000_BK3",0.93950434699999996,59.237727079999999,-4.1421700000000004E-6,19.483529999999998,484.6773,-7409.5161280000002,23.1]
["NLO3000_BK6",0.93950434699999996,59.237727079999999,-4.1421700000000004E-6,21.60961,468.4948,-6812.8735770000003,23.1]
["NLO3000_BL3",0.93950434699999996,59.237727079999999,-4.1421700000000004E-6,17.488209999999999,299.65982300000002,-3770.5379349999998,23.1]
["NLO3000_BL6",0.93950434699999996,59.237727079999999,-4.1421700000000004E-6,19.677029999999998,369.42070000000001,-5390.9594299999999,23.1]
["NLO3000_PU3",0.93950434699999996,59.237727079999999,-4.1421700000000004E-6,17.073309999999999,208.80789999999999,-1579.0727879999999,23.1]
["NLO3000_PU6",0.93950434699999996,59.237727079999999,-4.1421700000000004E-6,18.98742,255.7517,-2321.6451940000002,23.1]
["NLO3030_BK3",0.93950434699999996,59.237727079999999,-4.1421700000000004E-6,19.577939066615226,481.39990392736973,-7396.513819939707,23.1]
["NLO3030_BK6",0.93950434699999996,59.237727079999999,-4.1421700000000004E-6,20.597810053924285,524.10198876352024,-7547.624545986534,23.1]
["NLO3030_BL3",0.93950434699999996,59.237727079999999,-4.1421700000000004E-6,17.62085868485018,293.85821225052615,-3720.9799300372692,23.1]
["NLO3030_BL6",0.93950434699999996,59.237727079999999,-4.1421700000000004E-6,19.122340812210865,385.69100275619081,-5443.6597607919921,23.1]
["NLO3030_PU3",0.93950434699999996,59.237727079999999,-4.1421700000000004E-6,17.842422096694094,252.6182879895922,-3206.6868734827408,23.1]
["NLO3030_PU6",0.93950434699999996,59.237727079999999,-4.1421700000000004E-6,18.633981954277775,289.06709416313203,-2930.9763590806401,23.1]
["NLP85A",0.97914000000000001,-81.616870000000006,1.4071E-4,48.782640000000001,134.8844,-103.89301,46.2]
["NLP85AV",0.97999000000000003,-91.997879999999995,8.1180000000000005E-5,51.590820000000001,184.22730000000001,-132.97980999999999,46.2]
["NLP85PV",0.98751,-91.071119999999993,3.129E-5,63.853409999999997,125.48604,-71.036270000000002,92.4]
["NLR30",1.0349999999999999,-264.2,-4.06E-4,30,0,0,34.65]
["NLR30_LEPA",1.0349999999999999,-264.2,-4.06E-4,0,0,0,34.65]
["NLR55a",1.2506259224804805,-376.32975787456155,-2.5828713513609356E-4,36.826830000000001,78.016199549999996,-116.10147550000001,34.65]
["NLR55i_GR",1.0188401899999999,15.105437889999999,-1.05139E-4,32.933320000000002,116.2868168,-290.53865680000001,34.65]
["NLR3000_BL12",0.93950434699999996,59.237727079999999,-4.1421700000000004E-6,32.467880000000001,75.678079999999994,-461.11899,46.2]
["NLR3000_BR1",0.93950434699999996,59.237727079999999,-4.1421700000000004E-6,19.420000000000002,291.16019840000001,-3643.2602670000001,34.65]
["NLR3000_BR3",0.93950434699999996,59.237727079999999,-4.1421700000000004E-6,23.232230000000001,271.39591999999999,-3483.5090700000001,34.65]
["NLR3000_BR6",0.93950434699999996,59.237727079999999,-4.1421700000000004E-6,26.027159999999999,268.21809000000002,-3393.9852000000001,34.65]
["NLR3000_BR9",0.93950434699999996,59.237727079999999,-4.1421700000000004E-6,26.632439999999999,319.17423000000002,-3573.9042599999998,34.65]
["NLR3000_GN1",0.93950434699999996,59.237727079999999,-4.1421700000000004E-6,19.429069999999999,203.70831999999999,-1378.0889299999999,46.2]
["NLR3000_GN3",0.93950434699999996,59.237727079999999,-4.1421700000000004E-6,24.06898,144.35471999999999,-1224.0862099999999,46.2]
["NLR3000_GN6",0.93950434699999996,59.237727079999999,-4.1421700000000004E-6,27.633859999999999,155.85399000000001,-1032.0501999999999,46.2]
["NLR3000_GN9",0.93950434699999996,59.237727079999999,-4.1421700000000004E-6,28.423169999999999,275.50686000000002,-1818.73406,46.2]
["NLR3000_OR1",0.93950434699999996,59.237727079999999,-4.1421700000000004E-6,20.95384,308.4826162,-2631.6869620000002,34.65]
["NLR3000_OR3",0.93950434699999996,59.237727079999999,-4.1421700000000004E-6,23.833729999999999,278.40016309999999,-2247.1514929999998,34.65]
["NLR3000_OR6",0.93950434699999996,59.237727079999999,-4.1421700000000004E-6,25.163675149732164,331.33421563217706,-3074.900193306662,34.65]
["NLR3000_OR9",0.93950434699999996,59.237727079999999,-4.1421700000000004E-6,27.015440000000002,403.86827088072653,-3779.0878830000001,34.65]
["NLR3000_RD1",0.93950434699999996,59.237727079999999,-4.1421700000000004E-6,15.16849,295.64127000000002,-3116.4460300000001,34.65]
["NLR3000_RD3",0.93950434699999996,59.237727079999999,-4.1421700000000004E-6,17.322839999999999,344.56517000000002,-4208.6714199999997,34.65]
["NLR3000_RD6",0.93950434699999996,59.237727079999999,-4.1421700000000004E-6,20.32498,370.87335000000002,-4205.2012199999999,34.65]
["NLR3000_RD9",0.93950434699999996,59.237727079999999,-4.1421700000000004E-6,22.687840000000001,447.66484000000003,-4670.7354299999997,34.65]
["NLR3000_WH12",0.93950434699999996,59.237727079999999,-4.1421700000000004E-6,29.612559999999998,318.51792999999998,-2806.7422499999998,34.65]
["NLR3000_PC1",0.93950434699999996,59.237727079999999,-4.1421700000000004E-6,9.1582500000000007,107.6693877,-265.88547089999997,34.65]
["NLR3000_PC3",0.93950434699999996,59.237727079999999,-4.1421700000000004E-6,10.22232,131.03482149999999,-529.61666219999995,34.65]
["NLR3000_PC6",0.93950434699999996,59.237727079999999,-4.1421700000000004E-6,11.33958,159.0436794,-872.14985609999997,34.65]
["NLR3030_BL12",0.93950434699999996,59.237727079999999,-4.1421700000000004E-6,32.488646690461842,72.628568563102959,-426.50608002811191,34.65]
["NLR3030_BR1",0.93950434699999996,59.237727079999999,-4.1421700000000004E-6,19.429559573780331,291.16019841003282,-3643.260267172569,34.65]
["NLR3030_BR3",0.93950434699999996,59.237727079999999,-4.1421700000000004E-6,23.232234963528342,271.39592170389568,-3484.5090669075471,34.65]
["NLR3030_BR6",0.93950434699999996,59.237727079999999,-4.1421700000000004E-6,26.027159391676641,268.21809489157607,-3393.9851976820069,34.65]
["NLR3030_BR9",0.93950434699999996,59.237727079999999,-4.1421700000000004E-6,26.438444768111609,296.67023325357059,-3232.0235388934511,34.65]
["NLR3030_GN1",0.93950434699999996,59.237727079999999,-4.1421700000000004E-6,19.14753774735026,217.12340373050148,-1501.5966540167751,34.65]
["NLR3030_GN3",0.93950434699999996,59.237727079999999,-4.1421700000000004E-6,23.685277425713135,162.15919081442468,-1385.9487712635951,34.65]
["NLR3030_GN6",0.93950434699999996,59.237727079999999,-4.1421700000000004E-6,26.932011752881497,186.42896212185332,-1301.3442511112646,34.65]
["NLR3030_GN9",0.93950434699999996,59.237727079999999,-4.1421700000000004E-6,28.423169853534265,275.50686114352465,-1818.7340550349093,34.65]
["NLR3030_OL6",0.93950434699999996,59.237727079999999,-4.1421700000000004E-6,21.941431032719251,492.60176938151091,-9203.4286397807482,34.65]
["NLR3030_OR1",0.93950434699999996,59.237727079999999,-4.1421700000000004E-6,21.050223817308847,313.76114920096137,-2757.5644804700173,34.65]
["NLR3030_OR3",0.93950434699999996,59.237727079999999,-4.1421700000000004E-6,23.946140786479145,279.44889495692496,-2304.2158211862447,34.65]
["NLR3030_OR6",0.93950434699999996,59.237727079999999,-4.1421700000000004E-6,25.163675149732164,331.33421563217706,-3074.900193306662,34.65]
["NLR3030_OR9",0.93950434699999996,59.237727079999999,-4.1421700000000004E-6,27.015437693415929,403.86827088072653,-3779.0878829203934,34.65]
["NLR3030_PC1",0.93950434699999996,59.237727079999999,-4.1421700000000004E-6,9.1582500000000007,107.6693877,-265.88547089999997,34.65]
["NLR3030_PC3",0.93950434699999996,59.237727079999999,-4.1421700000000004E-6,10.22232,131.03482149999999,-529.61666219999995,34.65]
["NLR3030_PC6",0.93950434699999996,59.237727079999999,-4.1421700000000004E-6,11.33958,159.0436794,-872.14985609999997,34.65]
["NLR3030_RD1",0.93950434699999996,59.237727079999999,-4.1421700000000004E-6,14.77283549522444,322.1276945985594,-3453.8479065045963,34.65]
["NLR3030_RD3",0.93950434699999996,59.237727079999999,-4.1421700000000004E-6,16.35486115718561,369.73036714944595,-4353.9145111419402,34.65]
["NLR3030_RD6",0.93950434699999996,59.237727079999999,-4.1421700000000004E-6,19.597418793048377,389.86095280724476,-4339.121663015183,34.65]
["NLR3030_RD9",0.93950434699999996,59.237727079999999,-4.1421700000000004E-6,22.201959544984259,477.88763541424186,-5043.0763954829681,34.65]
["NLR3030_WH12",0.93950434699999996,59.237727079999999,-4.1421700000000004E-6,30.104264480283703,289.13664992014606,-2574.7124054760311,34.65]
["NLS3000_BG3",0.93950434699999996,59.237727079999999,-4.1421700000000004E-6,12.251609999999999,1995.44175,-91873,23.1]
["NLS3000_BG6",0.93950434699999996,59.237727079999999,-4.1421700000000004E-6,12.73733,3470.0157100000001,-373461,23.1]
["NLS3000_GR3",0.93950434699999996,59.237727079999999,-4.1421700000000004E-6,14.042400000000001,707.05429000000004,-10390,23.1]
["NLS3000_GR6",0.93950434699999996,59.237727079999999,-4.1421700000000004E-6,15.67597,746.7201,-10071,23.1]
["NLS3000_PU3",0.93950434699999996,59.237727079999999,-4.1421700000000004E-6,14.641999999999999,620.35852999999997,-9109.4418399999995,23.1]
["NLS3000_PU6",0.93950434699999996,59.237727079999999,-4.1421700000000004E-6,15.86811,748.90241000000003,-11413,23.1]
["NLS3000_RD3",0.93950434699999996,59.237727079999999,-4.1421700000000004E-6,14.9038,437.95969200000002,-7076.5741379999999,23.1]
["NLS3000_RD6",0.93950434699999996,59.237727079999999,-4.1421700000000004E-6,16.141079999999999,367.99412999999998,-4961.3159999999998,23.1]
["NLS3000_YL3",0.93950434699999996,59.237727079999999,-4.1421700000000004E-6,7.4373699999999996,683.24991,-8969.0998600000003,23.1]
["NLS3000_YL6",0.93950434699999996,59.237727079999999,-4.1421700000000004E-6,18.25206,444.98164000000003,-5752.2301900000002,23.1]
["NLS3000_TRQPC3",0.93950434699999996,59.237727079999999,-4.1421700000000004E-6,7.6365299999999996,-3.0271827820000001,3293.425013,23.1]
["NLS3000_TRQPC6",0.93950434699999996,59.237727079999999,-4.1421700000000004E-6,9.8373159999999995,235.64822860000001,-5431.2373850000004,23.1]
["NLS3030_BG3",0.93950434699999996,59.237727079999999,-4.1421700000000004E-6,12.25161424240058,1995.4417470353435,-91872.983749485531,23.1]
["NLS3030_BG6",0.93950434699999996,59.237727079999999,-4.1421700000000004E-6,12.737329410351078,3470.0157145061116,-373461.2433659957,23.1]
["NLS3030_LM12",0.93950434699999996,59.237727079999999,-4.1421700000000004E-6,19.34488645255642,386.25359788636609,-4672.7606439654201,23.1]
["NLS3030_PU3",0.93950434699999996,59.237727079999999,-4.1421700000000004E-6,15.796893480292756,535.10170575767768,-7746.0102320365913,23.1]
["NLS3030_PU6",0.93950434699999996,59.237727079999999,-4.1421700000000004E-6,17.026812458225571,652.09402037133702,-9343.6965305599006,23.1]
["NLS3030_RD3",0.93950434699999996,59.237727079999999,-4.1421700000000004E-6,15.076767939298094,423.3878147281988,-6829.964711994734,23.1]
["NLS3030_RD6",0.93950434699999996,59.237727079999999,-4.1421700000000004E-6,17.164327960855569,528.03950440831443,-8647.0097681985426,23.1]
["NLS3030_YL3",0.93950434699999996,59.237727079999999,-4.1421700000000004E-6,15.283712098071916,393.95312254576419,-5876.1143137238932,23.1]
["NLS3030_YL6",0.93950434699999996,59.237727079999999,-4.1421700000000004E-6,17.816156759141322,522.87027030260901,-7181.0495070886964,23.1]
["NLS3030_TRQPC3",0.93950434699999996,59.237727079999999,-4.1421700000000004E-6,7.6365299999999996,-3.0271827820000001,3293.425013,23.1]
["NLS3030_TRQPC6",0.93950434699999996,59.237727079999999,-4.1421700000000004E-6,9.8373159999999995,235.64822860000001,-5431.2373850000004,23.1]
["NLSPR1",0.98609999999999998,-250,-2.8969999999999999E-4,12.23,703.4,-10680,23.1]
["NLSR100",0.97992999999999997,-1.79948,-2.3499999999999999E-5,86.091859999999997,104.28165,-27.31587,69.3]
["NLSR150",0.95843999999999996,8.9413499999999999,1.7030000000000001E-5,106.75626,65.796499999999995,-8.9403799999999993,69.3]
["NLSR200",1.00292,-3.8397700000000001,4.4599999999999996E-6,141.04479000000001,37.787939999999999,-2.12277,69.3]
["NLSR75",0.91083999999999998,7.61137,-9.1360000000000006E-5,59.116570000000003,172.86564999999999,-92.796199999999999,57.75]
["NT3FC02.0_BL12",15.26868,0,-4.1988999999999999E-2,31,0,0,57.75]
["NT3FC02.0_GN6",15.26868,0,-4.1988999999999999E-2,27,0,0,57.75]
["NT3FC02.5_BL12",11.7189,0,-3.0331E-2,32,0,0,57.75]
["NT3FC02.5_GN6",11.7189,0,-3.0331E-2,27,0,0,57.75]
["NT3FC03.0_BL12",10.7378,0,-3.4953999999999999E-2,32,0,0,57.75]
["NT3FC03.0_GN6",10.7378,0,-3.4953999999999999E-2,28,0,0,57.75]
["NT3FC03.5_BL12",8.2935199999999991,0,-2.2325000000000001E-2,33,0,0,57.75]
["NT3FC03.5_GN6",8.2935199999999991,0,-2.2325000000000001E-2,29,0,0,57.75]
["NT3FC04.0_BL12",7.2245499999999998,0,-1.9231999999999999E-2,33,0,0,57.75]
["NT3FC04.0_GN6",7.2245499999999998,0,-1.9231999999999999E-2,29,0,0,57.75]
["NT3FC04.3_BL12",6.9639199999999999,0,-2.0249E-2,33,0,0,57.75]
["NT3FC04.3_GN6",6.9639199999999999,0,-2.0249E-2,29,0,0,57.75]
["NT3FC05.0_BL12",5.8647499999999999,0,-1.6560999999999999E-2,33,0,0,57.75]
["NT3FC05.0_GN6",5.8647499999999999,0,-1.6560999999999999E-2,29,0,0,57.75]
["NT3FC05.5_BL12",5.5217999999999998,0,-1.5519E-2,33,0,0,57.75]
["NT3FC05.5_GN6",5.5217999999999998,0,-1.5519E-2,30,0,0,57.75]
["NT3FC06.0_BL12",4.9554,0,-1.2997999999999999E-2,33,0,0,57.75]
["NT3FC06.0_GN6",4.9554,0,-1.2997999999999999E-2,30,0,0,57.75]
["NT3FC07.0_BL12",4.3757700000000002,0,-1.3365E-2,33,0,0,57.75]
["NT3FC07.0_GN6",4.3757700000000002,0,-1.3365E-2,30,0,0,57.75]
["NT3FC08.0_BL12",3.7553999999999998,0,-1.0678999999999999E-2,33,0,0,57.75]
["NT3FC08.0_GN6",3.7553999999999998,0,-1.0678999999999999E-2,30,0,0,57.75]
["NT3FC09.0_BL12",3.17123,0,-8.8761299999999994E-3,34,0,0,57.75]
["NT3FC09.0_GN6",3.17123,0,-8.8761299999999994E-3,31,0,0,57.75]
["NT3FC10.0_BL12",2.8468800000000001,0,-7.8907700000000001E-3,34,0,0,57.75]
["NT3FC10.0_GN6",2.8468800000000001,0,-7.8907700000000001E-3,31,0,0,57.75]
["RB20",0.96560000000000001,-721.4,2.209E-4,34.58,481.6,-8581,46.2]
["RB35",0.95199999999999996,-269.7,-1.472E-5,34.909999999999997,635,-4837,69.3]
["RB40",0.99950000000000006,-246.7,1.3019999999999999E-4,39.369999999999997,472.7,-2323,57.75]
["RB65",0.98370000000000002,-284.3,2.253E-4,42.92,328.5,-780.3,92.4]
["RB70",1.002,-351,1.818E-4,54.2,253.5,-314.5,92.4]
["RB85",0.96030000000000004,-118.7,9.8610000000000006E-5,54.74,175,-155.4,57.75]
["RB8X",0.92200000000000004,-916.6,3.0029999999999998E-4,21.21,312.5,-1628,23.1]
["RBL20",1.0589999999999999,-2174,-1.241E-5,27.24,873.5,-22290,57.75]
["RBL2020",1.0840000000000001,-1472,-1.9320000000000001E-5,31.1,365.2,-6705,57.75]
["RBL30",1.0089999999999999,-926.8,-2.561E-5,33.54,171,-1075,57.75]
["RBL3030",1.081,-460.8,-1.929E-4,33.69,154.1,-798.4,57.75]
["RBL36AH-QF-SBN-3",1.006822133,-744.387024,-1.5364E-4,43.403149999999997,242.5972926,10792.55,57.75]
["RBL36AH-QF-LPN-3",1.059215461,-1034.885704,-6.2811599999999996E-4,34.539630000000002,1473.589297,-46637.463510000001,34.65]
["RBL36H-QF-SBN-3",1.0663335039999999,-49.733096629999999,-7.1053700000000002E-4,47.153170000000003,227.8027946,-504.0729915,57.75]
["RBL36H-QF-LPN-3",1.06908078,-16.155424239999999,-1.0752629999999999E-3,45.466000000000001,-222.19716410000001,4088.0880390000002,34.65]
["RB30H/WH/FH/FWH-SBN-3",1.020192859,-163.1409673,-2.5053500000000003E-4,36.197699999999998,477.0275436,-2289.8067820000001,34.65]
["RB30H/WH-SBN-3V",1.032994129,-102.4731282,-3.6848499999999999E-4,39.400669999999998,518.57827810000003,-3113.142527,34.65]
["SEN_LDN_LEPA",0.99865300000000001,-1.7876129999999999,-7.2300000000000001E-4,0,0,0,13.86]
["SENLDNCV1.5",0.99865300000000001,-1.7876129999999999,-7.2300000000000001E-4,6.9859099999999996,811.31337499999995,-15810,13.86]
["SENLDNCV3",0.99865300000000001,-1.7876129999999999,-7.2300000000000001E-4,8.5209510000000002,883.65142500000002,-17735,13.86]
["SENLDNCV6",0.99865300000000001,-1.7876129999999999,-7.2300000000000001E-4,10.685750000000001,954.77742000000001,-19383,13.86]
["SENLDNCV9",0.99865300000000001,-1.7876129999999999,-7.2300000000000001E-4,12.16489,928.80976999999996,-18882,13.86]
["SENLDNCX1.5",0.99865300000000001,-1.7876129999999999,-7.2300000000000001E-4,3.8877359999999999,310.41191800000001,-6362.9435819999999,13.86]
["SENLDNCX1.5-UP3",0.99865300000000001,-1.7876129999999999,-7.2300000000000001E-4,3.8877359999999999,310.41191800000001,-6362.9435000000003,13.86]
["SENLDNCX3",0.99865300000000001,-1.7876129999999999,-7.2300000000000001E-4,5.6860189999999999,430.33027399999997,-8530.0190669999993,13.86]
["SENLDNCX3-UP3",0.99865300000000001,-1.7876129999999999,-7.2300000000000001E-4,5.6860189999999999,430.33027399999997,-8530.0190000000002,13.86]
["SENLDNCX6",0.99865300000000001,-1.7876129999999999,-7.2300000000000001E-4,7.9737970000000002,587.85808999999995,-11365,13.86]
["SENLDNCX6-UP3",0.99865300000000001,-1.7876129999999999,-7.2300000000000001E-4,7.9737970000000002,587.85808999999995,-11365,13.86]
["SENLDNCX9",0.99865300000000001,-1.7876129999999999,-7.2300000000000001E-4,9.7084419999999998,749.00224400000002,-15222,13.86]
["SENLDNCX9-UP3",0.99865300000000001,-1.7876129999999999,-7.2300000000000001E-4,9.7084419999999998,749.00224400000002,-15222,13.86]
["SENLDNFL1.5",0.99865300000000001,-1.7876129999999999,-7.2300000000000001E-4,5.3543070000000004,468.16581600000001,-8190.6086459999997,13.86]
["SENLDNFL1.5-UP3",0.99865300000000001,-1.7876129999999999,-7.2300000000000001E-4,5.3543070000000004,468.16581600000001,-8190.6085999999996,13.86]
["SENLDNFL3",0.99865300000000001,-1.7876129999999999,-7.2300000000000001E-4,9.4056200000000008,238.85123999999999,-1288.51323,13.86]
["SENLDNFL3-UP3",0.99865300000000001,-1.7876129999999999,-7.2300000000000001E-4,9.4056200000000008,238.85123999999999,-1288.5132000000001,13.86]
["SENLDNFL6",0.99865300000000001,-1.7876129999999999,-7.2300000000000001E-4,11.52153,254.86754999999999,-1100.1970799999999,13.86]
["SENLDNFL6-UP3",0.99865300000000001,-1.7876129999999999,-7.2300000000000001E-4,11.52153,254.86754999999999,-1100.1969999999999,13.86]
["SENLDNFL9",0.99865300000000001,-1.7876129999999999,-7.2300000000000001E-4,10.38627,859.21058000000005,-17051,13.86]
["SENLDNFL9-UP3",0.99865300000000001,-1.7876129999999999,-7.2300000000000001E-4,10.38627,859.21058000000005,-17051,13.86]
["SENLNDCV1.5-UP3",0.99865300000000001,-1.7876129999999999,-7.2300000000000001E-4,6.9859099999999996,811.31337499999995,-15810,13.86]
["SENLNDCV3-UP3",0.99865300000000001,-1.7876129999999999,-7.2300000000000001E-4,8.5209510000000002,883.65142500000002,-17735,13.86]
["SENLNDCV6-UP3",0.99865300000000001,-1.7876129999999999,-7.2300000000000001E-4,10.685750000000001,954.77419999999995,-19383,13.86]
["SENLNDCV9-UP3",0.99865300000000001,-1.7876129999999999,-7.2300000000000001E-4,12.16489,928.80976999999996,-18882,13.86]
["SENSSPRAYCV_3-UP3",0.97370000000000001,7.0182000000000002,-1.117E-5,8.5209510000000002,883.65142500000002,-17735,13.86]
["SENSSPRAYCV_6-UP3",0.97370000000000001,7.0182000000000002,-1.117E-5,10.685750000000001,954.77742000000001,-19383,13.86]
["SENSSPRAYCV_9-UP3",0.97370000000000001,7.0182000000000002,-1.117E-5,12.16489,928.80976999999996,-18882,13.86]
["SENSSPRAYCX_3-UP3",0.97370000000000001,7.0182000000000002,-1.117E-5,5.8601900000000002,430.33027399999997,-8530.0190000000002,13.86]
["SENSSPRAYCX_6-UP3",0.97370000000000001,7.0182000000000002,-1.117E-5,7.9737970000000002,587.85808999999995,-11365,13.86]
["SENSSPRAYCX_9-UP3",0.97370000000000001,7.0182000000000002,-1.117E-5,9.7084419999999998,749.00224400000002,-15222,13.86]
["SENSSPRAYFL_3-UP3",0.97370000000000001,7.0182000000000002,-1.117E-5,9.4056200000000008,238.85123999999999,-1288.5132000000001,13.86]
["SENSSPRAYFL_6-UP3",0.97370000000000001,7.0182000000000002,-1.117E-5,11.52153,254.86754999999999,-1100.1969999999999,13.86]
["SENSSPRAYFL_9-UP3",0.97370000000000001,7.0182000000000002,-1.117E-5,10.38627,859.21058000000005,-17051,13.86]
["SN2014PM_12",0.93801999999999996,0,4.5009999999999998E-5,38.125,651.36496,0,57.75]
["SNIWOBL6_3",1.016,-355.29199999999997,-7.5799999999999999E-4,19.351420000000001,270.55169000000001,-3510.7550000000001,23.1]
["SNIWOBL6_3-UP3",1.016,-355.29199999999997,-7.5799999999999999E-4,19.351420000000001,270.55169000000001,-3510.7550000000001,23.1]
["SNIWOBL6_6",1.016,-355.29199999999997,-7.85E-4,21.154959999999999,268.39192000000003,-3404.5839999999998,23.1]
["SNIWOBL6_6-UP3",1.016,-355.29199999999997,-7.85E-4,21.154959999999999,268.39192000000003,3404.5839999999998,23.1]
["SNIWOBL9_3",1.004,-293.61,-7.1790000000000005E-4,17.431819999999998,386.77848,-5736.7610000000004,23.1]
["SNIWOBL9_3-UP3",1.004,-293.69099999999997,-7.1790000000000005E-4,17.431819999999998,386.77848,-5736.7610000000004,23.1]
["SNIWOBL9_6",1.004,-293.69099999999997,-7.1790000000000005E-4,19.49784,345.56900999999999,-4967.5420000000004,23.1]
["SNIWOBL9_6-UP3",1.004,-293.69099999999997,-7.1790000000000005E-4,19.49784,345.56900999999999,-4967.5420000000004,23.1]
["SNIWOBS6_3-UP3",1.0143,-59.542400000000001,-7.1270000000000003E-4,16.887899999999998,244.047,-2353.8312000000001,23.1]
["SNIWOBS6_6-UP3",1.0143,-59.542400000000001,-7.1270000000000003E-4,17.652899999999999,333.4941,-3631.6147999999998,23.1]
["SNIWOBS9_3",1.004,-293.69099999999997,-7.1790000000000005E-4,19.521039999999999,312.55291999999997,-3336.8180000000002,23.1]
["SNIWOBS9_3-UP3",1.004,-293.69099999999997,-7.1790000000000005E-4,19.52101,312.55291999999997,-3336.8180000000002,23.1]
["SNIWOBS9_6",1.004,-293.69099999999997,-7.1790000000000005E-4,20.62453,383.42054999999999,-4932.8940000000002,23.1]
["SNIWOBS9_6-UP3",1.004,-293.69099999999997,-7.1790000000000005E-4,20.62453,383.42054999999999,-4932.8940000000002,23.1]
["SNS3005_SPVN",0.93918000000000001,743.11460999999997,2.43E-6,27.60913,1178.5075999999999,-24755,57.75]
["SNS3005_STVN",0.93918000000000001,743.11460999999997,2.43E-6,27.96481,1644.0165199999999,-31988,57.75]
["SNS4006",0.96309999999999996,-57.42,3.7910000000000001E-5,36.14,459.5,-3460,57.75]
["SNS5006",0.98950000000000005,-232.4,-2.3589999999999999E-5,37.68,347.1,-847.7,57.75]
["SNS5006H",0.99846999999999997,-162.43267,1.7E-6,35.393140000000002,434.93621999999999,-1000.82346,57.75]
["SNSENDSPRAY",0.85740000000000005,19.200800000000001,-4.3640000000000002E-5,17.936299999999999,157.46899999999999,-527.59739999999999,23.1]
["SNSFANSPRAY",0.9607,-40.725999999999999,-6.7179999999999996E-4,12.774699999999999,485.03919999999999,-5549.7740000000003,23.1]
["SNSSPR",0.98280000000000001,-61.87,-2.42E-4,12.55,380.7,-3515,13.86]
["SNSSPR_LEPA",0.98280000000000001,-61.87,-2.42E-4,0,0,0,13.86]
["SNSWobLA",0.99439,-37.505020000000002,-7.0339000000000003E-4,20.888359999999999,605.16846999999996,-12835,23.1]
["SNSWobSD",0.98189000000000004,-54.336759999999998,-2.1798E-4,23.151540000000001,442.96679999999998,-6033.9241400000001,23.1]
["SNXCELHA_12",0.93462000000000001,176.35845,0,21.66132,0,0,23.1]
["SNXCELMA_12",0.93462000000000001,176.35845,0,22.289400000000001,0,0,23.1]
["SNXCELWOBTOP_UP3",0.96889999999999998,2.5223,1.472E-5,22.027200000000001,605.11090000000002,-21400.713299999999,23.1]
["SNXWOB605_TOP",0.95089999999999997,-44.803400000000003,1.727E-3,21.9298,240.53309999999999,-5193.2426999999998,23.1]
["SNXWOB605_TOP-UP3",0.95089999999999997,-44.803400000000003,1.727E-3,21.9298,240.53309999999999,-5193.2426999999998,23.1]
["SNXWOB610_3",1.0374699999999999,-91.699979999999996,-1.99E-3,16.011019999999998,284.86907000000002,-5112.9768800000002,23.1]
["SNXWOB610_3-UP3",1.0374699999999999,-91.699979999999996,-1.99E-3,16.011019999999998,284.86907000000002,-5112.9768000000004,23.1]
["SNXWOB610_6",1.0374699999999999,-91.699979999999996,-1.99E-3,18.52496,333.68266,-6222.1799780000001,23.1]
["SNXWOB610_6-UP3",1.033747,-91.699979999999996,-1.99E-3,18.52496,333.68266,-6222.1799000000001,23.1]
["SNXWOB615_3",1.0378000000000001,-46.825299999999999,-1.9599999999999999E-3,18.915199999999999,274.50740000000002,-4016,23.1]
["SNXWOB615_3-UP3",1.0378000000000001,-46.825299999999999,-1.9599999999999999E-3,18.915199999999999,274.50740000000002,-4016,23.1]
["SNXWOB615_6",1.0378000000000001,-46.825299999999999,-1.9599999999999999E-3,20.9222,262.22059999999999,-2714.7190999999998,23.1]
["SNXWOB615_6-UP3",1.0378000000000001,-46.825299999999999,-1.9599999999999999E-3,20.9222,262.22059999999999,-2714.7190999999998,23.1]
["SNXWOB910_3",1.0374699999999999,-91.699979999999996,-1.99E-3,16.284960000000002,216.58118999999999,-3262.56016,23.1]
["SNXWOB910_3-UP3",1.0374699999999999,-91.699979999999996,-1.99E-3,16.284960000000002,216.58118999999999,-3262.5300999999999,23.1]
["SNXWOB910_6",1.0374699999999999,-91.699979999999996,-1.99E-3,18.525310000000001,252.34576999999999,-4184.5381100000004,23.1]
["SNXWOB910_6-UP3",1.0374699999999999,-91.699979999999996,-1.99E-3,18.525310000000001,252.34576999999999,-4184.5380999999998,23.1]
["VLSPR06",0.86499999999999999,0,0,11.53,0.48060000000000003,0,13.86]
["VLSPR10",0.81569999999999998,0,0,9.7420000000000009,697.2,-7421,23.1]
["WobLA_LEPA",0.99439,-37.505020000000002,-7.0339000000000003E-4,0,0,0,23.1]
["WobSD_LEPA",0.98189000000000004,-54.336759999999998,-2.1798E-4,0,0,0,23.1]

{"sheet":"Development notes","index":11,"n_rows":45,"n_cols":14,"rows_kept":45,"cut":false,"hidden":false,"merged":[[7,1,7,4],[1,4,1,14],[3,1,3,4],[4,1,4,4],[5,1,5,4],[6,1,6,4],[4,10,4,12],[5,10,5,12],[6,10,6,12],[7,10,7,12]]}
[]
[null,null,null,null,"Development notes/Action"]
[]
[null,"State Abrevitation: "]
[null,"State Technical Contact:",null,null,null,null,null,null,null,null,"National Tecnhical Contact: ",null,null,"Clarence Prestwich"]
[null,"USDA-NRCS Service Center/ Office:",null,null,null,null,null,null,null,null,"USDA Center: ",null,null,"WNTSC"]
[null,"Phone:",null,null,null,null,null,null,null,null,"Phone: ",null,null,"503 - 414 - 3075"]
[null,"Email:",null,null,null,null,null,null,null,null,"Email: ",null,null,"clarence.prestwich@por.usda.gov"]
[]
["Date"]
["2012-02-16","removed size restriction on sprinkler nozzle size and added description of nozzle naming convention."]
["2012-02-23","updated help comments for sprinkler page espeically those dealing with part circle angles"]
["2012-03-30","Corrected error with pump curve routine re-did formatting on pages"]
["2012-04-11","Corrected pump curve input routine"]
["2012-04-23","added explanation about pump curve entery"]
["2012-10-01","corrected komet sprinkler errors in database and corrected screen errors on pump tab"]
["2013-04-23","added graph of pump curve on pump tab, added distance between sprinklers on sprinkler tab to better corespond to information from dealer and to assist with input, clarified comments of about minimum depth on Main tab"]
["2013-04-25","added CPED generated curve to the plot of the pumpcurve"]
["2013-04-30","unlocked to cells on sprinkler tab AA1 and AB1 allowing the sprinkler diameter units to be selected"]
["2013-05-01","Corrected unit label on nozzle diameter"]
["2013-06-26","Added linear move/Pivot button to make linear moves easier to evaluate. Corrected pathe statements to make win 7 compatiblity better"]
["2013-07-03","added linear pictures, edited comments to reflex both pivots and linears and added DU calculation for Linear output"]
["2013-07-09","Fixed data list error for sprinkler model list. Edited comments on Pump tab"]
["2013-09-18","Fixed formating and spelling errors"]
["2013-10-28","Reworked pump tab-got rid of comment errors and error trapping for pump stage fixed report print out."]
["2013-10-29","fixed pumpcurve numbers placement on sheet"]
["2013-11-18","Added sprinkler wizzard and improved reports page"]
["2014-01-30","fixed problem with pattern selection for sprinkler wizzard"]
["2014-02-05","Added missing equation to column E on the Sprinkler tab"]
["2014-02-10","corrected tower labeling on report page for linear sprinklers"]
["2014-05-22","Updated sprinkler database and Wizard. Added Weclome statement at front end"]
["2014-06-26","Adjusted welcome screen, updated sprinkler wizard"]
["2014-09-10","Fixed sprinkler update button to give date of xml file not date button was pushed."]
["2015-02-25","improved and added gross depth to the catch can tab"]
["2015-02-26","Added DU and application efficiency to catchcan page"]
["2015-03-03","Corrected sprinkler wizzard and pump pressure on Report tab. Improved catchcan tab and screen placement of user forms"]
["2015-03-09","fixed glitch with pumpcurve screen not showing"]
["2015-09-08","Fixed span numberon report tab. Changed out activeX buttons to get rid microsoft resize error"]
["2016-02-22","updated database with new Senninger xcel nozzle, increased the number of allowable sprinklers to 1000+"]
["2017-05-11","updated database with new Komet Peak sprinkler. Added Field Evaluation tab"]
["2017-10-03","updated sprinkler database and Wizard. "]
["2018-03-27","updated sprinkler database"]
["2018-08-23","updated sprinkler database"]
["2018-08-27","fixed diameter error on constant flow routine"]
["2018-10-04","made corrections to sprinkler database"]

{"sheet":"Sprinkler naming convention","index":12,"n_rows":0,"n_cols":0,"rows_kept":0,"cut":false,"hidden":false,"merged":[]}